Workbook

Sheet Title_Sheet
C3: DCF, LBO and M&A model
C5: All rights Reserved by Valentino Magniette-Bosseboeuf
C6: © 2024
C8: Version: | D8: 0.0.2 | E8: (19th May 2024)
C10: Due Diligence from the user is still required as the model can be wrong

Sheet Hub
C2: Main Information | S2: Stock Information Override
B4: Search Company | J4: Use Excel stock information tool? | N4: Yes | R4: =IF(N4="Yes","Override Disabled","Override Enabled") -> Override Disabled
B6: Official Name | D6: =_FV(D4,"Official name",TRUE) -> APPLE INC. | F6: Share Price | H6: =_FV(D4,"Price") -> 189.87 | P6: Official Name | T6: Share Price
B7: Ticker | D7: =_FV(D4,"Ticker symbol",TRUE) -> AAPL | F7: Outstanding Shares | H7: =(_FV(D4,"Shares outstanding",TRUE))/1000000 -> 15334.08 | P7: Ticker | T7: Outstanding Shares
B8: Currency | D8: =_FV(D4,"Currency") -> USD | P8: Currency | T8: Beta
B10: Valuation Date if not today | F10: Tax Rate | H10: 0.21
B11: ="Last Fiscal Year End Date if not "&TEXT(DATE(YEAR(TODAY())-1,12,31),"dd-mmm-yy") -> Last Fiscal Year End Date if not 31-Dec-23
S12: Master Check
B13: Division 1 Name | F13: Division 6 Name
B14: Division 2 Name | F14: Division 7 Name | P14: DCF | R14: =IF(D69="Ok", "Ready", "Not Ready") -> Not Ready | T14: NWC Schedule | V14: =IF(OR(D75:D78<>"Ok", H76:H77<>"Ok"), "Not Ready", "Ready") -> Not Ready
B15: Division 3 Name | F15: Division 8 Name | P15: Revenue Build | R15: =IF(OR(D51:D55<>"Ok",H51:H55<> "Ok"), "Not Ready", "Ready") -> Ready | T15: D&A Schedule | V15: =IF(OR(D82<>"Ok", H82<>"Ok"), "Not Ready", "Ready") -> Not Ready
B16: Division 4 Name | F16: Division 9 Name | P16: Operating Model | R16: =IF(OR(D59:D60<>"Ok", D63:D65<>"Ok", H59:H61<>"Ok", H63:H64<>"Ok"), "Not Ready", "Ready") -> Not Ready | T16: Debt Schedule | V16: =IF(OR(H86:H89<>"Ok"), "Not Ready", "Ready") -> Not Ready
B17: Division 5 Name | F17: Division 10 Name
C19: Main Assumptions | S19: LBO and Merger Optional Parts
B21: Terminal EBITDA Multiple | F21: Equity Premium | R21: DCF Synergy Assumptions | V21: Checklist
B22: Perpetual Growth Rate | F22: Risk Free Rate | V22: =IF(COUNTBLANK(T23:T25)=0, "OK", "Missing Values") -> Missing Values
F23: 5-Year IR | P23: Revenue Synergy Increase
B24: ="Terminal EBITDA Multiple unchanged from " & YEAR(DCF!C10) & " Fiscal Year?" -> Terminal EBITDA Multiple unchanged from 2023 Fiscal Year? | P24: COGS Synergy Decrease
P25: FE Synergy Decrease
C26: Debt Schedule Set Up | F26: (Necessary)
R27: LBO Assumptions
B28: Does the company have detailed debts? | V28: =IF(COUNTBLANK(T29:T36)=0, "OK", "Missing Values") -> Missing Values
P29: Premium Paid (%)
B30: Do they have bonds? | F30: Bank loans? | J30: =IF(OR(AND(OR(D30="Yes", H30="Yes"), H28<>"Yes"), AND(H28="Yes", D30="No", H30="No")), "The company has detailed debts if they show their bonds/loans with IR, Year Due, and principal", " " ) ->  | P30: Minimum Cash as % EBITDA
P31: Holding Period (Years)
C32: Main Overrides | P32: Advisory Fee (%EV)
P33: Debt Issuance Fee (%EV)
C34: Revenue CAGR Overrides | F34: (Leave blank for no override) | P34: Legal & Other Fees
P35: Leverage Multiple
B36: =IF(ISBLANK(D13), "Division 1", D13) -> Division 1 | F36: =IF(ISBLANK(H13), "Division 6", H13) -> Division 6 | P36: Interest Rate Premium
B37: =IF(ISBLANK(D14), "Division 2", D14) -> Division 2 | F37: =IF(ISBLANK(H14), "Division 7", H14) -> Division 7
B38: =IF(ISBLANK(D15), "Division 3", D15) -> Division 3 | F38: =IF(ISBLANK(H15), "Division 8", H15) -> Division 8 | R38: Merger Assumptions
B39: =IF(ISBLANK(D16), "Division 4", D16) -> Division 4 | F39: =IF(ISBLANK(H16), "Division 9", H16) -> Division 9 | V39: =IF(COUNTBLANK(T40)+COUNTBLANK(T42:T46)+COUNTBLANK(T48:T54)=0, "OK", "Missing Values") -> Missing Values
B40: =IF(ISBLANK(D17), "Division 5", D17) -> Division 5 | F40: =IF(ISBLANK(H17), "Division 10", H17) -> Division 10 | P40: Search Company
C42: WACC Override | F42: (Leave blank for no override) | P42: Official Name | T42: =_FV(T40,"Official name",TRUE) -> METRO INC.
P43: Ticker | T43: =_FV(T40,"Ticker symbol",TRUE) -> MRU
B44: WACC | F44: If TY WACC same as WACC, do not override TY WACC | P44: Currency | T44: =_FV(T40,"Currency") -> CAD
B45: Terminal Year WACC | P45: Share Price | T45: =_FV(T40,"Price") -> 74.71
P46: Outstanding Shares | T46: =_FV(T40,"Shares outstanding",TRUE)/1000000 -> 227.0092
C47: Checklist
P48: =D6 & " Take-Out Price" -> APPLE INC. Take-Out Price
C49: Revenue Build Checklist | P49: ="Tax Rate " & T42 -> Tax Rate METRO INC.
P50: Transaction Costs
B51: =B36 -> Division 1 | D51: =IF(B51="Division 1", IF(COUNTBLANK(Revenue_Build!C6:G6)=5,"OK", "Missing Name"), IF(COUNTBLANK(Revenue_Build!C6:G6)=0, "OK", "Missing Values")) -> OK | F51: =F36 -> Division 6 | H51: =IF(F51="Division 6", IF(COUNTBLANK(Revenue_Build!C21:G21)=5,"OK", "Missing Name"), IF(COUNTBLANK(Revenue_Build!C21:G21)=0, "OK", "Missing Values")) -> OK | P51: =T42 & " Cash on Hand in " & DCF!H15 -> METRO INC. Cash on Hand in 2023
B52: =B37 -> Division 2 | D52: =IF(B52="Division 2", IF(COUNTBLANK(Revenue_Build!C9:G9)=5,"OK", "Missing Name"), IF(COUNTBLANK(Revenue_Build!C9:G9)=0, "OK", "Missing Values")) -> OK | F52: Division 7 | H52: =IF(F52="Division 7", IF(COUNTBLANK(Revenue_Build!C24:G24)=5,"OK", "Missing Name"), IF(COUNTBLANK(Revenue_Build!C24:G24)=0, "OK", "Missing Values")) -> OK | P52: Target Leverage
B53: Division 3 | D53: =IF(B53="Division 3", IF(COUNTBLANK(Revenue_Build!C12:G12)=5,"OK", "Missing Name"), IF(COUNTBLANK(Revenue_Build!C12:G12)=0, "OK", "Missing Values")) -> OK | F53: Division 8 | H53: =IF(F53="Division 8", IF(COUNTBLANK(Revenue_Build!C27:G27)=5,"OK", "Missing Name"), IF(COUNTBLANK(Revenue_Build!C27:G27)=0, "OK", "Missing Values")) -> OK | P53: =T42 & " EBITDA in " & DCF!I15 -> METRO INC. EBITDA in 2024
B54: Division 4 | D54: =IF(B54="Division 4", IF(COUNTBLANK(Revenue_Build!C15:G15)=5,"OK", "Missing Name"), IF(COUNTBLANK(Revenue_Build!C15:G15)=0, "OK", "Missing Values")) -> OK | F54: Division 9 | H54: =IF(F54="Division 9", IF(COUNTBLANK(Revenue_Build!C30:G30)=5,"OK", "Missing Name"), IF(COUNTBLANK(Revenue_Build!C30:G30)=0, "OK", "Missing Values")) -> OK | P54: =T42 & " Debt in " & DCF!H15 -> METRO INC. Debt in 2023
B55: Division 5 | D55: =IF(B55="Division 5", IF(COUNTBLANK(Revenue_Build!C18:G18)=5,"OK", "Missing Name"), IF(COUNTBLANK(Revenue_Build!C18:G18)=0, "OK", "Missing Values")) -> OK | F55: Division 10 | H55: =IF(F55="Division 10", IF(COUNTBLANK(Revenue_Build!C33:G33)=5,"OK", "Missing Name"), IF(COUNTBLANK(Revenue_Build!C33:G33)=0, "OK", "Missing Values")) -> OK
C57: Operating Model Checklist
B59: =Operating_Model!B48 -> Cost of Goods Sold | D59: =IF(COUNTBLANK(Operating_Model!D48:H48)=0, "OK", "Missing Values") -> Missing Values | F59: =Operating_Model!B59 -> SG&A | H59: =IF(COUNTBLANK(Operating_Model!D59:H59)=0, "OK", "Missing Values") -> Missing Values
B60: =Operating_Model!B51 -> Cost of Services Sold | D60: =IF(COUNTBLANK(Operating_Model!D51:H51)=0, "OK", "Missing Values") -> Missing Values | F60: =Operating_Model!B62 -> Research and Development | H60: =IF(COUNTBLANK(Operating_Model!D62:H62)=0, "OK", "Missing Values") -> Missing Values
F61: =Operating_Model!B65 -> Other Fixed Costs | H61: =IF(COUNTBLANK(Operating_Model!D65:H65)=0, "OK", "Missing Values") -> Missing Values
B63: =Operating_Model!B71 -> Other Income | D63: =IF(COUNTBLANK(Operating_Model!D71:H71)=0, "OK", "Missing Values") -> Missing Values | F63: =Operating_Model!B91 -> Interest Expenses | H63: =IF(COUNTBLANK(Operating_Model!D91:H91)=0, "OK", "Missing Values") -> Missing Values
B64: =Operating_Model!B81 -> Depreciation | D64: =IF(COUNTBLANK(Operating_Model!D81:H81)=0, "OK", "Missing Values") -> Missing Values | F64: =Operating_Model!B100 -> Taxes | H64: =IF(COUNTBLANK(Operating_Model!D100:H100)=0, "OK", "Missing Values") -> Missing Values
B65: =Operating_Model!B82 -> Amortisation | D65: =IF(COUNTBLANK(Operating_Model!D82:H82)=0, "OK", "Missing Values") -> Missing Values
C67: DCF Checklist
B69: CapEx | D69: =IF(COUNTBLANK(DCF!D29:H29)=0, "OK", "Missing Values") -> Missing Values
C71: Balance Sheet Checklist
C73: In Net Working Capital | F73: (AKA Currents)
B75: =Net_Working_Capital!B7 -> Cash | D75: =IF(COUNTBLANK(Net_Working_Capital!C7:H7)=0, "OK", "Missing Values") -> Missing Values
B76: =Net_Working_Capital!B8 -> Account Receivable | D76: =IF(COUNTBLANK(Net_Working_Capital!C8:H8)=0, "OK", "Missing Values") -> Missing Values | F76: =Net_Working_Capital!B15 -> Accounts Payable | H76: =IF(COUNTBLANK(Net_Working_Capital!C15:H15)=0, "OK", "Missing Values") -> Missing Values
B77: =Net_Working_Capital!B10 -> Inventory | D77: =IF(COUNTBLANK(Net_Working_Capital!C10:H10)=0, "OK", "Missing Values") -> Missing Values | F77: =Net_Working_Capital!B17 -> Other Liabilities excluding debts | H77: =IF(COUNTBLANK(Net_Working_Capital!C17:H17)=0, "OK", "Missing Values") -> Missing Values
B78: =Net_Working_Capital!B12 -> Other Current Assets | D78: =IF(COUNTBLANK(Net_Working_Capital!C12:H12)=0, "OK", "Missing Values") -> Missing Values
C80: In Depreciation Schedule | F80: (AKA Assets)
B82: ='D&A+CAPEX'!B8 -> PP&E | D82: =IF(COUNTBLANK('D&A+CAPEX'!D8:H8)=0, "OK", "Missing Values") -> Missing Values | F82: ='D&A+CAPEX'!B35 -> Intangible assets | H82: =IF(COUNTBLANK('D&A+CAPEX'!D35:H35)=0, "OK", "Missing Values") -> Missing Values
C84: In Debt Schedule | F84: (AKA Debts)
B86: Main Schedule Balance | D86: =Debt_Schedule!Y15 -> Balanced | F86: Bonds | H86: =IF(OR(COUNTBLANK(Debt_Schedule!C4:C23)<>COUNTBLANK(Debt_Schedule!D4:D23), COUNTBLANK(Debt_Schedule!C4:C23)<>COUNTBLANK(Debt_Schedule!F4:F23), COUNTBLANK(Debt_Schedule!D4:D23)<>COUNTBLANK(Debt_Schedule!F4:F23)), "Missing Values", "Ok") -> Ok
B87: ="Use Backup? " & IF(D86="Balanced", , "(Recommended)") -> Use Backup? | F87: Loans | H87: =IF(OR(COUNTBLANK(Debt_Schedule!L4:L23)<>COUNTBLANK(Debt_Schedule!M4:M23), COUNTBLANK(Debt_Schedule!L4:L23)<>COUNTBLANK(Debt_Schedule!O4:O23), COUNTBLANK(Debt_Schedule!M4:M23)<>COUNTBLANK(Debt_Schedule!O4:O23)), "Missing Values", "Ok") -> Ok
F88: Debt Repayments | H88: =IF(COUNTBLANK(Debt_Schedule!U9:Y9)=0, "OK", "Missing Values") -> Missing Values
F89: Cash From Debts | H89: =IF(COUNTBLANK(Debt_Schedule!U11:Y11)=0, "OK", "Missing Values") -> Missing Values

Sheet Dashboard
B2: =DCF!B2 -> APPLE INC.
B3: Dashboard | F3: Enable Master Override? | I3: No
B4: =IF(OR(Hub!R14:R16<>"Ok", Hub!V14:V16<>"Ok"), "Model Not Complete", "Model Completed") -> Model Not Complete
B6: WACC | G6: Risk Free Rate | L6: Revenue Synergy Increase
B7: Terminal Year WACC | G7: 5-Year Average Inflation Rate | L7: COGS Synergy Decrease
B8: PGG | G8: Outstanding shares | L8: FE Synergy Decrease
B9: EBITDA Exit Multiple | G9: Share price at Valuation

Sheet 3_Main_Models --->

Sheet DCF
B2: =IF(Hub!N4="No", Hub!R6, Hub!D6) -> APPLE INC. | C2: Discounted Cash Flow Analysis
B3: All Figures in USD$ Millions, expect for per share data
B4: Fiscal Year Ending December 31 | G4: =IF(Dashboard!I3="Yes", "Dashboard Master Override Enabled", "Dashboard Master Override Disabled") -> Dashboard Master Override Disabled
B7: Assumptions & Inputs
B9: Valuation Date | C9: =IF(ISBLANK(Hub!D10), TODAY(), Hub!D10) -> 2024-05-19 | E9: Latest Yearly EBITDA | H9: =H22 -> 0 | J9: Perpetual Growth Rate | M9: =IF(Dashboard!I3="Yes", Dashboard!E8, Hub!D22) -> 0
B10: Latest Fiscal Year Date | C10: =IF(ISBLANK(Hub!D11), DATE(YEAR(C9)-1,12,31),Hub!D11) -> 2023-12-31 | E10: Terminal EBITDA multiple | H10: =IF(Dashboard!I3="Yes", Dashboard!E9, IF(Hub!H24="Yes", ((M10*M11-Net_Working_Capital!H7+Debt_Schedule!Y41)/H22), Hub!D21)) -> 0 | J10: Outstanding Shares | M10: =IF(Dashboard!I3="YES", Dashboard!J8, IF(Hub!N4="No", Hub!V7, Hub!H7)) -> 15334.08
B11: Tax Rate | C11: =Hub!H10 -> 0.21 | E11: WACC | H11: =IF(Dashboard!I3="Yes", Dashboard!E6, IF(ISBLANK(Hub!D44), WACC_Calculator!D4, Hub!D44)) ->  | J11: Share Price at Valuation | M11: =IF(Hub!N4="No", Hub!V6, Hub!H6) -> 189.87
B12: Average Inflation Rate | C12: =IF(Dashboard!I3="Yes", Dashboard!J7, Hub!H23) -> 0 | E12: Terminal Year WACC | H12: =IF(Dashboard!I3="Yes", Dashboard!E7, IF(ISBLANK(Hub!D45), IF(ISBLANK(Hub!D44), WACC_Calculator!D4, Hub!D44), Hub!D45)) ->  | J12: Risk Free Rate | M12: =IF(Dashboard!I3="YES", Dashboard!J6, Hub!H22) -> 0
F14: Actuals | K14: Forecast
D15: =YEAR(D16) -> 2019 | E15: =YEAR(E16) -> 2020 | F15: 2021 | G15: 2022 | H15: 2023 | I15: =YEAR(I16) -> 2024 | J15: =YEAR(J16) -> 2025 | K15: 2026 | L15: 2027 | M15: 2028 | N15: 2029 | O15: 2030 | P15: 2031 | Q15: 2032 | R15: 2033
D16: =EOMONTH(E16,-12) -> 2019-12-31 | E16: 2020-12-31 | F16: 2021-12-31 | G16: =EOMONTH(H16,-12) -> 2022-12-31 | H16: =C10 -> 2023-12-31 | I16: =EOMONTH(H16,12) -> 2024-12-31 | J16: =EOMONTH(I16,12) -> 2025-12-31 | K16: 2026-12-31 | L16: 2027-12-31 | M16: 2028-12-31 | N16: =EOMONTH(M16,12) -> 2029-12-31 | O16: =EOMONTH(N16,12) -> 2030-12-31 | P16: =EOMONTH(O16,12) -> 2031-12-31 | Q16: =EOMONTH(P16,12) -> 2032-12-31 | R16: =EOMONTH(Q16,12) -> 2033-12-31
B17: Discounted Cash Flow
B19: Revenue | D19: =Revenue_Build!C36 -> 0 | E19: =Revenue_Build!D36 -> 0 | F19: =Revenue_Build!E36 -> 0 | G19: =Revenue_Build!F36 -> 0 | H19: =Revenue_Build!G36 -> 0 | I19: =Revenue_Build!H36 -> 0 | J19: =Revenue_Build!I36 -> 0 | K19: =Revenue_Build!J36 -> 0 | L19: =Revenue_Build!K36 -> 0 | M19: =Revenue_Build!L36 -> 0 | N19: =Revenue_Build!M36 -> 0 | O19: =Revenue_Build!N36 -> 0 | P19: =Revenue_Build!O36 -> 0 | Q19: =Revenue_Build!P36 -> 0 | R19: =Revenue_Build!Q36 -> 0
B20: YoY Growth | D20: - | E20: =(E19-D19)/D19 ->  | F20: =(F19-E19)/E19 ->  | N20: =(N19-M19)/M19 ->  | O20: =(O19-N19)/N19 ->  | P20: =(P19-O19)/O19 ->  | Q20: =(Q19-P19)/P19 ->  | R20: =(R19-Q19)/Q19 -> 
B22: Adj. EBIDTA | D22: =Operating_Model!D76 -> 0 | E22: =Operating_Model!E76 -> 0 | F22: =Operating_Model!F76 -> 0 | G22: =Operating_Model!G76 -> 0 | H22: =Operating_Model!H76 -> 0 | I22: =Operating_Model!I76 ->  | J22: =Operating_Model!J76 ->  | K22: =Operating_Model!K76 ->  | L22: =Operating_Model!L76 ->  | M22: =Operating_Model!M76 ->  | N22: =Operating_Model!N76 ->  | O22: =Operating_Model!O76 ->  | P22: =Operating_Model!P76 ->  | Q22: =Operating_Model!Q76 ->  | R22: =Operating_Model!R76 -> 
B23: %Margin | D23: =D22/D19 ->  | N23: =N22/N19 -> 
B24: LESS: D&A - Other | D24: =Operating_Model!D83 -> 0 | E24: =Operating_Model!E83 -> 0 | F24: =Operating_Model!F83 -> 0 | G24: =Operating_Model!G83 -> 0 | H24: =Operating_Model!H83 -> 0 | I24: =Operating_Model!I83 ->  | J24: =Operating_Model!J83 ->  | K24: =Operating_Model!K83 ->  | L24: =Operating_Model!L83 ->  | M24: =Operating_Model!M83 ->  | N24: =Operating_Model!N83 ->  | O24: =Operating_Model!O83 ->  | P24: =Operating_Model!P83 ->  | Q24: =Operating_Model!Q83 ->  | R24: =Operating_Model!R83 -> 
B25: Adj. EBIT | D25: =D22-D24 -> 0 | E25: =E22-E24 -> 0 | F25: 0 | G25: 0 | H25: 0 | N25: =N22-N24 -> 
B26: Income Taxes | D26: =Operating_Model!D101 -> 0 | E26: =Operating_Model!E101 -> 0 | F26: =Operating_Model!F101 -> 0 | G26: =Operating_Model!G101 -> 0 | H26: =Operating_Model!H101 -> 0 | I26: =Operating_Model!I101 ->  | J26: =Operating_Model!J101 ->  | K26: =Operating_Model!K101 ->  | L26: =Operating_Model!L101 ->  | M26: =Operating_Model!M101 ->  | N26: =Operating_Model!N101 ->  | O26: =Operating_Model!O101 ->  | P26: =Operating_Model!P101 ->  | Q26: =Operating_Model!Q101 ->  | R26: =Operating_Model!R101 -> 
B27: Adj. Unlevered Net Income | D27: =D25-D26 -> 0 | E27: =E25-E26 -> 0 | F27: 0 | G27: 0 | H27: 0 | N27: =N25-N26 -> 
B28: ADD: D&A -Other | D28: =D24 -> 0 | E28: =E24 -> 0 | F28: 0 | G28: 0 | H28: 0 | N28: =N24 -> 
B29: LESS: CapEx | I29: ='D&A+CAPEX'!I43 ->  | J29: ='D&A+CAPEX'!J43 ->  | K29: ='D&A+CAPEX'!K43 ->  | L29: ='D&A+CAPEX'!L43 ->  | M29: ='D&A+CAPEX'!M43 ->  | N29: ='D&A+CAPEX'!N43 ->  | O29: ='D&A+CAPEX'!O43 ->  | P29: ='D&A+CAPEX'!P43 ->  | Q29: ='D&A+CAPEX'!Q43 ->  | R29: ='D&A+CAPEX'!R43 -> 
B30: LESS: ΔNWC | D30: =Net_Working_Capital!D23 -> 0 | E30: =Net_Working_Capital!E23 -> 0 | F30: =Net_Working_Capital!F23 -> 0 | G30: =Net_Working_Capital!G23 -> 0 | H30: =Net_Working_Capital!H23 -> 0 | I30: =Net_Working_Capital!I23 ->  | J30: =Net_Working_Capital!J23 ->  | K30: =Net_Working_Capital!K23 ->  | L30: =Net_Working_Capital!L23 ->  | M30: =Net_Working_Capital!M23 ->  | N30: =Net_Working_Capital!N23 ->  | O30: =Net_Working_Capital!O23 ->  | P30: =Net_Working_Capital!P23 ->  | Q30: =Net_Working_Capital!Q23 ->  | R30: =Net_Working_Capital!R23 -> 
B31: Unlevered Free Cash Flow | D31: =D27+D28-D29-D30 -> 0 | E31: 0 | F31: 0 | G31: 0 | H31: =H27+H28-H29-H30 -> 0 | I31: =I27+I28-I29-I30 ->  | N31: =N27+N28-N29-N30 -> 
B32: Valuation Timing Factor | I32: =1/((1+$H$11)^((I$16-$C$9)/365)) ->  | J32: =1/((1+$H$11)^((J$16-$C$9)/365)) -> 
B33: Discount Rate | C33: =H11 -> 
B34: PV of Unlevered Free Cash Flow | I34: =I31*I32 ->  | J34: =J31*J32 -> 
T35: Exit Multiple Sensitivities
B37: SUM of PV of Unlevered FCF | C37: =SUM(I34:M34) ->  | X37: Implied Equity Value
X38: WACC
B39: Implied Share Price - Exit Multiple | U39: =E41 -> 0 | V39: =W39-0.005 ->  | X39: =H11 ->  | Y39: =X39+0.005 -> 
B40: Exit Multiple | C40: =H10 -> 0 | U40: =U41-0.5 -> -1 | V40: =(SUM($I$34:$M$34))+($U40*$M$22*(1/((1+V$39)^(($M$16-$C$9)/365))))-$C$44+$C$45 -> 
B41: Terminal Value | C41: =M22*H10 ->  | T41: Terminal | U41: -0.5
B42: PV of Terminal Value | C42: =C41*M32 ->  | T42: Multiple | U42: =H10 -> 0
B43: Implied Enterprise Value | C43: =C42+C37 ->  | T43: (x) | U43: =U42+0.5 -> 0.5
B44: LESS: Debt | C44: =WACC_Calculator!L8 -> 0 | U44: 1
B45: ADD: Cash | C45: =Net_Working_Capital!H7 -> 0
B46: Implied Equity Value | C46: =C43-C44+C45 ->  | X46: Implied Equity Value Change
B47: F.D. Share O/S | C47: =M10 -> 15334.08 | X47: WACC
B48: Implied Share Value | C48: =C46/C47 ->  | U48: =E47 -> 0 | V48: =W48-0.005 ->  | X48: =X39 ->  | Y48: =X48+0.005 -> 
B49: Implied Upside/(Downside) | C49: =(C48-M11)/M11 ->  | U49: =U50-0.5 -> -1 | V49: =(V40-$C$46)/$C$46 ->  | Y49: =(Y40-$C$46)/$C$46 -> 
T50: Terminal | U50: -0.5 | V50: =(V41-$C$46)/$C$46 -> 
T51: Multiple | U51: =U42 -> 0 | V51: =(V42-$C$46)/$C$46 ->  | X51: =(X42-$C$46)/$C$46 ->  | Y51: =(Y42-$C$46)/$C$46 -> 
T52: (x) | U52: =U51+0.5 -> 0.5 | V52: =(V43-$C$46)/$C$46 ->  | X52: =(X43-$C$46)/$C$46 -> 
B53: Implied Share Price - PGG | U53: 1 | V53: =(V44-$C$46)/$C$46 ->  | X53: =(X44-$C$46)/$C$46 -> 
B54: Perpetual Growth Rate | C54: =M9 -> 0
B55: Sum of PV of Unlevered FCF | C55: =C37 ->  | T55: Perpetual Growth Rate Sensitivities
B56: PV of Terminal Value | C56: =(((M31)*(1+M9))/(H12-M9))*M32 -> 
B57: Implied Enterprise Value | C57: =C55+C56 ->  | X57: Implied Equity Value
B58: LESS: Debt | C58: =WACC_Calculator!L8 -> 0 | X58: WACC
B59: ADD: Cash | C59: =C45 -> 0 | U59: =E64 -> 0 | V59: =W59-0.005 ->  | X59: =X39 ->  | Y59: =X59+0.005 ->  | Z59: =Y59+0.005 -> 
B60: Implied Equity Value | C60: =C57-C58+C59 ->  | U60: =U61-0.005 -> -0.01 | V60: =(SUM($I$34:$M$34))+((($M$31*(1+$U60))/(V$59-$U60))*(1/((1+V$59)^(($M$16-$C$9)/365))))-$C$44+$C$45 -> 
B61: F.D. Share O/S | C61: =M10 -> 15334.08 | T61: Perpetual | U61: =U62-0.005 -> -0.005
B62: Implied Share Value | C62: =C60/C61 ->  | T62: Growth | U62: =M9 -> 0
B63: Implied Upside/(Downside) | C63: =(C62-M11)/M11 ->  | T63: Rate | U63: =U62+0.005 -> 0.005
U64: =U63+0.005 -> 0.01
X66: Implied Equity Value Change
X67: WACC
U68: =E70 -> 0 | V68: =W68-0.005 ->  | X68: =X39 ->  | Y68: =X68+0.005 -> 
U69: =U70-0.005 -> -0.01 | V69: =(V60-$C$60)/$C$60 ->  | X69: =(X60-$C$60)/$C$60 -> 
T70: Perpetual | U70: =U71-0.005 -> -0.005 | V70: =(V61-$C$60)/$C$60 ->  | X70: =(X61-$C$60)/$C$60 -> 
T71: Growth | U71: =U62 -> 0 | V71: =(V62-$C$60)/$C$60 ->  | W71: =(W62-$C$60)/$C$60 ->  | X71: =(X62-$C$60)/$C$60 ->  | Y71: =(Y62-$C$60)/$C$60 ->  | Z71: =(Z62-$C$60)/$C$60 -> 
T72: Rate | U72: =U71+0.005 -> 0.005 | V72: =(V63-$C$60)/$C$60 ->  | X72: =(X63-$C$60)/$C$60 -> 
U73: =U72+0.005 -> 0.01 | V73: =(V64-$C$60)/$C$60 ->  | X73: =(X64-$C$60)/$C$60 -> 

Sheet LBO
B2: =DCF!B2 -> APPLE INC. | C2: Leverage Buyout Model
B3: All Figures in USD$ Millions, expect for per share data
B4: Fiscal Year Ending December 31
H6: Transaction Assumptions
D8: Current Share price | G8: =DCF!M11 -> 189.87 | K8: Exit Date | N8: =DATE(YEAR(D35)+Hub!T31,MONTH(D35),DAY(D35)) -> 2023-12-31
D9: Diluted Share Count | G9: =DCF!M10 -> 15334.08 | K9: Minimum Cash as % of EBITDA | N9: =Hub!T30 -> 0
D11: Premium Paid | G11: =Hub!T29 -> 0 | K11: Advisory Fee (%EV) | N11: =Hub!T32 -> 0
K12: Debt Issuance Fee (%EV) | N12: =Hub!T33 -> 0
D13: Purchase Equity Value | G13: =G8*G9*(1+G11) -> 2911481.77 | K13: Legal & Other Fees | N13: =Hub!T34 -> 0
D14: LESS: Cash | G14: =Net_Working_Capital!H7 -> 0
D15: ADD: Debt | G15: =Debt_Schedule!Y41 -> 0 | K15: Leverage Multiple | N15: =Hub!T35 -> 0
D16: Purchase EV | G16: =G13-G14+G15 -> 2911481.77 | K16: Total Debt Used | N16: =DCF!H22*N15 -> 0
K17: Interest Rate on Issued Debt | N17: =Hub!H22+Hub!T36 -> 0
D18: EBITDA Purchase Multiple | G18: =G16/DCF!H22 -> 
I20: Sources and Uses
E22: Sources | L22: Uses
D24: New Debt Issued | G24: =N16 -> 0 | K24: Existing Debt Paydown | N24: =G15 -> 0
D25: Cash on Hand | G25: =G14 -> 0 | K25: Transaction Fees | N25: =(G16*N11)+(N16*N12)+N13 -> 0
D26: Investor Equity | G26: =N28-G24-G25 -> 2911481.77 | K26: Equity Purchase Price | N26: =G13 -> 2911481.77
K27: Minimum Cash Balance | N27: =N9*DCF!H22 -> 0
D28: Total Sources | G28: =SUM(G24:G26) -> 2911481.77 | K28: Total Uses | N28: =SUM(N24:N27) -> 2911481.77
D33: Actual | I33: Forecast
D34: =YEAR(D35) -> 2023 | E34: =YEAR(E35) -> 2024 | F34: =YEAR(F35) -> 2025 | G34: 2026 | H34: 2027 | I34: 2028 | J34: 2029 | K34: 2030 | L34: 2031 | M34: 2032 | N34: 2033
D35: =DCF!C10 -> 2023-12-31 | E35: =EOMONTH(D35,12) -> 2024-12-31 | F35: =EOMONTH(E35,12) -> 2025-12-31 | G35: 2026-12-31 | H35: 2027-12-31 | I35: 2028-12-31 | J35: =EOMONTH(I35,12) -> 2029-12-31 | K35: =EOMONTH(J35,12) -> 2030-12-31 | L35: =EOMONTH(K35,12) -> 2031-12-31 | M35: =EOMONTH(L35,12) -> 2032-12-31 | N35: 2033-12-31
B37: EBITDA | D37: =DCF!H22 -> 0 | E37: =DCF!I22 ->  | F37: =DCF!J22 ->  | G37: =DCF!K22 ->  | H37: =DCF!L22 ->  | I37: =DCF!M22 ->  | J37: =DCF!N22 ->  | K37: =DCF!O22 ->  | L37: =DCF!P22 ->  | M37: =DCF!Q22 ->  | N37: =DCF!R22 -> 
B39: Unlevered Free Cash Flow | D39: =DCF!H31 -> 0 | E39: =DCF!I31 ->  | F39: =DCF!J31 ->  | G39: =DCF!K31 ->  | H39: =DCF!L31 ->  | I39: =DCF!M31 ->  | J39: =DCF!N31 ->  | K39: =DCF!O31 ->  | L39: =DCF!P31 ->  | M39: =DCF!Q31 ->  | N39: =DCF!R31 -> 
B41: ADD: Beginning Cash Balance | D41: - | E41: =D46 -> 0 | F41: =E46 -> 
B42: LESS: Minimum Cash Balance | D42: - | E42: =N9*E37 ->  | F42: =O9*F37 -> 
B43: CF for Debt Service | E43: =E39+E41-E42 ->  | F43: =F39+F41-F42 -> 
B45: Debt Balance | D45: =N16 -> 0 | E45: =D45-E43 ->  | F45: =E45-F43 -> 
B46: Cash Balance | D46: =N27 -> 0 | E46: =D46+E39+(E45-D45) ->  | F46: =E46+F39+(F45-E45) -> 
B47: Equity Balance | D47: =G26 -> 2911481.77 | E47: =D47+Operating_Model!I105 ->  | F47: =E47+Operating_Model!J105 ->  | G47: =F47+Operating_Model!K105 ->  | H47: =G47+Operating_Model!L105 ->  | I47: =H47+Operating_Model!M105 ->  | J47: =I47+Operating_Model!N105 ->  | K47: =J47+Operating_Model!O105 ->  | L47: =K47+Operating_Model!P105 ->  | M47: =L47+Operating_Model!Q105 ->  | N47: =M47+Operating_Model!R105 -> 
B49: Invested Capital | D49: =D45+D47 -> 2911481.77 | E49: =E45+E47 -> 
B50: EBI | D50: =DCF!H27 -> 0 | E50: =DCF!I27 ->  | F50: =DCF!J27 ->  | G50: =DCF!K27 ->  | H50: =DCF!L27 ->  | I50: =DCF!M27 ->  | J50: =DCF!N27 ->  | K50: =DCF!O27 ->  | L50: =DCF!P27 ->  | M50: =DCF!Q27 ->  | N50: =DCF!R27 -> 
B51: ROIC | D51: - | E51: =E50/(AVERAGE(D49:E49)) ->  | F51: =F50/(AVERAGE(E49:F49)) -> 
B53: Exit Enterprise Value | D53: - | E53: =E37*G18 ->  | F53: =F37*H18 -> 
B54: LESS: Debt | D54: - | E54: =E45 ->  | F54: =F45 -> 
B55: ADD: Cash | D55: - | E55: =E46 ->  | F55: =F46 -> 
B56: Exit Equity Value | D56: =-G26 -> -2911481.77 | E56: =(E53-E54+E55)*E58 ->  | F56: =(F53-F54+F55)*F58 -> 
B58: Exit Year | D58: - | E58: =IF(E35=$N8, 1,0) -> 0 | F58: =IF(F35=$N8, 1,0) -> 0 | G58: 0 | H58: 0 | I58: 0 | J58: 0 | K58: 0 | L58: 0 | M58: 0 | N58: 0
B59: MOIC | D59: - | E59: =(E56/-D56) ->  | F59: =(F56/-E56) -> 
L61: IRR | N61: =XIRR(E56:N56,E34:N34) -> 
L62: MOIC | N62: =SUM(E59:N59) -> 

Sheet Merger
B2: General Information
B3: Acquirer Name | F3: =Hub!T42 -> METRO INC.
B5: =TEXT(F3,) &" - Current Share Price" -> METRO INC. - Current Share Price | F5: =Hub!T45 -> 74.71
B6: =DCF!B2 &" - Current Share Price" -> APPLE INC. - Current Share Price | F6: =DCF!M11 -> 189.87
B7: Transaction Costs | F7: =Hub!T50 -> 0
B9: =TEXT(F3,) & " - Cash " & DCF!H15 & "A" -> METRO INC. - Cash 2023A | F9: =Hub!T51 -> 0
B11: Target leverage | F11: =Hub!T52 -> 0
B12: All-In Interest Rate | F12: =LBO!N17 -> 0
G13: Purchase Price
G15: Take-Out Price | J15: =Hub!T48 -> 0
G16: Premium | J16: =(J15-F6)/F6 -> -1
G17: Shares Outstanding | J17: =DCF!M10 -> 15334.08
G18: Take-Out Equity Value | J18: =J15*J17 -> 0
G20: Debt | J20: =Debt_Schedule!Y41 -> 0
G21: Cash | J21: =Net_Working_Capital!H7 -> 0
G22: Take-Out Enterprise Value | J22: =J18+J20-J21 -> 0
G23: Take-Out EV/LTM EBITDA | J23: =J22/LBO!D37 -> 
K24: Combined Debt Capacity
K26: =TEXT(F3,) &" EBITDA - " & LBO!E34 & "E" -> METRO INC. EBITDA - 2024E | P26: =Hub!T53 -> 0
K27: =DCF!B2 &" EBITDA - " & LBO!E34 & "E" -> APPLE INC. EBITDA - 2024E | P27: =DCF!I22 -> 
K28: Pro Forma EBITDA | P28: =P26+P27 -> 
K30: Maximum Leverage | P30: =F11 -> 0
K31: Total Net Debt Capacity | P31: =P28*P30 -> 
K33: =TEXT(F3,) & " Debt - " & DCF!H15 & "A" -> METRO INC. Debt - 2023A | P33: =Hub!T54 -> 0
K34: =TEXT(F3,) & " Cash - " & DCF!H15 & "A (Outside Transaction)" -> METRO INC. Cash - 2023A (Outside Transaction) | P34: =F9*(1-Z44) -> 0
K35: =DCF!B2 & " Debt" -> APPLE INC. Debt | P35: =Debt_Schedule!Y41 -> 0
K36: =DCF!B2 & " Rolled Cash" -> APPLE INC. Rolled Cash | P36: =Net_Working_Capital!H7*(1-Z46) -> 0
K38: Combined Debt | P38: =P36+P35 -> 0
K39: Maximum External Debt Capacity | P39: =P31-P38 -> 
Q40: Sources and Uses
Q42: Uses | V42: Sources
Q43: Take-Out Equity Value | T43: =J18 -> 0 | V43: =TEXT(F3,) & " Cash For Transaction" -> METRO INC. Cash For Transaction | Z43: =Z44*F9 -> 0
Q44: =DCF!B2 & " Debt" -> APPLE INC. Debt | T44: =Debt_Schedule!Y41 -> 0 | V44: % of Total Cash
Q45: Transaction Costs | T45: =F7*J22 -> 0 | V45: =DCF!B2 & " Cash For Transaction" -> APPLE INC. Cash For Transaction | Z45: =Net_Working_Capital!H7*Z46 -> 0
Q46: Total Uses | T46: =SUM(T43:T45) -> 0 | V46: % of Total Cash
V47: =DCF!B2 & " Debt" -> APPLE INC. Debt | Z47: =Debt_Schedule!Y41 -> 0
V48: New Debt | Z48: =P39 -> 
V49: ="Equity to " & DCF!B2 & " Shareholders" -> Equity to APPLE INC. Shareholders | Z49: =Z50-Z48-Z47+Z45-Z43 -> 
V50: Total Sources | Z50: =T46 -> 0
AA51: Stock Exchange
AA53: =DCF!B2 & " Equity Take-Out" -> APPLE INC. Equity Take-Out | AG53: =J18 -> 0
AA54: Total Share Consideration | AG54: =Z49 -> 
AA55: ="% Equity Issued to " & DCF!B2 -> % Equity Issued to APPLE INC. | AG55: =AG54/AG53 -> 
AA56: Total Cash Consideration | AG56: =AG53-AG54 -> 
AA58: Offer Price | AG58: =J15 -> 0
AA59: =F3 & " Share Price" -> METRO INC. Share Price | AG59: =Hub!T45 -> 74.71
AA60: Exchange Ratio | AG60: =AG59/AG58 -> 
AA61: Actual Exchange Ratio | AG61: =AG60*AG55 -> 
AA62: =DCF!B2 & " Shares Outstanding" -> APPLE INC. Shares Outstanding | AG62: =DCF!M10 -> 15334.08
AA63: ="Shares Issued to " & DCF!B2 & " Shareholders" -> Shares Issued to APPLE INC. Shareholders | AG63: =AG62*AG61 -> 
AH64: Accretion/Dilution
AL66: =DCF!I15 -> 2024 | AM66: =DCF!J15 -> 2025 | AN66: =DCF!K15 -> 2026
AH67: =F3 & " Diluted EPS" -> METRO INC. Diluted EPS
AH68: =F3 & " Diluted S/O" -> METRO INC. Diluted S/O
AH69: Acquirer Net Income
AH71: =DCF!B2 & " EBITDA" -> APPLE INC. EBITDA | AL71: =DCF!I22 ->  | AM71: =DCF!J22 ->  | AN71: =DCF!K22 -> 
AH72: Synergies | AL72: =DCF_Synergies!I23-DCF!I22 ->  | AM72: =DCF_Synergies!J23-DCF!J22 ->  | AN72: =DCF_Synergies!K23-DCF!K22 -> 
AH73: Integration Costs
AH74: Increased Interest Expense | AL74: =F12*(P35+Z48) ->  | AM74: =AL74 ->  | AN74: =AM74 -> 
AH75: D&A | AL75: =DCF_Synergies!I29 ->  | AM75: =DCF_Synergies!J29 ->  | AN75: =DCF_Synergies!K29 -> 
AH76: Incremental EBT | AL76: =AL71+AL72-AL73-AL74-AL75 ->  | AM76: =AM71+AM72-AM73-AM74-AM75 -> 
AH77: Taxes | AL77: =AL76*Hub!$T48 ->  | AM77: =AM76*Hub!$T48 ->  | AN77: =AN76*Hub!$T48 -> 
AH78: Incremental Net Income | AL78: =AL76-AL77 ->  | AM78: =AM76-AM77 -> 
AH80: Pro Forma Net Income | AL80: =AL69+AL78 ->  | AM80: =AM69+AM78 -> 
AH81: Pro Forma Acquirer Diluted S/O | AL81: =AL68+$AG63 ->  | AM81: =AM68+$AG63 ->  | AN81: =AN68+$AG63 -> 
AH82: Pro Forma EPS | AL82: =AL80/AL81 ->  | AM82: =AM80/AM81 -> 
AH84: Accretion/(Dilution) - $ | AL84: =AL82-AL67 ->  | AM84: =AM82-AM67 ->  | AN84: =AN82-AN67 -> 
AH85: Accretion/(Dilution) - % | AL85: =(AL84-AL67)/AL67 ->  | AM85: =(AM84-AM67)/AM67 -> 
AH87: Pro Forma Balance Sheet (Excluding Synergies)
AL89: Acquirer | AM89: Adj. | AN89: PF
AH90: ="Debt - " & DCF!I15 & "E" -> Debt - 2024E | AL90: =P33 -> 0 | AM90: =Z47+Z48 ->  | AN90: =AL90+AM90 -> 
AH91: ="Cash - " & DCF!I15 & "E" -> Cash - 2024E | AL91: =F9 -> 0 | AM91: =Z43-Z45 -> 0 | AN91: =AL91+AM91 -> 0
AH92: ="Net Debt - " & DCF!I15 & "E" -> Net Debt - 2024E | AL92: =AL90-AL91 -> 0 | AM92: =AM90-AM91 -> 
AH94: ="EBITDA - " & DCF!I15 & "E" -> EBITDA - 2024E | AL94: =P26 -> 0 | AM94: =P27 ->  | AN94: =AL94+AM94 -> 
AH95: Net Debt/EBITDA | AL95: =AL92/AL94 ->  | AM95: =AM92/AM94 -> 
AH97: ="FY" & DCF!K15 & "E Accretion/Dilution Sensitivity Analysis" -> FY2026E Accretion/Dilution Sensitivity Analysis
AL99: Synergies
AJ100: =AK100-5 ->  | AK100: =AL100-5 ->  | AL100: =AN72 ->  | AM100: =AL100+5 ->  | AN100: =AM100+5 -> 
AI101: =AI102-1 -> -2 | AJ101: =(((($AN$71+AJ$100-$AN$73-$AN$74-$AN$75)*(1-DCF!$C$11))+$AN$69)/($AN$68+(((($AI101*$J$17)+$T$44+$T$45-$Z$43+$Z$45-$Z$47-$Z$48)/($AI101*$J$17))*($AI101/$AG$59)*$AG$62)))-$AN$67 ->  | AK101: =(((($AN$71+AK$100-$AN$73-$AN$74-$AN$75)*(1-DCF!$C$11))+$AN$69)/($AN$68+(((($AI101*$J$17)+$T$44+$T$45-$Z$43+$Z$45-$Z$47-$Z$48)/($AI101*$J$17))*($AI101/$AG$59)*$AG$62)))-$AN$67 ->  | AL101: =(((($AN$71+AL$100-$AN$73-$AN$74-$AN$75)*(1-DCF!$C$11))+$AN$69)/($AN$68+(((($AI101*$J$17)+$T$44+$T$45-$Z$43+$Z$45-$Z$47-$Z$48)/($AI101*$J$17))*($AI101/$AG$59)*$AG$62)))-$AN$67 ->  | AM101: =(((($AN$71+AM$100-$AN$73-$AN$74-$AN$75)*(1-DCF!$C$11))+$AN$69)/($AN$68+(((($AI101*$J$17)+$T$44+$T$45-$Z$43+$Z$45-$Z$47-$Z$48)/($AI101*$J$17))*($AI101/$AG$59)*$AG$62)))-$AN$67 ->  | AN101: =(((($AN$71+AN$100-$AN$73-$AN$74-$AN$75)*(1-DCF!$C$11))+$AN$69)/($AN$68+(((($AI101*$J$17)+$T$44+$T$45-$Z$43+$Z$45-$Z$47-$Z$48)/($AI101*$J$17))*($AI101/$AG$59)*$AG$62)))-$AN$67 -> 
AH102: Take | AI102: =AI103-1 -> -1 | AJ102: =(((($AN$71+AJ$100-$AN$73-$AN$74-$AN$75)*(1-DCF!$C$11))+$AN$69)/($AN$68+(((($AI102*$J$17)+$T$44+$T$45-$Z$43+$Z$45-$Z$47-$Z$48)/($AI102*$J$17))*($AI102/$AG$59)*$AG$62)))-$AN$67 ->  | AK102: =(((($AN$71+AK$100-$AN$73-$AN$74-$AN$75)*(1-DCF!$C$11))+$AN$69)/($AN$68+(((($AI102*$J$17)+$T$44+$T$45-$Z$43+$Z$45-$Z$47-$Z$48)/($AI102*$J$17))*($AI102/$AG$59)*$AG$62)))-$AN$67 ->  | AL102: =(((($AN$71+AL$100-$AN$73-$AN$74-$AN$75)*(1-DCF!$C$11))+$AN$69)/($AN$68+(((($AI102*$J$17)+$T$44+$T$45-$Z$43+$Z$45-$Z$47-$Z$48)/($AI102*$J$17))*($AI102/$AG$59)*$AG$62)))-$AN$67 ->  | AM102: =(((($AN$71+AM$100-$AN$73-$AN$74-$AN$75)*(1-DCF!$C$11))+$AN$69)/($AN$68+(((($AI102*$J$17)+$T$44+$T$45-$Z$43+$Z$45-$Z$47-$Z$48)/($AI102*$J$17))*($AI102/$AG$59)*$AG$62)))-$AN$67 ->  | AN102: =(((($AN$71+AN$100-$AN$73-$AN$74-$AN$75)*(1-DCF!$C$11))+$AN$69)/($AN$68+(((($AI102*$J$17)+$T$44+$T$45-$Z$43+$Z$45-$Z$47-$Z$48)/($AI102*$J$17))*($AI102/$AG$59)*$AG$62)))-$AN$67 -> 
AH103: Out | AI103: =J15 -> 0 | AJ103: =(((($AN$71+AJ$100-$AN$73-$AN$74-$AN$75)*(1-DCF!$C$11))+$AN$69)/($AN$68+(((($AI103*$J$17)+$T$44+$T$45-$Z$43+$Z$45-$Z$47-$Z$48)/($AI103*$J$17))*($AI103/$AG$59)*$AG$62)))-$AN$67 ->  | AK103: =(((($AN$71+AK$100-$AN$73-$AN$74-$AN$75)*(1-DCF!$C$11))+$AN$69)/($AN$68+(((($AI103*$J$17)+$T$44+$T$45-$Z$43+$Z$45-$Z$47-$Z$48)/($AI103*$J$17))*($AI103/$AG$59)*$AG$62)))-$AN$67 ->  | AL103: =(((($AN$71+AL$100-$AN$73-$AN$74-$AN$75)*(1-DCF!$C$11))+$AN$69)/($AN$68+(((($AI103*$J$17)+$T$44+$T$45-$Z$43+$Z$45-$Z$47-$Z$48)/($AI103*$J$17))*($AI103/$AG$59)*$AG$62)))-$AN$67 ->  | AM103: =(((($AN$71+AM$100-$AN$73-$AN$74-$AN$75)*(1-DCF!$C$11))+$AN$69)/($AN$68+(((($AI103*$J$17)+$T$44+$T$45-$Z$43+$Z$45-$Z$47-$Z$48)/($AI103*$J$17))*($AI103/$AG$59)*$AG$62)))-$AN$67 ->  | AN103: =(((($AN$71+AN$100-$AN$73-$AN$74-$AN$75)*(1-DCF!$C$11))+$AN$69)/($AN$68+(((($AI103*$J$17)+$T$44+$T$45-$Z$43+$Z$45-$Z$47-$Z$48)/($AI103*$J$17))*($AI103/$AG$59)*$AG$62)))-$AN$67 -> 
AH104: Price | AI104: =AI103+1 -> 1 | AJ104: =(((($AN$71+AJ$100-$AN$73-$AN$74-$AN$75)*(1-DCF!$C$11))+$AN$69)/($AN$68+(((($AI104*$J$17)+$T$44+$T$45-$Z$43+$Z$45-$Z$47-$Z$48)/($AI104*$J$17))*($AI104/$AG$59)*$AG$62)))-$AN$67 ->  | AK104: =(((($AN$71+AK$100-$AN$73-$AN$74-$AN$75)*(1-DCF!$C$11))+$AN$69)/($AN$68+(((($AI104*$J$17)+$T$44+$T$45-$Z$43+$Z$45-$Z$47-$Z$48)/($AI104*$J$17))*($AI104/$AG$59)*$AG$62)))-$AN$67 ->  | AL104: =(((($AN$71+AL$100-$AN$73-$AN$74-$AN$75)*(1-DCF!$C$11))+$AN$69)/($AN$68+(((($AI104*$J$17)+$T$44+$T$45-$Z$43+$Z$45-$Z$47-$Z$48)/($AI104*$J$17))*($AI104/$AG$59)*$AG$62)))-$AN$67 ->  | AM104: =(((($AN$71+AM$100-$AN$73-$AN$74-$AN$75)*(1-DCF!$C$11))+$AN$69)/($AN$68+(((($AI104*$J$17)+$T$44+$T$45-$Z$43+$Z$45-$Z$47-$Z$48)/($AI104*$J$17))*($AI104/$AG$59)*$AG$62)))-$AN$67 ->  | AN104: =(((($AN$71+AN$100-$AN$73-$AN$74-$AN$75)*(1-DCF!$C$11))+$AN$69)/($AN$68+(((($AI104*$J$17)+$T$44+$T$45-$Z$43+$Z$45-$Z$47-$Z$48)/($AI104*$J$17))*($AI104/$AG$59)*$AG$62)))-$AN$67 -> 
AI105: =AI104+1 -> 2 | AJ105: =(((($AN$71+AJ$100-$AN$73-$AN$74-$AN$75)*(1-DCF!$C$11))+$AN$69)/($AN$68+(((($AI105*$J$17)+$T$44+$T$45-$Z$43+$Z$45-$Z$47-$Z$48)/($AI105*$J$17))*($AI105/$AG$59)*$AG$62)))-$AN$67 ->  | AK105: =(((($AN$71+AK$100-$AN$73-$AN$74-$AN$75)*(1-DCF!$C$11))+$AN$69)/($AN$68+(((($AI105*$J$17)+$T$44+$T$45-$Z$43+$Z$45-$Z$47-$Z$48)/($AI105*$J$17))*($AI105/$AG$59)*$AG$62)))-$AN$67 ->  | AL105: =(((($AN$71+AL$100-$AN$73-$AN$74-$AN$75)*(1-DCF!$C$11))+$AN$69)/($AN$68+(((($AI105*$J$17)+$T$44+$T$45-$Z$43+$Z$45-$Z$47-$Z$48)/($AI105*$J$17))*($AI105/$AG$59)*$AG$62)))-$AN$67 ->  | AM105: =(((($AN$71+AM$100-$AN$73-$AN$74-$AN$75)*(1-DCF!$C$11))+$AN$69)/($AN$68+(((($AI105*$J$17)+$T$44+$T$45-$Z$43+$Z$45-$Z$47-$Z$48)/($AI105*$J$17))*($AI105/$AG$59)*$AG$62)))-$AN$67 ->  | AN105: =(((($AN$71+AN$100-$AN$73-$AN$74-$AN$75)*(1-DCF!$C$11))+$AN$69)/($AN$68+(((($AI105*$J$17)+$T$44+$T$45-$Z$43+$Z$45-$Z$47-$Z$48)/($AI105*$J$17))*($AI105/$AG$59)*$AG$62)))-$AN$67 -> 

Sheet LBO_Extras --->

Sheet DCF_Synergies
B2: =IF(Hub!N4="No", Hub!R6, Hub!D6) -> APPLE INC. | C2: Discounted Cash Flow Analysis (With Synergies)
B3: All Figures in USD$ Millions, expect for per share data
B4: Fiscal Year Ending December 31 | G4: =IF(Dashboard!I3="Yes", "Dashboard Master Override Enabled", "Dashboard Master Override Disabled") -> Dashboard Master Override Disabled
B7: Assumptions & Inputs
B9: Valuation Date | C9: =IF(ISBLANK(Hub!D10), TODAY(), Hub!D10) -> 2024-05-19 | E9: Latest Yearly EBITDA | H9: =H23 -> 0 | J9: Perpetual Growth Rate | M9: =IF(Dashboard!I3="Yes", Dashboard!E8, Hub!D22) -> 0
B10: Latest Fiscal Year Date | C10: =IF(ISBLANK(Hub!D11), DATE(YEAR(C9)-1,12,31),Hub!D11) -> 2023-12-31 | E10: Terminal EBITDA multiple | H10: =IF(Dashboard!I3="Yes", Dashboard!E9, IF(Hub!H24="Yes", ((M10*M11-Net_Working_Capital!H7+Debt_Schedule!Y41)/H23), Hub!D21)) -> 0 | J10: Outstanding Shares | M10: =IF(Dashboard!I3="YES", Dashboard!J8, IF(Hub!N4="No", Hub!V7, Hub!H7)) -> 15334.08
B11: Tax Rate | C11: =Hub!H10 -> 0.21 | E11: WACC | H11: =IF(Dashboard!I3="Yes", Dashboard!E6, IF(ISBLANK(Hub!D44), WACC_Calculator!D4, Hub!D44)) ->  | J11: Share Price at Valuation | M11: =IF(Hub!N4="No", Hub!V6, Hub!H6) -> 189.87
B12: Average Inflation Rate | C12: =IF(Dashboard!I3="Yes", Dashboard!J7, Hub!H23) -> 0 | E12: Terminal Year WACC | H12: =IF(Dashboard!I3="Yes", Dashboard!E7, IF(ISBLANK(Hub!D45), IF(ISBLANK(Hub!D44), WACC_Calculator!D4, Hub!D44), Hub!D45)) ->  | J12: Risk Free Rate | M12: =IF(Dashboard!I3="YES", Dashboard!J6, Hub!H22) -> 0
B13: Revenue Synergy Increase | C13: =IF(Dashboard!I3="Yes", Dashboard!O6, Hub!T23) -> 0 | E13: COGS Synergy Decrease | H13: =IF(Dashboard!I3="Yes", Dashboard!O7, Hub!T24) -> 0 | J13: FE Synergy Decrease | M13: =IF(Dashboard!I3="Yes", Dashboard!O8, Hub!T25) -> 0
F15: Actuals | M15: Forecast
D16: =YEAR(D17) -> 2019 | E16: =YEAR(E17) -> 2020 | F16: 2021 | G16: 2022 | H16: 2023 | I16: =YEAR(I17) -> 2024 | J16: =YEAR(J17) -> 2025 | K16: 2026 | L16: 2027 | M16: 2028 | N16: 2029 | O16: 2030 | P16: 2031 | Q16: 2032 | R16: 2033
D17: =EOMONTH(E17,-12) -> 2019-12-31 | E17: 2020-12-31 | F17: 2021-12-31 | G17: =EOMONTH(H17,-12) -> 2022-12-31 | H17: =C10 -> 2023-12-31 | I17: =EOMONTH(H17,12) -> 2024-12-31 | J17: =EOMONTH(I17,12) -> 2025-12-31 | K17: 2026-12-31 | L17: 2027-12-31 | M17: 2028-12-31 | N17: =EOMONTH(M17,12) -> 2029-12-31 | O17: =EOMONTH(N17,12) -> 2030-12-31 | P17: =EOMONTH(O17,12) -> 2031-12-31 | Q17: =EOMONTH(P17,12) -> 2032-12-31 | R17: =EOMONTH(Q17,12) -> 2033-12-31
B18: Discounted Cash Flow
B20: Revenue | D20: =Revenue_Build!C36 -> 0 | E20: =Revenue_Build!D36 -> 0 | F20: =Revenue_Build!E36 -> 0 | G20: =Revenue_Build!F36 -> 0 | H20: =Revenue_Build!G36 -> 0 | I20: =Revenue_Build!H36*(1+$C13) -> 0 | J20: =Revenue_Build!I36*(1+$C13) -> 0 | K20: =Revenue_Build!J36*(1+$C13) -> 0 | L20: =Revenue_Build!K36*(1+$C13) -> 0 | M20: =Revenue_Build!L36*(1+$C13) -> 0 | N20: =Revenue_Build!M36*(1+$C13) -> 0 | O20: =Revenue_Build!N36*(1+$C13) -> 0 | P20: =Revenue_Build!O36*(1+$C13) -> 0 | Q20: =Revenue_Build!P36*(1+$C13) -> 0 | R20: =Revenue_Build!Q36*(1+$C13) -> 0
B21: YoY Growth | D21: - | E21: =(E20-D20)/D20 ->  | F21: =(F20-E20)/E20 ->  | N21: =(N20-M20)/M20 ->  | O21: =(O20-N20)/N20 ->  | P21: =(P20-O20)/O20 ->  | Q21: =(Q20-P20)/P20 ->  | R21: =(R20-Q20)/Q20 -> 
B23: Adj. EBIDTA | D23: =Operating_Model!D76 -> 0 | E23: =Operating_Model!E76 -> 0 | F23: =Operating_Model!F76 -> 0 | G23: =Operating_Model!G76 -> 0 | H23: =Operating_Model!H76 -> 0 | I23: =DCF_Synergies!I20-((Operating_Model!I48+Operating_Model!I51)*(1-DCF_Synergies!$H13)+(Operating_Model!I59+Operating_Model!I62+Operating_Model!I65)*(1-DCF_Synergies!$M13))+Operating_Model!I71 ->  | J23: =DCF_Synergies!J20-((Operating_Model!J48+Operating_Model!J51)*(1-DCF_Synergies!$H13)+(Operating_Model!J59+Operating_Model!J62+Operating_Model!J65)*(1-DCF_Synergies!$M13))+Operating_Model!J71 ->  | K23: =DCF_Synergies!K20-((Operating_Model!K48+Operating_Model!K51)*(1-DCF_Synergies!$H13)+(Operating_Model!K59+Operating_Model!K62+Operating_Model!K65)*(1-DCF_Synergies!$M13))+Operating_Model!K71 ->  | L23: =DCF_Synergies!L20-((Operating_Model!L48+Operating_Model!L51)*(1-DCF_Synergies!$H13)+(Operating_Model!L59+Operating_Model!L62+Operating_Model!L65)*(1-DCF_Synergies!$M13))+Operating_Model!L71 ->  | M23: =DCF_Synergies!M20-((Operating_Model!M48+Operating_Model!M51)*(1-DCF_Synergies!$H13)+(Operating_Model!M59+Operating_Model!M62+Operating_Model!M65)*(1-DCF_Synergies!$M13))+Operating_Model!M71 ->  | N23: =DCF_Synergies!N20-((Operating_Model!N48+Operating_Model!N51)*(1-DCF_Synergies!$H13)+(Operating_Model!N59+Operating_Model!N62+Operating_Model!N65)*(1-DCF_Synergies!$M13))+Operating_Model!N71 ->  | O23: =DCF_Synergies!O20-((Operating_Model!O48+Operating_Model!O51)*(1-DCF_Synergies!$H13)+(Operating_Model!O59+Operating_Model!O62+Operating_Model!O65)*(1-DCF_Synergies!$M13))+Operating_Model!O71 ->  | P23: =DCF_Synergies!P20-((Operating_Model!P48+Operating_Model!P51)*(1-DCF_Synergies!$H13)+(Operating_Model!P59+Operating_Model!P62+Operating_Model!P65)*(1-DCF_Synergies!$M13))+Operating_Model!P71 ->  | Q23: =DCF_Synergies!Q20-((Operating_Model!Q48+Operating_Model!Q51)*(1-DCF_Synergies!$H13)+(Operating_Model!Q59+Operating_Model!Q62+Operating_Model!Q65)*(1-DCF_Synergies!$M13))+Operating_Model!Q71 ->  | R23: =DCF_Synergies!R20-((Operating_Model!R48+Operating_Model!R51)*(1-DCF_Synergies!$H13)+(Operating_Model!R59+Operating_Model!R62+Operating_Model!R65)*(1-DCF_Synergies!$M13))+Operating_Model!R71 -> 
B24: %Margin | D24: =D23/D20 ->  | N24: =N23/N20 -> 
B25: LESS: D&A - Other | D25: =Operating_Model!D83 -> 0 | E25: =Operating_Model!E83 -> 0 | F25: =Operating_Model!F83 -> 0 | G25: =Operating_Model!G83 -> 0 | H25: =Operating_Model!H83 -> 0 | I25: =Operating_Model!I83 ->  | J25: =Operating_Model!J83 ->  | K25: =Operating_Model!K83 ->  | L25: =Operating_Model!L83 ->  | M25: =Operating_Model!M83 ->  | N25: =Operating_Model!N83 ->  | O25: =Operating_Model!O83 ->  | P25: =Operating_Model!P83 ->  | Q25: =Operating_Model!Q83 ->  | R25: =Operating_Model!R83 -> 
B26: Adj. EBIT | D26: =D23-D25 -> 0 | E26: =E23-E25 -> 0 | F26: 0 | G26: 0 | H26: 0 | I26: =I23-I25 ->  | N26: =N23-N25 -> 
B27: Income Taxes | D27: =Operating_Model!D101 -> 0 | E27: =Operating_Model!E101 -> 0 | F27: =Operating_Model!F101 -> 0 | G27: =Operating_Model!G101 -> 0 | H27: =Operating_Model!H101 -> 0 | I27: =(I26-Operating_Model!I91)*DCF_Synergies!$C11 ->  | J27: =(J26-Operating_Model!J91)*DCF_Synergies!$C11 ->  | K27: =(K26-Operating_Model!K91)*DCF_Synergies!$C11 ->  | L27: =(L26-Operating_Model!L91)*DCF_Synergies!$C11 ->  | M27: =(M26-Operating_Model!M91)*DCF_Synergies!$C11 ->  | N27: =(N26-Operating_Model!N91)*DCF_Synergies!$C11 ->  | O27: =(O26-Operating_Model!O91)*DCF_Synergies!$C11 ->  | P27: =(P26-Operating_Model!P91)*DCF_Synergies!$C11 ->  | Q27: =(Q26-Operating_Model!Q91)*DCF_Synergies!$C11 ->  | R27: =(R26-Operating_Model!R91)*DCF_Synergies!$C11 -> 
B28: Adj. Unlevered Net Income | D28: =D26-D27 -> 0 | E28: =E26-E27 -> 0 | F28: 0 | G28: 0 | H28: 0 | I28: =I26-I27 ->  | N28: =N26-N27 -> 
B29: ADD: D&A -Other | D29: =D25 -> 0 | E29: =E25 -> 0 | F29: 0 | G29: 0 | H29: 0 | N29: =N25 -> 
B30: LESS: CapEx | D30: =DCF!D29 -> 0 | E30: =DCF!E29 -> 0 | F30: =DCF!F29 -> 0 | G30: =DCF!G29 -> 0 | H30: =DCF!H29 -> 0 | I30: ='D&A+CAPEX'!I43 ->  | J30: ='D&A+CAPEX'!J43 ->  | K30: ='D&A+CAPEX'!K43 ->  | L30: ='D&A+CAPEX'!L43 ->  | M30: ='D&A+CAPEX'!M43 ->  | N30: ='D&A+CAPEX'!N43 ->  | O30: ='D&A+CAPEX'!O43 ->  | P30: ='D&A+CAPEX'!P43 ->  | Q30: ='D&A+CAPEX'!Q43 ->  | R30: ='D&A+CAPEX'!R43 -> 
B31: LESS: ΔNWC | D31: =Net_Working_Capital!D23 -> 0 | E31: =Net_Working_Capital!E23 -> 0 | F31: =Net_Working_Capital!F23 -> 0 | G31: =Net_Working_Capital!G23 -> 0 | H31: =Net_Working_Capital!H23 -> 0 | I31: =Net_Working_Capital!I23 ->  | J31: =Net_Working_Capital!J23 ->  | K31: =Net_Working_Capital!K23 ->  | L31: =Net_Working_Capital!L23 ->  | M31: =Net_Working_Capital!M23 ->  | N31: =Net_Working_Capital!N23 ->  | O31: =Net_Working_Capital!O23 ->  | P31: =Net_Working_Capital!P23 ->  | Q31: =Net_Working_Capital!Q23 ->  | R31: =Net_Working_Capital!R23 -> 
B32: Unlevered Free Cash Flow | D32: =D28+D29-D30-D31 -> 0 | E32: 0 | F32: 0 | G32: 0 | H32: =H28+H29-H30-H31 -> 0 | I32: =I28+I29-I30-I31 ->  | N32: =N28+N29-N30-N31 -> 
B33: Valuation Timing Factor | I33: =1/((1+$H$11)^((I$17-$C$9)/365)) ->  | J33: =1/((1+$H$11)^((J$17-$C$9)/365)) ->  | M33: =1/((1+$H$11)^((M$17-$C$9)/365)) ->  | N33: =1/((1+$H$11)^((N$17-$C$9)/365)) -> 
B34: Discount Rate | C34: =H11 -> 
B35: PV of Unlevered Free Cash Flow | I35: =I32*I33 ->  | J35: =J32*J33 -> 
S37: Exit Multiple Sensitivities
B38: SUM of PV of Unlevered FCF | C38: =SUM(I35:M35) -> 
W39: Implied Equity Value
B40: Implied Share Price - Exit Multiple | W40: WACC
B41: Exit Multiple | C41: =H10 -> 0 | T41: =E42 -> 0 | U41: =V41-0.005 ->  | W41: =H11 ->  | X41: =W41+0.005 -> 
B42: Terminal Value | C42: =M23*H10 ->  | T42: =T43-0.5 -> -1 | U42: =(SUM($I$35:$M$35))+($T42*$M$23*(1/((1+U$41)^(($M$17-$C$9)/365))))-$C$45+$C$46 -> 
B43: PV of Terminal Value | C43: =C42*M33 ->  | S43: Terminal | T43: -0.5
B44: Implied Enterprise Value | C44: =C43+C38 ->  | S44: Multiple | T44: =H10 -> 0
B45: LESS: Debt | C45: =WACC_Calculator!L8 -> 0 | S45: (x) | T45: =T44+0.5 -> 0.5
B46: ADD: Cash | C46: =Net_Working_Capital!H7 -> 0 | T46: 1
B47: Implied Equity Value | C47: =C44-C45+C46 -> 
B48: F.D. Share O/S | C48: =M10 -> 15334.08 | W48: Implied Equity Value Change
B49: Implied Share Value | C49: =C47/C48 ->  | W49: WACC
B50: Implied Upside/(Downside) | C50: =(C49-M11)/M11 ->  | T50: =E48 -> 0 | U50: =V50-0.005 ->  | W50: =W41 ->  | X50: =W50+0.005 -> 
T51: =T52-0.5 -> -1 | U51: =(U42-$C$47)/$C$47 ->  | X51: =(X42-$C$47)/$C$47 -> 
S52: Terminal | T52: -0.5
S53: Multiple | T53: =T44 -> 0 | W53: =(W44-$C$47)/$C$47 -> 
B54: Implied Share Price - PGG | S54: (x) | T54: =T53+0.5 -> 0.5
B55: Perpetual Growth Rate | C55: =M9 -> 0 | T55: 1
B56: Sum of PV of Unlevered FCF | C56: =C38 -> 
B57: PV of Terminal Value | C57: =(((M32)*(1+M9))/(H12-M9))*M33 ->  | S57: Perpetual Growth Rate Sensitivities
B58: Implied Enterprise Value | C58: =C56+C57 -> 
B59: LESS: Debt | C59: =WACC_Calculator!L8 -> 0 | W59: Implied Equity Value
B60: ADD: Cash | C60: =C46 -> 0 | W60: WACC
B61: Implied Equity Value | C61: =C58-C59+C60 ->  | T61: =E65 -> 0 | U61: =V61-0.005 ->  | W61: =W41 ->  | X61: =W61+0.005 ->  | Y61: =X61+0.005 -> 
B62: F.D. Share O/S | C62: =M10 -> 15334.08 | T62: =T63-0.005 -> -0.01 | U62: =(SUM($I$35:$M$35))+((($M$32*(1+$T62))/(U$61-$T62))*(1/((1+U$61)^(($M$17-$C$9)/365))))-$C$45+$C$46 -> 
B63: Implied Share Value | C63: =C61/C62 ->  | S63: Perpetual | T63: =T64-0.005 -> -0.005
B64: Implied Upside/(Downside) | C64: =(C63-M11)/M11 ->  | S64: Growth | T64: =M9 -> 0
S65: Rate | T65: =T64+0.005 -> 0.005
T66: =T65+0.005 -> 0.01
W68: Implied Equity Value Change
W69: WACC
T70: =E71 -> 0 | U70: =V70-0.005 ->  | W70: =W41 ->  | X70: =W70+0.005 -> 
T71: =T72-0.005 -> -0.01 | U71: =(U62-$C$61)/$C$61 -> 
S72: Perpetual | T72: =T73-0.005 -> -0.005
S73: Growth | T73: =T64 -> 0 | V73: =(V64-$C$61)/$C$61 ->  | W73: =(W64-$C$61)/$C$61 ->  | Y73: =(Y64-$C$61)/$C$61 -> 
S74: Rate | T74: =T73+0.005 -> 0.005
T75: =T74+0.005 -> 0.01

Sheet Main_Components --->

Sheet Operating_Model
B2: =DCF!B2 -> APPLE INC. | C2: Operating Model
B3: All Figures in USD$ Millions, expect for per share data
B4: Fiscal Year Ending December 31
F6: Actuals | M6: Forecast
D7: =YEAR(D8) -> 2019 | E7: =YEAR(E8) -> 2020 | F7: 2021 | G7: 2022 | H7: 2023 | I7: =YEAR(I8) -> 2024 | J7: =YEAR(J8) -> 2025 | K7: 2026 | L7: 2027 | M7: 2028 | N7: 2029 | O7: 2030 | P7: 2031 | Q7: 2032 | R7: 2033
D8: =EOMONTH(E8,-12) -> 2019-12-31 | E8: 2020-12-31 | F8: 2021-12-31 | G8: =EOMONTH(H8,-12) -> 2022-12-31 | H8: =DCF!C10 -> 2023-12-31 | I8: =EOMONTH(H8,12) -> 2024-12-31 | J8: =EOMONTH(I8,12) -> 2025-12-31 | K8: 2026-12-31 | L8: 2027-12-31 | M8: 2028-12-31 | N8: =EOMONTH(M8,12) -> 2029-12-31 | O8: =EOMONTH(N8,12) -> 2030-12-31 | P8: =EOMONTH(O8,12) -> 2031-12-31 | Q8: =EOMONTH(P8,12) -> 2032-12-31 | R8: =EOMONTH(Q8,12) -> 2033-12-31
B10: Global Revenue
B12: Division 1 | D12: =Revenue_Build!C6 -> 0 | E12: =Revenue_Build!D6 -> 0 | F12: =Revenue_Build!E6 -> 0 | G12: =Revenue_Build!F6 -> 0 | H12: =Revenue_Build!G6 -> 0 | I12: =Revenue_Build!H6 ->  | J12: =Revenue_Build!I6 ->  | K12: =Revenue_Build!J6 ->  | L12: =Revenue_Build!K6 ->  | M12: =Revenue_Build!L6 ->  | N12: =Revenue_Build!M6 ->  | O12: =Revenue_Build!N6 ->  | P12: =Revenue_Build!O6 ->  | Q12: =Revenue_Build!P6 ->  | R12: =Revenue_Build!Q6 -> 
B13: YoY Growth | D13: - | E13: =((E12-D12)/D12) ->  | F13: =((F12-E12)/E12) ->  | N13: =((N12-M12)/M12) ->  | O13: =((O12-N12)/N12) ->  | P13: =((P12-O12)/O12) ->  | Q13: =((Q12-P12)/P12) ->  | R13: =((R12-Q12)/Q12) -> 
B15: Division 2 | D15: =Revenue_Build!C9 -> 0 | E15: =Revenue_Build!D9 -> 0 | F15: =Revenue_Build!E9 -> 0 | G15: =Revenue_Build!F9 -> 0 | H15: =Revenue_Build!G9 -> 0 | I15: =Revenue_Build!H9 ->  | J15: =Revenue_Build!I9 ->  | K15: =Revenue_Build!J9 ->  | L15: =Revenue_Build!K9 ->  | M15: =Revenue_Build!L9 ->  | N15: =Revenue_Build!M9 ->  | O15: =Revenue_Build!N9 ->  | P15: =Revenue_Build!O9 ->  | Q15: =Revenue_Build!P9 ->  | R15: =Revenue_Build!Q9 -> 
B16: YoY Growth | D16: - | E16: =((E15-D15)/D15) ->  | F16: =((F15-E15)/E15) ->  | G16: =((G15-F15)/F15) ->  | H16: =((H15-G15)/G15) ->  | I16: =((I15-H15)/H15) ->  | J16: =((J15-I15)/I15) ->  | K16: =((K15-J15)/J15) ->  | L16: =((L15-K15)/K15) ->  | M16: =((M15-L15)/L15) ->  | N16: =((N15-M15)/M15) ->  | O16: =((O15-N15)/N15) ->  | P16: =((P15-O15)/O15) ->  | Q16: =((Q15-P15)/P15) ->  | R16: =((R15-Q15)/Q15) -> 
B18: Division 3 | D18: =Revenue_Build!C12 -> 0 | E18: =Revenue_Build!D12 -> 0 | F18: =Revenue_Build!E12 -> 0 | G18: =Revenue_Build!F12 -> 0 | H18: =Revenue_Build!G12 -> 0 | I18: =Revenue_Build!H12 ->  | J18: =Revenue_Build!I12 ->  | K18: =Revenue_Build!J12 ->  | L18: =Revenue_Build!K12 ->  | M18: =Revenue_Build!L12 ->  | N18: =Revenue_Build!M12 ->  | O18: =Revenue_Build!N12 ->  | P18: =Revenue_Build!O12 ->  | Q18: =Revenue_Build!P12 ->  | R18: =Revenue_Build!Q12 -> 
B19: YoY Growth | D19: - | E19: =((E18-D18)/D18) ->  | F19: =((F18-E18)/E18) ->  | G19: =((G18-F18)/F18) ->  | H19: =((H18-G18)/G18) ->  | I19: =((I18-H18)/H18) ->  | J19: =((J18-I18)/I18) ->  | K19: =((K18-J18)/J18) ->  | L19: =((L18-K18)/K18) ->  | M19: =((M18-L18)/L18) ->  | N19: =((N18-M18)/M18) ->  | O19: =((O18-N18)/N18) ->  | P19: =((P18-O18)/O18) ->  | Q19: =((Q18-P18)/P18) ->  | R19: =((R18-Q18)/Q18) -> 
B21: Division 4 | D21: =Revenue_Build!C15 -> 0 | E21: =Revenue_Build!D15 -> 0 | F21: =Revenue_Build!E15 -> 0 | G21: =Revenue_Build!F15 -> 0 | H21: =Revenue_Build!G15 -> 0 | I21: =Revenue_Build!H15 ->  | J21: =Revenue_Build!I15 ->  | K21: =Revenue_Build!J15 ->  | L21: =Revenue_Build!K15 ->  | M21: =Revenue_Build!L15 ->  | N21: =Revenue_Build!M15 ->  | O21: =Revenue_Build!N15 ->  | P21: =Revenue_Build!O15 ->  | Q21: =Revenue_Build!P15 ->  | R21: =Revenue_Build!Q15 -> 
B22: YoY Growth | D22: - | E22: =((E21-D21)/D21) ->  | F22: =((F21-E21)/E21) ->  | G22: =((G21-F21)/F21) ->  | H22: =((H21-G21)/G21) ->  | I22: =((I21-H21)/H21) ->  | J22: =((J21-I21)/I21) ->  | K22: =((K21-J21)/J21) ->  | L22: =((L21-K21)/K21) ->  | M22: =((M21-L21)/L21) ->  | N22: =((N21-M21)/M21) ->  | O22: =((O21-N21)/N21) ->  | P22: =((P21-O21)/O21) ->  | Q22: =((Q21-P21)/P21) ->  | R22: =((R21-Q21)/Q21) -> 
B24: Division 5 | D24: =Revenue_Build!C18 -> 0 | E24: =Revenue_Build!D18 -> 0 | F24: =Revenue_Build!E18 -> 0 | G24: =Revenue_Build!F18 -> 0 | H24: =Revenue_Build!G18 -> 0 | I24: =Revenue_Build!H18 ->  | J24: =Revenue_Build!I18 ->  | K24: =Revenue_Build!J18 ->  | L24: =Revenue_Build!K18 ->  | M24: =Revenue_Build!L18 ->  | N24: =Revenue_Build!M18 ->  | O24: =Revenue_Build!N18 ->  | P24: =Revenue_Build!O18 ->  | Q24: =Revenue_Build!P18 ->  | R24: =Revenue_Build!Q18 -> 
B25: YoY Growth | D25: - | E25: =((E24-D24)/D24) ->  | F25: =((F24-E24)/E24) ->  | G25: =((G24-F24)/F24) ->  | H25: =((H24-G24)/G24) ->  | I25: =((I24-H24)/H24) ->  | J25: =((J24-I24)/I24) ->  | K25: =((K24-J24)/J24) ->  | L25: =((L24-K24)/K24) ->  | M25: =((M24-L24)/L24) ->  | N25: =((N24-M24)/M24) ->  | O25: =((O24-N24)/N24) ->  | P25: =((P24-O24)/O24) ->  | Q25: =((Q24-P24)/P24) ->  | R25: =((R24-Q24)/Q24) -> 
B27: Division 6 | D27: =Revenue_Build!C21 -> 0 | E27: =Revenue_Build!D21 -> 0 | F27: =Revenue_Build!E21 -> 0 | G27: =Revenue_Build!F21 -> 0 | H27: =Revenue_Build!G21 -> 0 | I27: =Revenue_Build!H21 ->  | J27: =Revenue_Build!I21 ->  | K27: =Revenue_Build!J21 ->  | L27: =Revenue_Build!K21 ->  | M27: =Revenue_Build!L21 ->  | N27: =Revenue_Build!M21 ->  | O27: =Revenue_Build!N21 ->  | P27: =Revenue_Build!O21 ->  | Q27: =Revenue_Build!P21 ->  | R27: =Revenue_Build!Q21 -> 
B28: YoY Growth | D28: - | E28: =((E27-D27)/D27) ->  | F28: =((F27-E27)/E27) ->  | G28: =((G27-F27)/F27) ->  | H28: =((H27-G27)/G27) ->  | I28: =((I27-H27)/H27) ->  | J28: =((J27-I27)/I27) ->  | K28: =((K27-J27)/J27) ->  | L28: =((L27-K27)/K27) ->  | M28: =((M27-L27)/L27) ->  | N28: =((N27-M27)/M27) ->  | O28: =((O27-N27)/N27) ->  | P28: =((P27-O27)/O27) ->  | Q28: =((Q27-P27)/P27) ->  | R28: =((R27-Q27)/Q27) -> 
B30: Division 7 | D30: =Revenue_Build!C24 -> 0 | E30: =Revenue_Build!D24 -> 0 | F30: =Revenue_Build!E24 -> 0 | G30: =Revenue_Build!F24 -> 0 | H30: =Revenue_Build!G24 -> 0 | I30: =Revenue_Build!H24 ->  | J30: =Revenue_Build!I24 ->  | K30: =Revenue_Build!J24 ->  | L30: =Revenue_Build!K24 ->  | M30: =Revenue_Build!L24 ->  | N30: =Revenue_Build!M24 ->  | O30: =Revenue_Build!N24 ->  | P30: =Revenue_Build!O24 ->  | Q30: =Revenue_Build!P24 ->  | R30: =Revenue_Build!Q24 -> 
B31: YoY Growth | D31: - | E31: =((E30-D30)/D30) ->  | F31: =((F30-E30)/E30) ->  | G31: =((G30-F30)/F30) ->  | H31: =((H30-G30)/G30) ->  | I31: =((I30-H30)/H30) ->  | J31: =((J30-I30)/I30) ->  | K31: =((K30-J30)/J30) ->  | L31: =((L30-K30)/K30) ->  | M31: =((M30-L30)/L30) ->  | N31: =((N30-M30)/M30) ->  | O31: =((O30-N30)/N30) ->  | P31: =((P30-O30)/O30) ->  | Q31: =((Q30-P30)/P30) ->  | R31: =((R30-Q30)/Q30) -> 
B33: Division 8 | D33: =Revenue_Build!C27 -> 0 | E33: =Revenue_Build!D27 -> 0 | F33: =Revenue_Build!E27 -> 0 | G33: =Revenue_Build!F27 -> 0 | H33: =Revenue_Build!G27 -> 0 | I33: =Revenue_Build!H27 ->  | J33: =Revenue_Build!I27 ->  | K33: =Revenue_Build!J27 ->  | L33: =Revenue_Build!K27 ->  | M33: =Revenue_Build!L27 ->  | N33: =Revenue_Build!M27 ->  | O33: =Revenue_Build!N27 ->  | P33: =Revenue_Build!O27 ->  | Q33: =Revenue_Build!P27 ->  | R33: =Revenue_Build!Q27 -> 
B34: YoY Growth | D34: - | E34: =((E33-D33)/D33) ->  | F34: =((F33-E33)/E33) ->  | G34: =((G33-F33)/F33) ->  | H34: =((H33-G33)/G33) ->  | I34: =((I33-H33)/H33) ->  | J34: =((J33-I33)/I33) ->  | K34: =((K33-J33)/J33) ->  | L34: =((L33-K33)/K33) ->  | M34: =((M33-L33)/L33) ->  | N34: =((N33-M33)/M33) ->  | O34: =((O33-N33)/N33) ->  | P34: =((P33-O33)/O33) ->  | Q34: =((Q33-P33)/P33) ->  | R34: =((R33-Q33)/Q33) -> 
B36: Division 9 | D36: =Revenue_Build!C30 -> 0 | E36: =Revenue_Build!D30 -> 0 | F36: =Revenue_Build!E30 -> 0 | G36: =Revenue_Build!F30 -> 0 | H36: =Revenue_Build!G30 -> 0 | I36: =Revenue_Build!H30 ->  | J36: =Revenue_Build!I30 ->  | K36: =Revenue_Build!J30 ->  | L36: =Revenue_Build!K30 ->  | M36: =Revenue_Build!L30 ->  | N36: =Revenue_Build!M30 ->  | O36: =Revenue_Build!N30 ->  | P36: =Revenue_Build!O30 ->  | Q36: =Revenue_Build!P30 ->  | R36: =Revenue_Build!Q30 -> 
B37: YoY Growth | D37: - | E37: =((E36-D36)/D36) ->  | F37: =((F36-E36)/E36) ->  | G37: =((G36-F36)/F36) ->  | H37: =((H36-G36)/G36) ->  | I37: =((I36-H36)/H36) ->  | J37: =((J36-I36)/I36) ->  | K37: =((K36-J36)/J36) ->  | L37: =((L36-K36)/K36) ->  | M37: =((M36-L36)/L36) ->  | N37: =((N36-M36)/M36) ->  | O37: =((O36-N36)/N36) ->  | P37: =((P36-O36)/O36) ->  | Q37: =((Q36-P36)/P36) ->  | R37: =((R36-Q36)/Q36) -> 
B39: Division 10 | D39: =Revenue_Build!C33 -> 0 | E39: =Revenue_Build!D33 -> 0 | F39: =Revenue_Build!E33 -> 0 | G39: =Revenue_Build!F33 -> 0 | H39: =Revenue_Build!G33 -> 0 | I39: =Revenue_Build!H33 ->  | J39: =Revenue_Build!I33 ->  | K39: =Revenue_Build!J33 ->  | L39: =Revenue_Build!K33 ->  | M39: =Revenue_Build!L33 ->  | N39: =Revenue_Build!M33 ->  | O39: =Revenue_Build!N33 ->  | P39: =Revenue_Build!O33 ->  | Q39: =Revenue_Build!P33 ->  | R39: =Revenue_Build!Q33 -> 
B40: YoY Growth | D40: - | E40: =((E39-D39)/D39) ->  | F40: =((F39-E39)/E39) ->  | G40: =((G39-F39)/F39) ->  | H40: =((H39-G39)/G39) ->  | I40: =((I39-H39)/H39) ->  | J40: =((J39-I39)/I39) ->  | K40: =((K39-J39)/J39) ->  | L40: =((L39-K39)/K39) ->  | M40: =((M39-L39)/L39) ->  | N40: =((N39-M39)/M39) ->  | O40: =((O39-N39)/N39) ->  | P40: =((P39-O39)/O39) ->  | Q40: =((Q39-P39)/P39) ->  | R40: =((R39-Q39)/Q39) -> 
B42: Global Revenue | D42: =SUM(IF(MOD(ROW(D12:D40)-ROW(D12),3)=0, IFERROR(D12:D40, 0))) -> 0 | E42: =SUM(IF(MOD(ROW(E12:E40)-ROW(E12),3)=0, IFERROR(E12:E40, 0))) -> 0 | F42: =SUM(IF(MOD(ROW(F12:F40)-ROW(F12),3)=0, IFERROR(F12:F40, 0))) -> 0 | G42: =SUM(IF(MOD(ROW(G12:G40)-ROW(G12),3)=0, IFERROR(G12:G40, 0))) -> 0 | H42: =SUM(IF(MOD(ROW(H12:H40)-ROW(H12),3)=0, IFERROR(H12:H40, 0))) -> 0 | I42: =SUM(IF(MOD(ROW(I12:I40)-ROW(I12),3)=0, IFERROR(I12:I40, 0))) -> 0 | J42: =SUM(IF(MOD(ROW(J12:J40)-ROW(J12),3)=0, IFERROR(J12:J40, 0))) -> 0 | K42: =SUM(IF(MOD(ROW(K12:K40)-ROW(K12),3)=0, IFERROR(K12:K40, 0))) -> 0 | L42: =SUM(IF(MOD(ROW(L12:L40)-ROW(L12),3)=0, IFERROR(L12:L40, 0))) -> 0 | M42: =SUM(IF(MOD(ROW(M12:M40)-ROW(M12),3)=0, IFERROR(M12:M40, 0))) -> 0 | N42: =SUM(IF(MOD(ROW(N12:N40)-ROW(N12),3)=0, IFERROR(N12:N40, 0))) -> 0 | O42: =SUM(IF(MOD(ROW(O12:O40)-ROW(O12),3)=0, IFERROR(O12:O40, 0))) -> 0 | P42: =SUM(IF(MOD(ROW(P12:P40)-ROW(P12),3)=0, IFERROR(P12:P40, 0))) -> 0 | Q42: =SUM(IF(MOD(ROW(Q12:Q40)-ROW(Q12),3)=0, IFERROR(Q12:Q40, 0))) -> 0 | R42: =SUM(IF(MOD(ROW(R12:R40)-ROW(R12),3)=0, IFERROR(R12:R40, 0))) -> 0
B43: YoY Growth | D43: - | E43: =((E42-D42)/D42) ->  | F43: =((F42-E42)/E42) ->  | G43: =((G42-F42)/F42) ->  | H43: =((H42-G42)/G42) ->  | I43: =((I42-H42)/H42) ->  | J43: =((J42-I42)/I42) ->  | K43: =((K42-J42)/J42) ->  | L43: =((L42-K42)/K42) ->  | M43: =((M42-L42)/L42) ->  | N43: =((N42-M42)/M42) ->  | O43: =((O42-N42)/N42) ->  | P43: =((P42-O42)/O42) ->  | Q43: =((Q42-P42)/P42) ->  | R43: =((R42-Q42)/Q42) -> 
B46: COGS
B48: Cost of Goods Sold | I48: =I$42*Historicals!I29 ->  | J48: =J$42*Historicals!J29 ->  | K48: =K$42*Historicals!K29 ->  | L48: =L$42*Historicals!L29 ->  | M48: =M$42*Historicals!M29 ->  | N48: =N$42*Historicals!N29 ->  | O48: =O$42*Historicals!O29 ->  | P48: =P$42*Historicals!P29 ->  | Q48: =Q$42*Historicals!Q29 ->  | R48: =R$42*Historicals!R29 -> 
B49: YoY Growth | D49: - | E49: =((E48-D48)/D48) ->  | F49: =((F48-E48)/E48) ->  | G49: =((G48-F48)/F48) ->  | H49: =((H48-G48)/G48) ->  | I49: =((I48-H48)/H48) ->  | J49: =((J48-I48)/I48) ->  | K49: =((K48-J48)/J48) ->  | L49: =((L48-K48)/K48) ->  | M49: =((M48-L48)/L48) ->  | N49: =((N48-M48)/M48) -> 
B51: Cost of Services Sold | I51: =I$42*Historicals!I30 ->  | J51: =J$42*Historicals!J30 ->  | K51: =K$42*Historicals!K30 ->  | L51: =L$42*Historicals!L30 ->  | M51: =M$42*Historicals!M30 ->  | N51: =N$42*Historicals!N30 ->  | O51: =O$42*Historicals!O30 ->  | P51: =P$42*Historicals!P30 ->  | Q51: =Q$42*Historicals!Q30 ->  | R51: =R$42*Historicals!R30 -> 
B52: YoY Growth | D52: - | E52: =((E51-D51)/D51) ->  | F52: =((F51-E51)/E51) ->  | G52: =((G51-F51)/F51) ->  | H52: =((H51-G51)/G51) ->  | I52: =((I51-H51)/H51) ->  | J52: =((J51-I51)/I51) ->  | K52: =((K51-J51)/J51) ->  | L52: =((L51-K51)/K51) ->  | M52: =((M51-L51)/L51) ->  | N52: =((N51-M51)/M51) ->  | O52: =((O51-N51)/N51) ->  | P52: =((P51-O51)/O51) ->  | Q52: =((Q51-P51)/P51) ->  | R52: =((R51-Q51)/Q51) -> 
B54: COGS | D54: =D48+D51 -> 0 | E54: =E48+E51 -> 0 | F54: =F48+F51 -> 0 | G54: 0 | H54: 0 | N54: =N48+N51 -> 
B55: YoY Growth | D55: - | E55: =((E54-D54)/D54) ->  | F55: =((F54-E54)/E54) ->  | G55: =((G54-F54)/F54) ->  | H55: =((H54-G54)/G54) ->  | I55: =((I54-H54)/H54) ->  | J55: =((J54-I54)/I54) ->  | K55: =((K54-J54)/J54) ->  | L55: =((L54-K54)/K54) ->  | M55: =((M54-L54)/L54) ->  | N55: =((N54-M54)/M54) ->  | O55: =((O54-N54)/N54) ->  | P55: =((P54-O54)/O54) ->  | Q55: =((Q54-P54)/P54) ->  | R55: =((R54-Q54)/Q54) -> 
B57: Fixed Expenses
B59: SG&A | I59: =IF(RSQ(Historicals!D37:H37,Historicals!D$8:H$8)>0.5, (((SLOPE(Historicals!D37:H37,Historicals!D$8:H$8)*Operating_Model!I$42*RSQ(Historicals!D37:H37,Historicals!D$8:H$8)+Operating_Model!H59)+(1-RSQ(Historicals!D37:H37,Historicals!D$8:H$8))*AVERAGE(Historicals!D37:H37))), AVERAGE(Historicals!D37:H37)*Operating_Model!I$42) ->  | J59: =I59*(1+DCF!$C$12) ->  | K59: =J59*(1+DCF!$C$12) ->  | L59: =K59*(1+DCF!$C$12) ->  | M59: =L59*(1+DCF!$C$12) ->  | N59: =M59*(1+DCF!$C$12) ->  | O59: =N59*(1+DCF!$C$12) ->  | P59: =O59*(1+DCF!$C$12) ->  | Q59: =P59*(1+DCF!$C$12) ->  | R59: =Q59*(1+DCF!$C$12) -> 
B60: YoY Growth | D60: - | E60: =((E59-D59)/D59) ->  | F60: =((F59-E59)/E59) ->  | G60: =((G59-F59)/F59) ->  | H60: =((H59-G59)/G59) ->  | I60: =((I59-H59)/H59) ->  | J60: =((J59-I59)/I59) ->  | K60: =((K59-J59)/J59) ->  | L60: =((L59-K59)/K59) ->  | M60: =((M59-L59)/L59) ->  | N60: =((N59-M59)/M59) -> 
B62: Research and Development | I62: =IF(RSQ(Historicals!D38:H38,Historicals!D$8:H$8)>0.5, (((SLOPE(Historicals!D38:H38,Historicals!D$8:H$8)*Operating_Model!I$42*RSQ(Historicals!D38:H38,Historicals!D$8:H$8)+Operating_Model!H62)+(1-RSQ(Historicals!D38:H38,Historicals!D$8:H$8))*AVERAGE(Historicals!D38:H38))), AVERAGE(Historicals!D38:H38)*Operating_Model!I$42) ->  | J62: =I62*(1+DCF!$C$12) ->  | K62: =J62*(1+DCF!$C$12) ->  | L62: =K62*(1+DCF!$C$12) ->  | M62: =L62*(1+DCF!$C$12) ->  | N62: =M62*(1+DCF!$C$12) ->  | O62: =N62*(1+DCF!$C$12) ->  | P62: =O62*(1+DCF!$C$12) ->  | Q62: =P62*(1+DCF!$C$12) ->  | R62: =Q62*(1+DCF!$C$12) -> 
B63: YoY Growth | D63: - | E63: =((E62-D62)/D62) ->  | F63: =((F62-E62)/E62) ->  | G63: =((G62-F62)/F62) ->  | H63: =((H62-G62)/G62) ->  | I63: =((I62-H62)/H62) ->  | J63: =((J62-I62)/I62) ->  | K63: =((K62-J62)/J62) ->  | L63: =((L62-K62)/K62) ->  | M63: =((M62-L62)/L62) ->  | N63: =((N62-M62)/M62) ->  | O63: =((O62-N62)/N62) ->  | P63: =((P62-O62)/O62) ->  | Q63: =((Q62-P62)/P62) ->  | R63: =((R62-Q62)/Q62) -> 
B65: Other Fixed Costs | I65: =(AVERAGE(Historicals!D39:H39)*I$42*(1+DCF!$C$12)) ->  | J65: =I65*(1+DCF!$C$12) ->  | K65: =J65*(1+DCF!$C$12) ->  | L65: =K65*(1+DCF!$C$12) ->  | M65: =L65*(1+DCF!$C$12) ->  | N65: =M65*(1+DCF!$C$12) ->  | O65: =N65*(1+DCF!$C$12) ->  | P65: =O65*(1+DCF!$C$12) ->  | Q65: =P65*(1+DCF!$C$12) ->  | R65: =Q65*(1+DCF!$C$12) -> 
B66: YoY Growth | D66: - | E66: =((E65-D65)/D65) ->  | F66: =((F65-E65)/E65) ->  | G66: =((G65-F65)/F65) ->  | H66: =((H65-G65)/G65) ->  | I66: =((I65-H65)/H65) ->  | J66: =((J65-I65)/I65) ->  | K66: =((K65-J65)/J65) ->  | L66: =((L65-K65)/K65) ->  | M66: =((M65-L65)/L65) ->  | N66: =((N65-M65)/M65) -> 
B67: Fixed Expenses | D67: =D59+D62+D65 -> 0 | E67: =E59+E62+E65 -> 0 | F67: 0 | G67: 0 | H67: 0 | N67: =N59+N62+N65 -> 
B68: YoY Growth | D68: - | E68: =((E67-D67)/D67) ->  | F68: =((F67-E67)/E67) ->  | G68: =((G67-F67)/F67) ->  | H68: =((H67-G67)/G67) ->  | I68: =((I67-H67)/H67) ->  | J68: =((J67-I67)/I67) ->  | K68: =((K67-J67)/J67) ->  | L68: =((L67-K67)/K67) ->  | M68: =((M67-L67)/L67) ->  | N68: =((N67-M67)/M67) ->  | O68: =((O67-N67)/N67) ->  | P68: =((P67-O67)/O67) ->  | Q68: =((Q67-P67)/P67) ->  | R68: =((R67-Q67)/Q67) -> 
B71: Other Income | I71: =IF(RSQ($D71:$H71,$D7:$H7)>0.5, (SLOPE($D71:$H71,D7:H7)+H71)*RSQ($D71:$H71,$D7:$H7)+(AVERAGE($D71:$H71)*(1-RSQ($D71:$H71,$D7:$H7))), AVERAGE($D71:$H71)) -> 
B72: Other Income | D72: =D71 -> 0 | E72: =E71 -> 0 | F72: 0 | G72: 0 | H72: 0 | N72: =N71 -> 
B73: YoY Growth | D73: - | E73: =((E72-D72)/D72) ->  | F73: =((F72-E72)/E72) ->  | G73: =((G72-F72)/F72) ->  | H73: =((H72-G72)/G72) ->  | I73: =((I72-H72)/H72) ->  | J73: =((J72-I72)/I72) ->  | K73: =((K72-J72)/J72) ->  | L73: =((L72-K72)/K72) ->  | M73: =((M72-L72)/L72) ->  | N73: =((N72-M72)/M72) ->  | O73: =((O72-N72)/N72) ->  | P73: =((P72-O72)/O72) ->  | Q73: =((Q72-P72)/P72) ->  | R73: =((R72-Q72)/Q72) -> 
B76: Global EBITDA | D76: =D42-D54-D67+D72 -> 0 | E76: 0 | F76: 0 | G76: 0 | H76: 0
B77: YoY Growth | D77: - | E77: =((E76-D76)/D76) ->  | F77: =((F76-E76)/E76) ->  | G77: =((G76-F76)/F76) ->  | H77: =((H76-G76)/G76) ->  | I77: =((I76-H76)/H76) ->  | J77: =((J76-I76)/I76) ->  | K77: =((K76-J76)/J76) ->  | L77: =((L76-K76)/K76) ->  | M77: =((M76-L76)/L76) ->  | N77: =((N76-M76)/M76) ->  | O77: =((O76-N76)/N76) ->  | P77: =((P76-O76)/O76) ->  | Q77: =((Q76-P76)/P76) ->  | R77: =((R76-Q76)/Q76) -> 
B80: Depreciation & Amortisation
B81: Depreciation | I81: ='D&A+CAPEX'!I32 ->  | J81: ='D&A+CAPEX'!J32 ->  | K81: ='D&A+CAPEX'!K32 ->  | L81: ='D&A+CAPEX'!L32 ->  | M81: ='D&A+CAPEX'!M32 ->  | N81: ='D&A+CAPEX'!N32 ->  | O81: ='D&A+CAPEX'!O32 ->  | P81: ='D&A+CAPEX'!P32 ->  | Q81: ='D&A+CAPEX'!Q32 ->  | R81: ='D&A+CAPEX'!R32 -> 
B82: Amortisation | I82: ='D&A+CAPEX'!I36 ->  | J82: ='D&A+CAPEX'!J36 ->  | K82: ='D&A+CAPEX'!K36 ->  | L82: ='D&A+CAPEX'!L36 ->  | M82: ='D&A+CAPEX'!M36 ->  | N82: ='D&A+CAPEX'!N36 ->  | O82: ='D&A+CAPEX'!O36 ->  | P82: ='D&A+CAPEX'!P36 ->  | Q82: ='D&A+CAPEX'!Q36 ->  | R82: ='D&A+CAPEX'!R36 -> 
B83: D&A | D83: =D81+D82 -> 0 | E83: =E81+E82 -> 0 | F83: 0 | G83: 0 | H83: 0 | N83: =N81+N82 -> 
B84: YoY Growth | D84: - | E84: =((E83-D83)/D83) ->  | N84: =((N83-M83)/M83) ->  | O84: =((O83-N83)/N83) ->  | P84: =((P83-O83)/O83) ->  | Q84: =((Q83-P83)/P83) ->  | R84: =((R83-Q83)/Q83) -> 
B87: Global EBIT | D87: =D76-D83 -> 0 | E87: =E76-E83 -> 0 | F87: 0 | G87: 0 | H87: 0 | N87: =N76-N83 -> 
B88: YoY Growth | D88: - | E88: =((E87-D87)/D87) ->  | F88: =((F87-E87)/E87) ->  | G88: =((G87-F87)/F87) ->  | H88: =((H87-G87)/G87) ->  | I88: =((I87-H87)/H87) ->  | J88: =((J87-I87)/I87) ->  | K88: =((K87-J87)/J87) ->  | L88: =((L87-K87)/K87) ->  | M88: =((M87-L87)/L87) ->  | N88: =((N87-M87)/M87) ->  | O88: =((O87-N87)/N87) ->  | P88: =((P87-O87)/O87) ->  | Q88: =((Q87-P87)/P87) ->  | R88: =((R87-Q87)/Q87) -> 
B91: Interest Expenses | I91: =IF(Hub!$D$87="Yes", Debt_Schedule!Z35, IF(Debt_Schedule!$X$28="Backup Schedule Enabled", Debt_Schedule!Z35, Debt_Schedule!Z7)) ->  | J91: =IF(Hub!$D$87="Yes", Debt_Schedule!AA35, IF(Debt_Schedule!$X$28="Backup Schedule Enabled", Debt_Schedule!AA35, Debt_Schedule!AA7)) ->  | K91: =IF(Hub!$D$87="Yes", Debt_Schedule!AB35, IF(Debt_Schedule!$X$28="Backup Schedule Enabled", Debt_Schedule!AB35, Debt_Schedule!AB7)) ->  | L91: =IF(Hub!$D$87="Yes", Debt_Schedule!AC35, IF(Debt_Schedule!$X$28="Backup Schedule Enabled", Debt_Schedule!AC35, Debt_Schedule!AC7)) ->  | M91: =IF(Hub!$D$87="Yes", Debt_Schedule!AD35, IF(Debt_Schedule!$X$28="Backup Schedule Enabled", Debt_Schedule!AD35, Debt_Schedule!AD7)) ->  | N91: =IF(Hub!$D$87="Yes", Debt_Schedule!AE35, IF(Debt_Schedule!$X$28="Backup Schedule Enabled", Debt_Schedule!AE35, Debt_Schedule!AE7)) ->  | O91: =IF(Hub!$D$87="Yes", Debt_Schedule!AF35, IF(Debt_Schedule!$X$28="Backup Schedule Enabled", Debt_Schedule!AF35, Debt_Schedule!AF7)) ->  | P91: =IF(Hub!$D$87="Yes", Debt_Schedule!AG35, IF(Debt_Schedule!$X$28="Backup Schedule Enabled", Debt_Schedule!AG35, Debt_Schedule!AG7)) ->  | Q91: =IF(Hub!$D$87="Yes", Debt_Schedule!AH35, IF(Debt_Schedule!$X$28="Backup Schedule Enabled", Debt_Schedule!AH35, Debt_Schedule!AH7)) ->  | R91: =IF(Hub!$D$87="Yes", Debt_Schedule!AI35, IF(Debt_Schedule!$X$28="Backup Schedule Enabled", Debt_Schedule!AI35, Debt_Schedule!AI7)) -> 
B92: Interest Expenses | D92: =D91 -> 0 | E92: =E91 -> 0 | F92: 0 | G92: 0 | H92: 0 | N92: =N91 -> 
B93: YoY Growth | D93: - | E93: =((E92-D92)/D92) ->  | F93: =((F92-E92)/E92) ->  | G93: =((G92-F92)/F92) ->  | H93: =((H92-G92)/G92) ->  | I93: =((I92-H92)/H92) ->  | J93: =((J92-I92)/I92) ->  | K93: =((K92-J92)/J92) ->  | L93: =((L92-K92)/K92) ->  | M93: =((M92-L92)/L92) ->  | N93: =((N92-M92)/M92) ->  | O93: =((O92-N92)/N92) ->  | P93: =((P92-O92)/O92) ->  | Q93: =((Q92-P92)/P92) ->  | R93: =((R92-Q92)/Q92) -> 
B96: Global EBT | D96: =D87-D92 -> 0 | E96: =E87-E92 -> 0 | F96: 0 | G96: 0 | H96: 0 | N96: =N87-N92 -> 
B97: YoY Growth | D97: - | E97: =((E96-D96)/D96) ->  | F97: =((F96-E96)/E96) ->  | G97: =((G96-F96)/F96) ->  | H97: =((H96-G96)/G96) ->  | I97: =((I96-H96)/H96) ->  | J97: =((J96-I96)/I96) ->  | K97: =((K96-J96)/J96) ->  | L97: =((L96-K96)/K96) ->  | M97: =((M96-L96)/L96) ->  | N97: =((N96-M96)/M96) ->  | O97: =((O96-N96)/N96) ->  | P97: =((P96-O96)/O96) ->  | Q97: =((Q96-P96)/P96) ->  | R97: =((R96-Q96)/Q96) -> 
B100: Taxes | I100: =DCF!$C$11*Operating_Model!I96 ->  | J100: =DCF!$C$11*Operating_Model!J96 ->  | K100: =DCF!$C$11*Operating_Model!K96 ->  | L100: =DCF!$C$11*Operating_Model!L96 ->  | M100: =DCF!$C$11*Operating_Model!M96 ->  | N100: =DCF!$C$11*Operating_Model!N96 ->  | O100: =DCF!$C$11*Operating_Model!O96 ->  | P100: =DCF!$C$11*Operating_Model!P96 ->  | Q100: =DCF!$C$11*Operating_Model!Q96 ->  | R100: =DCF!$C$11*Operating_Model!R96 -> 
B101: Taxes | D101: =D100 -> 0 | E101: =E100 -> 0 | F101: 0 | G101: 0 | H101: 0 | I101: =I100 ->  | N101: =N100 -> 
B102: YoY Growth | D102: - | E102: =((E101-D101)/D101) ->  | F102: =((F101-E101)/E101) ->  | G102: =((G101-F101)/F101) ->  | H102: =((H101-G101)/G101) ->  | I102: =((I101-H101)/H101) ->  | J102: =((J101-I101)/I101) ->  | K102: =((K101-J101)/J101) ->  | L102: =((L101-K101)/K101) ->  | M102: =((M101-L101)/L101) ->  | N102: =((N101-M101)/M101) ->  | O102: =((O101-N101)/N101) ->  | P102: =((P101-O101)/O101) ->  | Q102: =((Q101-P101)/P101) ->  | R102: =((R101-Q101)/Q101) -> 
B105: Global Net Income | D105: =D96-D101 -> 0 | E105: =E96-E101 -> 0 | F105: 0 | G105: 0 | H105: 0 | I105: =I96-I101 ->  | N105: =N96-N101 -> 
B106: YoY Growth | D106: - | E106: =((E105-D105)/D105) ->  | F106: =((F105-E105)/E105) ->  | G106: =((G105-F105)/F105) ->  | H106: =((H105-G105)/G105) ->  | I106: =((I105-H105)/H105) ->  | J106: =((J105-I105)/I105) ->  | K106: =((K105-J105)/J105) ->  | L106: =((L105-K105)/K105) ->  | M106: =((M105-L105)/L105) ->  | N106: =((N105-M105)/M105) ->  | O106: =((O105-N105)/N105) ->  | P106: =((P105-O105)/O105) ->  | Q106: =((Q105-P105)/P105) ->  | R106: =((R105-Q105)/Q105) -> 

Sheet WACC_Calculator
B2: =DCF!B2 -> APPLE INC. | C2: WACC Calculator
C4: Calc WACC | D4: =((G4/G6*G7))+((G5/G6)*G8*(1-L4)) ->  | F4: Market Cap | G4: =IF(Hub!N4="Yes", (_FV(Hub!D4,"Market cap",TRUE))/1000000, Hub!V6*Hub!V7) -> 2911482 | I4: Tax Rate | L4: =DCF!C11 -> 0.21
F5: Market Value of Debt | G5: =IF(Debt_Schedule!X28="Backup Schedule Enabled", Debt_Schedule!Y41, Debt_Schedule!H25+Debt_Schedule!Q25) -> 0 | I5: Beta | L5: =IF(Hub!N4="Yes",_FV( Hub!D4,"Beta"), Hub!V8) -> 1.2468
F6: Cost of Capital | G6: =G4+G5 -> 2911482 | I6: Risk Free Rate | L6: =DCF!M12 -> 0
F7: Cost of Equity | G7: =L6+(L5*L7) -> 0 | I7: Equity Risk Premium | L7: =Hub!H21 -> 0
F8: Cost of Debt | G8: =(L9/L8)*(1-L4) ->  | I8: Total Debt | L8: =IF(Debt_Schedule!X28="Backup Schedule Enabled", Debt_Schedule!Y41, Debt_Schedule!Y13) -> 0
I9: Interest Expenses | L9: =Operating_Model!H91 -> 0

Sheet D&A+CAPEX
F2: Actuals | M2: Forecast
D3: =YEAR(D4) -> 2019 | E3: =YEAR(E4) -> 2020 | F3: 2021 | G3: 2022 | H3: 2023 | I3: =YEAR(I4) -> 2024 | J3: =YEAR(J4) -> 2025 | K3: 2026 | L3: 2027 | M3: 2028 | N3: 2029 | O3: 2030 | P3: 2031 | Q3: 2032 | R3: 2033
D4: =EOMONTH(E4,-12) -> 2019-12-31 | E4: 2020-12-31 | F4: 2021-12-31 | G4: =EOMONTH(H4,-12) -> 2022-12-31 | H4: =DCF!H16 -> 2023-12-31 | I4: =EOMONTH(H4,12) -> 2024-12-31 | J4: =EOMONTH(I4,12) -> 2025-12-31 | K4: 2026-12-31 | L4: 2027-12-31 | M4: 2028-12-31 | N4: 2029-12-31 | O4: 2030-12-31 | P4: 2031-12-31 | Q4: 2032-12-31 | R4: 2033-12-31
B6: D&A, PP&E, CapEx Schedules
B8: PP&E | I8: =H8+I10-I32 -> 
B10: PP&E CapEx | D10: =DCF!D29-D41 -> 0 | E10: =DCF!E29-E41 -> 0 | F10: =DCF!F29-F41 -> 0 | G10: =DCF!G29-G41 -> 0 | H10: =DCF!H29-H41 -> 0 | I10: =I11*Revenue_Build!H36-I41 ->  | J10: =J11*Revenue_Build!I36-J41 ->  | K10: =K11*Revenue_Build!J36-K41 ->  | L10: =L11*Revenue_Build!K36-L41 ->  | M10: =M11*Revenue_Build!L36-M41 ->  | N10: =N11*Revenue_Build!M36-N41 ->  | O10: =O11*Revenue_Build!N36-O41 ->  | P10: =P11*Revenue_Build!O36-P41 ->  | Q10: =Q11*Revenue_Build!P36-Q41 ->  | R10: =R11*Revenue_Build!Q36-R41 -> 
B11: & of Revenue | D11: =D10/Revenue_Build!C36 ->  | E11: =E10/Revenue_Build!D36 ->  | F11: =F10/Revenue_Build!E36 ->  | G11: =G10/Revenue_Build!F36 ->  | H11: =H10/Revenue_Build!G36 ->  | I11: =IF(RSQ($D11:$H11,$D$3:$H$3)>0.5,((SLOPE($D11:$H11,$D$3:$H$3)+H11)*RSQ($D11:$H11,$D$3:$H$3)+(AVERAGE($D11:$H11)*(1-RSQ($D11:$H11,$D$3:$H$3)))),AVERAGE($D11:$H11)) ->  | J11: =IF(RSQ($D11:$H11,$D$3:$H$3)>0.5,((SLOPE($D11:$H11,$D$3:$H$3)+I11)*RSQ($D11:$H11,$D$3:$H$3)+(AVERAGE($D11:$H11)*(1-RSQ($D11:$H11,$D$3:$H$3)))),AVERAGE($D11:$H11)) -> 
B13: Useful life (Years) | D13: =D8/SUM(D16:D30) ->  | E13: =E8/SUM(E16:E30) ->  | F13: =F8/SUM(F16:F30) ->  | G13: =G8/SUM(G16:G30) ->  | H13: =H8/SUM(H16:H30) ->  | I13: =IF(RSQ($D13:$H13,$D$3:$H$3)>0.5,((SLOPE($D13:$H13,$D$3:$H$3)+H13)*RSQ($D13:$H13,$D$3:$H$3)+(AVERAGE($D13:$H13)*(1-RSQ($D13:$H13,$D$3:$H$3)))),AVERAGE($D13:$H13)) ->  | J13: =IF(RSQ($D13:$H13,$D$3:$H$3)>0.5,((SLOPE($D13:$H13,$D$3:$H$3)+I13)*RSQ($D13:$H13,$D$3:$H$3)+(AVERAGE($D13:$H13)*(1-RSQ($D13:$H13,$D$3:$H$3)))),AVERAGE($D13:$H13)) -> 
B15: Depreciation Schedule
B16: =B17-1 -> 2019 | D16: =Operating_Model!D81 -> 0
B17: =B18-1 -> 2020 | E17: =Operating_Model!E81 -> 0
B18: =B19-1 -> 2021 | F18: =Operating_Model!F81 -> 0
B19: =B20-1 -> 2022 | G19: =Operating_Model!G81 -> 0
B20: =YEAR(Historicals!H9) -> 2023 | H20: =Operating_Model!H81 -> 0 | I20: =IF($I$13 - 1 >= 1, $H$10/$I$13, IF(AND($I$13 - 1 >= 0, $I$13 - 1 < 1), ($I$13 - 1) * ($H$10/$I$13), 0)) ->  | J20: =IF($I$13 - 2 >= 1, $H$10/$I$13, IF(AND($I$13 - 2 >= 0, $I$13 - 2 < 1), ($I$13 - 2) * ($H$10/$I$13), 0)) ->  | K20: =IF($I$13 - 3 >= 1, $H$10/$I$13, IF(AND($I$13 - 3 >= 0, $I$13 - 3 < 1), ($I$13 - 3) * ($H$10/$I$13), 0)) ->  | L20: =IF($I$13 - 4 >= 1, $H$10/$I$13, IF(AND($I$13 - 4 >= 0, $I$13 - 4 < 1), ($I$13 - 4) * ($H$10/$I$13), 0)) ->  | M20: =IF($I$13 - 5 >= 1, $H$10/$I$13, IF(AND($I$13 - 5 >= 0, $I$13 - 5 < 1), ($I$13 - 5) * ($H$10/$I$13), 0)) ->  | N20: =IF($I$13 - 6 >= 1, $H$10/$I$13, IF(AND($I$13 - 6 >= 0, $I$13 - 6 < 1), ($I$13 - 6) * ($H$10/$I$13), 0)) ->  | O20: =IF($I$13 - 7 >= 1, $H$10/$I$13, IF(AND($I$13 - 7 >= 0, $I$13 - 7 < 1), ($I$13 - 7) * ($H$10/$I$13), 0)) ->  | P20: =IF($I$13 - 8 >= 1, $H$10/$I$13, IF(AND($I$13 - 8 >= 0, $I$13 - 8 < 1), ($I$13 - 8) * ($H$10/$I$13), 0)) ->  | Q20: =IF($I$13 - 9 >= 1, $H$10/$I$13, IF(AND($I$13 - 9 >= 0, $I$13 - 9 < 1), ($I$13 - 9) * ($H$10/$I$13), 0)) ->  | R20: =IF($I$13 - 10 >= 1, $H$10/$I$13, IF(AND($I$13 - 10 >= 0, $I$13 - 10 < 1), ($I$13 - 10) * ($H$10/$I$13), 0)) -> 
B21: =B20+1 -> 2024 | I21: =IF($I$13 - 0 >= 1, $I$10/$I$13, IF(AND($I$13 - 0 >= 0, $I$13 - 0 < 1), ($I$13 - 0) * ($I$10/$I$13), 0)) ->  | J21: =IF($I$13 - 1 >= 1, $I$10/$I$13, IF(AND($I$13 - 1 >= 0, $I$13 - 1 < 1), ($I$13 - 1) * ($I$10/$I$13), 0)) ->  | K21: =IF($I$13 - 2 >= 1, $I$10/$I$13, IF(AND($I$13 - 2 >= 0, $I$13 - 2 < 1), ($I$13 - 2) * ($I$10/$I$13), 0)) ->  | L21: =IF($I$13 - 3 >= 1, $I$10/$I$13, IF(AND($I$13 - 3 >= 0, $I$13 - 3 < 1), ($I$13 - 3) * ($I$10/$I$13), 0)) ->  | M21: =IF($I$13 - 4 >= 1, $I$10/$I$13, IF(AND($I$13 - 4 >= 0, $I$13 - 4 < 1), ($I$13 - 4) * ($I$10/$I$13), 0)) ->  | N21: =IF($I$13 - 5 >= 1, $I$10/$I$13, IF(AND($I$13 - 5 >= 0, $I$13 - 5 < 1), ($I$13 - 5) * ($I$10/$I$13), 0)) ->  | O21: =IF($I$13 - 6 >= 1, $I$10/$I$13, IF(AND($I$13 - 6 >= 0, $I$13 - 6 < 1), ($I$13 - 6) * ($I$10/$I$13), 0)) ->  | P21: =IF($I$13 - 7 >= 1, $I$10/$I$13, IF(AND($I$13 - 7 >= 0, $I$13 - 7 < 1), ($I$13 - 7) * ($I$10/$I$13), 0)) ->  | Q21: =IF($I$13 - 8 >= 1, $I$10/$I$13, IF(AND($I$13 - 8 >= 0, $I$13 - 8 < 1), ($I$13 - 8) * ($I$10/$I$13), 0)) ->  | R21: =IF($I$13 - 9 >= 1, $I$10/$I$13, IF(AND($I$13 - 9 >= 0, $I$13 - 9 < 1), ($I$13 - 9) * ($I$10/$I$13), 0)) -> 
B22: 2025 | J22: =IF($I$13 - 0 >= 1, $J$10/$I$13, IF(AND($I$13 - 0 >= 0, $I$13 - 0 < 1), ($I$13 - 0) * ($J$10/$I$13), 0)) ->  | K22: =IF($I$13 - 1 >= 1, $J$10/$I$13, IF(AND($I$13 - 1 >= 0, $I$13 - 1 < 1), ($I$13 - 1) * ($J$10/$I$13), 0)) ->  | L22: =IF($I$13 - 2 >= 1, $J$10/$I$13, IF(AND($I$13 - 2 >= 0, $I$13 - 2 < 1), ($I$13 - 2) * ($J$10/$I$13), 0)) ->  | M22: =IF($I$13 - 3 >= 1, $J$10/$I$13, IF(AND($I$13 - 3 >= 0, $I$13 - 3 < 1), ($I$13 - 3) * ($J$10/$I$13), 0)) ->  | N22: =IF($I$13 - 4 >= 1, $J$10/$I$13, IF(AND($I$13 - 4 >= 0, $I$13 - 4 < 1), ($I$13 - 4) * ($J$10/$I$13), 0)) ->  | O22: =IF($I$13 - 5 >= 1, $J$10/$I$13, IF(AND($I$13 - 5 >= 0, $I$13 - 5 < 1), ($I$13 - 5) * ($J$10/$I$13), 0)) ->  | P22: =IF($I$13 - 6 >= 1, $J$10/$I$13, IF(AND($I$13 - 6 >= 0, $I$13 - 6 < 1), ($I$13 - 6) * ($J$10/$I$13), 0)) ->  | Q22: =IF($I$13 - 7>= 1, $J$10/$I$13, IF(AND($I$13 - 7 >= 0, $I$13 - 7 < 1), ($I$13 - 7) * ($J$10/$I$13), 0)) ->  | R22: =IF($I$13 - 8 >= 1, $J$10/$I$13, IF(AND($I$13 - 8 >= 0, $I$13 - 8 < 1), ($I$13 - 8) * ($J$10/$I$13), 0)) -> 
B23: 2026 | K23: =IF($I$13 - 0 >= 1, $K$10/$I$13, IF(AND($I$13 - 0 >= 0, $I$13 - 0 < 1), ($I$13 - 0) * ($K$10/$I$13), 0)) ->  | L23: =IF($I$13 - 1 >= 1, $K$10/$I$13, IF(AND($I$13 - 1 >= 0, $I$13 - 1 < 1), ($I$13 - 1) * ($K$10/$I$13), 0)) ->  | M23: =IF($I$13 - 2 >= 1, $K$10/$I$13, IF(AND($I$13 - 2 >= 0, $I$13 - 2 < 1), ($I$13 - 2) * ($K$10/$I$13), 0)) ->  | N23: =IF($I$13 - 3 >= 1, $K$10/$I$13, IF(AND($I$13 - 3 >= 0, $I$13 - 3 < 1), ($I$13 - 3) * ($K$10/$I$13), 0)) ->  | O23: =IF($I$13 - 4 >= 1, $K$10/$I$13, IF(AND($I$13 - 4 >= 0, $I$13 - 4 < 1), ($I$13 - 4) * ($K$10/$I$13), 0)) ->  | P23: =IF($I$13 - 5 >= 1, $K$10/$I$13, IF(AND($I$13 - 5 >= 0, $I$13 - 5 < 1), ($I$13 - 5) * ($K$10/$I$13), 0)) ->  | Q23: =IF($I$13 - 6 >= 1, $K$10/$I$13, IF(AND($I$13 - 6 >= 0, $I$13 - 6 < 1), ($I$13 - 6) * ($K$10/$I$13), 0)) ->  | R23: =IF($I$13 - 7 >= 1, $K$10/$I$13, IF(AND($I$13 - 7 >= 0, $I$13 - 7 < 1), ($I$13 - 7) * ($K$10/$I$13), 0)) -> 
B24: 2027 | L24: =IF($I$13 - 0 >= 1, $L$10/$I$13, IF(AND($I$13 - 0 >= 0, $I$13 - 0 < 1), ($I$13 - 0) * ($L$10/$I$13), 0)) ->  | M24: =IF($I$13 - 1 >= 1, $L$10/$I$13, IF(AND($I$13 - 1 >= 0, $I$13 - 1 < 1), ($I$13 - 1) * ($L$10/$I$13), 0)) ->  | N24: =IF($I$13 - 2 >= 1, $L$10/$I$13, IF(AND($I$13 - 2 >= 0, $I$13 - 2 < 1), ($I$13 - 2) * ($L$10/$I$13), 0)) ->  | O24: =IF($I$13 - 3 >= 1, $L$10/$I$13, IF(AND($I$13 - 3 >= 0, $I$13 - 3 < 1), ($I$13 - 3) * ($L$10/$I$13), 0)) ->  | P24: =IF($I$13 - 4 >= 1, $L$10/$I$13, IF(AND($I$13 - 4 >= 0, $I$13 - 4 < 1), ($I$13 - 4) * ($L$10/$I$13), 0)) ->  | Q24: =IF($I$13 - 5 >= 1, $L$10/$I$13, IF(AND($I$13 - 5 >= 0, $I$13 - 5 < 1), ($I$13 - 5) * ($L$10/$I$13), 0)) ->  | R24: =IF($I$13 - 6 >= 1, $L$10/$I$13, IF(AND($I$13 - 6 >= 0, $I$13 - 6 < 1), ($I$13 - 6) * ($L$10/$I$13), 0)) -> 
B25: 2028 | M25: =IF($I$13 - 0 >= 1, $M$10/$I$13, IF(AND($I$13 - 0 >= 0, $I$13 - 0 < 1), ($I$13 - 0) * ($M$10/$I$13), 0)) ->  | N25: =IF($I$13 - 1 >= 1, $M$10/$I$13, IF(AND($I$13 - 1 >= 0, $I$13 - 1 < 1), ($I$13 - 1) * ($M$10/$I$13), 0)) ->  | O25: =IF($I$13 - 2 >= 1, $M$10/$I$13, IF(AND($I$13 - 2 >= 0, $I$13 - 2 < 1), ($I$13 - 2) * ($M$10/$I$13), 0)) ->  | P25: =IF($I$13 - 3 >= 1, $M$10/$I$13, IF(AND($I$13 - 3 >= 0, $I$13 - 3 < 1), ($I$13 - 3) * ($M$10/$I$13), 0)) ->  | Q25: =IF($I$13 - 4 >= 1, $M$10/$I$13, IF(AND($I$13 - 4 >= 0, $I$13 - 4 < 1), ($I$13 - 4) * ($M$10/$I$13), 0)) ->  | R25: =IF($I$13 - 5 >= 1, $M$10/$I$13, IF(AND($I$13 - 5 >= 0, $I$13 - 5 < 1), ($I$13 - 5) * ($M$10/$I$13), 0)) -> 
B26: 2029 | N26: =IF($I$13 - 0 >= 1, $N$10/$I$13, IF(AND($I$13 - 0 >= 0, $I$13 - 0 < 1), ($I$13 - 0) * ($N$10/$I$13), 0)) ->  | O26: =IF($I$13 - 1 >= 1, $N$10/$I$13, IF(AND($I$13 - 1 >= 0, $I$13 - 1 < 1), ($I$13 - 1) * ($N$10/$I$13), 0)) ->  | P26: =IF($I$13 - 2 >= 1, $N$10/$I$13, IF(AND($I$13 - 2 >= 0, $I$13 - 2 < 1), ($I$13 - 2) * ($N$10/$I$13), 0)) ->  | Q26: =IF($I$13 - 3 >= 1, $N$10/$I$13, IF(AND($I$13 - 3 >= 0, $I$13 - 3 < 1), ($I$13 - 3) * ($N$10/$I$13), 0)) ->  | R26: =IF($I$13 - 4 >= 1, $N$10/$I$13, IF(AND($I$13 - 4 >= 0, $I$13 - 4 < 1), ($I$13 - 4) * ($N$10/$I$13), 0)) -> 
B27: 2030 | O27: =IF($I$13 - 0 >= 1, $O$10/$I$13, IF(AND($I$13 - 0 >= 0, $I$13 - 0 < 1), ($I$13 - 0) * ($O$10/$I$13), 0)) ->  | P27: =IF($I$13 - 1 >= 1, $O$10/$I$13, IF(AND($I$13 - 1 >= 0, $I$13 - 1 < 1), ($I$13 - 1) * ($O$10/$I$13), 0)) ->  | Q27: =IF($I$13 - 2 >= 1, $O$10/$I$13, IF(AND($I$13 - 2 >= 0, $I$13 - 2 < 1), ($I$13 - 2) * ($O$10/$I$13), 0)) ->  | R27: =IF($I$13 - 3 >= 1, $O$10/$I$13, IF(AND($I$13 - 3 >= 0, $I$13 - 3 < 1), ($I$13 - 3) * ($O$10/$I$13), 0)) -> 
B28: 2031 | P28: =IF($I$13 - 0 >= 1, $P$10/$I$13, IF(AND($I$13 - 0 >= 0, $I$13 - 0 < 1), ($I$13 - 0) * ($P$10/$I$13), 0)) ->  | Q28: =IF($I$13 - 1 >= 1, $P$10/$I$13, IF(AND($I$13 - 1 >= 0, $I$13 - 1 < 1), ($I$13 - 1) * ($P$10/$I$13), 0)) ->  | R28: =IF($I$13 - 2 >= 1, $P$10/$I$13, IF(AND($I$13 - 2 >= 0, $I$13 - 2 < 1), ($I$13 - 2) * ($P$10/$I$13), 0)) -> 
B29: 2032 | Q29: =IF($I$13 - 0 >= 1, $Q$10/$I$13, IF(AND($I$13 - 0 >= 0, $I$13 - 0 < 1), ($I$13 - 0) * ($Q$10/$I$13), 0)) ->  | R29: =IF($I$13 - 1 >= 1, $Q$10/$I$13, IF(AND($I$13 - 1 >= 0, $I$13 - 1 < 1), ($I$13 - 1) * ($Q$10/$I$13), 0)) -> 
B30: 2033 | R30: =IF($I$13 - 0 >= 1, $R$10/$I$13, IF(AND($I$13 - 0 >= 0, $I$13 - 0 < 1), ($I$13 - 0) * ($R$10/$I$13), 0)) -> 
B32: Total Depreciation | D32: =SUM(D16:D30) -> 0 | E32: 0 | F32: 0 | G32: 0 | H32: 0
B33: % of Revenue | D33: =D32/Revenue_Build!C36 ->  | E33: =E32/Revenue_Build!D36 ->  | F33: =F32/Revenue_Build!E36 ->  | G33: =G32/Revenue_Build!F36 ->  | H33: =H32/Revenue_Build!G36 ->  | I33: =I32/Revenue_Build!H36 ->  | J33: =J32/Revenue_Build!I36 ->  | K33: =K32/Revenue_Build!J36 ->  | L33: =L32/Revenue_Build!K36 ->  | M33: =M32/Revenue_Build!L36 ->  | N33: =N32/Revenue_Build!M36 ->  | O33: =O32/Revenue_Build!N36 ->  | P33: =P32/Revenue_Build!O36 ->  | Q33: =Q32/Revenue_Build!P36 ->  | R33: =R32/Revenue_Build!Q36 -> 
B35: Intangible assets | I35: =IF(RSQ($D35:$H35,$D$3:$H$3)>0.5,((SLOPE($D35:$H35,$D$3:$H$3)+H35)*RSQ($D35:$H35,$D$3:$H$3)+(AVERAGE($D35:$H35)*(1-RSQ($D35:$H35,$D$3:$H$3)))),AVERAGE($D35:$H35)) ->  | J35: =IF(RSQ($D35:$H35,$D$3:$H$3)>0.5,((SLOPE($D35:$H35,$D$3:$H$3)+I35)*RSQ($D35:$H35,$D$3:$H$3)+(AVERAGE($D35:$H35)*(1-RSQ($D35:$H35,$D$3:$H$3)))),AVERAGE($D35:$H35)) -> 
B36: Amortisation expense | D36: =Operating_Model!D82 -> 0 | E36: =Operating_Model!E82 -> 0 | F36: =Operating_Model!F82 -> 0 | G36: =Operating_Model!G82 -> 0 | H36: =Operating_Model!H82 -> 0 | I36: =I35/I39 -> 
B37: & of Revenue | D37: =D36/Revenue_Build!C36 ->  | E37: =E36/Revenue_Build!D36 ->  | F37: =F36/Revenue_Build!E36 ->  | G37: =G36/Revenue_Build!F36 ->  | H37: =H36/Revenue_Build!G36 ->  | I37: =I36/Revenue_Build!H36 ->  | J37: =J36/Revenue_Build!I36 ->  | K37: =K36/Revenue_Build!J36 ->  | L37: =L36/Revenue_Build!K36 ->  | M37: =M36/Revenue_Build!L36 ->  | N37: =N36/Revenue_Build!M36 ->  | O37: =O36/Revenue_Build!N36 ->  | P37: =P36/Revenue_Build!O36 ->  | Q37: =Q36/Revenue_Build!P36 ->  | R37: =R36/Revenue_Build!Q36 -> 
B39: Useful Life (Years) | D39: =D35/D36 ->  | E39: =E35/E36 ->  | F39: =F35/F36 ->  | G39: =G35/G36 ->  | H39: =H35/H36 ->  | I39: =IF(RSQ($D39:$H39,$D$3:$H$3)>0.5,((SLOPE($D39:$H39,$D$3:$H$3)+H39)*RSQ($D39:$H39,$D$3:$H$3)+(AVERAGE($D39:$H39)*(1-RSQ($D39:$H39,$D$3:$H$3)))),AVERAGE($D39:$H39)) ->  | J39: =IF(RSQ($D39:$H39,$D$3:$H$3)>0.5,((SLOPE($D39:$H39,$D$3:$H$3)+I39)*RSQ($D39:$H39,$D$3:$H$3)+(AVERAGE($D39:$H39)*(1-RSQ($D39:$H39,$D$3:$H$3)))),AVERAGE($D39:$H39)) -> 
B41: Intangible Assets CapEx | D41: =D36 -> 0 | E41: 0 | F41: 0 | G41: 0 | H41: 0 | I41: =I36 -> 
B43: Total CapEx | D43: =D10+D41 -> 0 | E43: 0 | F43: 0 | G43: 0 | H43: 0
B44: Total D&A | D44: =D32+D36 -> 0 | E44: 0 | F44: 0 | G44: 0 | H44: 0

Sheet Net_Working_Capital
F2: Actuals | M2: Forecast
C3: =YEAR(C4) -> 2018 | D3: =YEAR(D4) -> 2019 | E3: =YEAR(E4) -> 2020 | F3: 2021 | G3: 2022 | H3: 2023 | I3: =YEAR(I4) -> 2024 | J3: =YEAR(J4) -> 2025 | K3: 2026 | L3: 2027 | M3: 2028 | N3: 2029 | O3: 2030 | P3: 2031 | Q3: 2032 | R3: 2033
C4: =EOMONTH(D4,-12) -> 2018-12-31 | D4: 2019-12-31 | E4: 2020-12-31 | F4: 2021-12-31 | G4: =EOMONTH(H4,-12) -> 2022-12-31 | H4: =DCF!C10 -> 2023-12-31 | I4: =EOMONTH(H4,12) -> 2024-12-31 | J4: =EOMONTH(I4,12) -> 2025-12-31 | K4: 2026-12-31 | L4: 2027-12-31 | M4: 2028-12-31 | N4: =EOMONTH(M4,12) -> 2029-12-31 | O4: =EOMONTH(N4,12) -> 2030-12-31 | P4: =EOMONTH(O4,12) -> 2031-12-31 | Q4: =EOMONTH(P4,12) -> 2032-12-31 | R4: =EOMONTH(Q4,12) -> 2033-12-31
B5: Change in Net Working Capital
B7: Cash | I7: =H7 -> 0 | J7: =I7 -> 0 | K7: =J7 -> 0 | L7: =K7 -> 0 | M7: =L7 -> 0 | N7: =M7 -> 0 | O7: 0 | P7: 0 | Q7: 0 | R7: 0
B8: Account Receivable | I8: =(I9/365)*Revenue_Build!H36 ->  | J8: =(J9/365)*Revenue_Build!I36 ->  | K8: =(K9/365)*Revenue_Build!J36 ->  | L8: =(L9/365)*Revenue_Build!K36 ->  | M8: =(M9/365)*Revenue_Build!L36 ->  | N8: =(N9/365)*Revenue_Build!M36 ->  | O8: =(O9/365)*Revenue_Build!N36 ->  | P8: =(P9/365)*Revenue_Build!O36 ->  | Q8: =(Q9/365)*Revenue_Build!P36 ->  | R8: =(R9/365)*Revenue_Build!Q36 -> 
B9: DSO Ratio | D9: =(D8/Revenue_Build!C36)*365 ->  | E9: =(E8/Revenue_Build!D36)*365 ->  | F9: =(F8/Revenue_Build!E36)*365 ->  | G9: =(G8/Revenue_Build!F36)*365 ->  | H9: =(H8/Revenue_Build!G36)*365 ->  | I9: =IF(RSQ($D9:$H9,$D$3:$H$3)>0.5,((SLOPE($D9:$H9,$D$3:$H$3)+H9)*RSQ($D9:$H9,$D$3:$H$3)+(AVERAGE($D9:$H9)*(1-RSQ($D9:$H9,$D$3:$H$3)))),AVERAGE($D9:$H9)) ->  | J9: =IF(RSQ($D9:$H9,$D$3:$H$3)>0.5,((SLOPE($D9:$H9,$D$3:$H$3)+I9)*RSQ($D9:$H9,$D$3:$H$3)+(AVERAGE($D9:$H9)*(1-RSQ($D9:$H9,$D$3:$H$3)))),AVERAGE($D9:$H9)) ->  | L9: =IF(RSQ($D9:$H9,$D$3:$H$3)>0.5,((SLOPE($D9:$H9,$D$3:$H$3)+K9)*RSQ($D9:$H9,$D$3:$H$3)+(AVERAGE($D9:$H9)*(1-RSQ($D9:$H9,$D$3:$H$3)))),AVERAGE($D9:$H9)) -> 
B10: Inventory | I10: =(I11/365)*Operating_Model!I54 ->  | J10: =(J11/365)*Operating_Model!J54 ->  | K10: =(K11/365)*Operating_Model!K54 ->  | L10: =(L11/365)*Operating_Model!L54 ->  | M10: =(M11/365)*Operating_Model!M54 ->  | N10: =(N11/365)*Operating_Model!N54 ->  | O10: =(O11/365)*Operating_Model!O54 ->  | P10: =(P11/365)*Operating_Model!P54 ->  | Q10: =(Q11/365)*Operating_Model!Q54 ->  | R10: =(R11/365)*Operating_Model!R54 -> 
B11: DIH Ratio | D11: =(D10/Operating_Model!D54)*365 ->  | E11: =(E10/Operating_Model!E54)*365 ->  | F11: =(F10/Operating_Model!F54)*365 ->  | G11: =(G10/Operating_Model!G54)*365 ->  | H11: =(H10/Operating_Model!H54)*365 ->  | I11: =IF(RSQ($D11:$H11,$D$3:$H$3)>0.5,((SLOPE($D11:$H11,$D$3:$H$3)+H11)*RSQ($D11:$H11,$D$3:$H$3)+(AVERAGE($D11:$H11)*(1-RSQ($D11:$H11,$D$3:$H$3)))),AVERAGE($D11:$H11)) ->  | J11: =IF(RSQ($D11:$H11,$D$3:$H$3)>0.5,((SLOPE($D11:$H11,$D$3:$H$3)+I11)*RSQ($D11:$H11,$D$3:$H$3)+(AVERAGE($D11:$H11)*(1-RSQ($D11:$H11,$D$3:$H$3)))),AVERAGE($D11:$H11)) ->  | Q11: =IF(RSQ($D11:$H11,$D$3:$H$3)>0.5,((SLOPE($D11:$H11,$D$3:$H$3)+P11)*RSQ($D11:$H11,$D$3:$H$3)+(AVERAGE($D11:$H11)*(1-RSQ($D11:$H11,$D$3:$H$3)))),AVERAGE($D11:$H11)) -> 
B12: Other Current Assets | I12: =I13*Revenue_Build!H36 ->  | J12: =J13*Revenue_Build!I36 ->  | K12: =K13*Revenue_Build!J36 ->  | L12: =L13*Revenue_Build!K36 ->  | M12: =M13*Revenue_Build!L36 ->  | N12: =N13*Revenue_Build!M36 ->  | O12: =O13*Revenue_Build!N36 ->  | P12: =P13*Revenue_Build!O36 ->  | Q12: =Q13*Revenue_Build!P36 ->  | R12: =R13*Revenue_Build!Q36 -> 
B13: % of Revenue | D13: =D12/Revenue_Build!C36 ->  | E13: =E12/Revenue_Build!D36 ->  | F13: =F12/Revenue_Build!E36 ->  | G13: =G12/Revenue_Build!F36 ->  | H13: =H12/Revenue_Build!G36 ->  | I13: =IF(RSQ($D13:$H13,$D$3:$H$3)>0.5,((SLOPE($D13:$H13,$D$3:$H$3)+H13)*RSQ($D13:$H13,$D$3:$H$3)+(AVERAGE($D13:$H13)*(1-RSQ($D13:$H13,$D$3:$H$3)))),AVERAGE($D13:$H13)) ->  | J13: =IF(RSQ($D13:$H13,$D$3:$H$3)>0.5,((SLOPE($D13:$H13,$D$3:$H$3)+I13)*RSQ($D13:$H13,$D$3:$H$3)+(AVERAGE($D13:$H13)*(1-RSQ($D13:$H13,$D$3:$H$3)))),AVERAGE($D13:$H13)) ->  | K13: =IF(RSQ($D13:$H13,$D$3:$H$3)>0.5,((SLOPE($D13:$H13,$D$3:$H$3)+J13)*RSQ($D13:$H13,$D$3:$H$3)+(AVERAGE($D13:$H13)*(1-RSQ($D13:$H13,$D$3:$H$3)))),AVERAGE($D13:$H13)) ->  | Q13: =IF(RSQ($D13:$H13,$D$3:$H$3)>0.5,((SLOPE($D13:$H13,$D$3:$H$3)+P13)*RSQ($D13:$H13,$D$3:$H$3)+(AVERAGE($D13:$H13)*(1-RSQ($D13:$H13,$D$3:$H$3)))),AVERAGE($D13:$H13)) -> 
B15: Accounts Payable | I15: =(I16/365)*Operating_Model!I54 ->  | J15: =(J16/365)*Operating_Model!J54 ->  | K15: =(K16/365)*Operating_Model!K54 ->  | L15: =(L16/365)*Operating_Model!L54 ->  | M15: =(M16/365)*Operating_Model!M54 ->  | N15: =(N16/365)*Operating_Model!N54 ->  | O15: =(O16/365)*Operating_Model!O54 ->  | P15: =(P16/365)*Operating_Model!P54 ->  | Q15: =(Q16/365)*Operating_Model!Q54 ->  | R15: =(R16/365)*Operating_Model!R54 -> 
B16: DPO Ratio | D16: =(D15/Operating_Model!D54)*365 ->  | E16: =(E15/Operating_Model!E54)*365 ->  | F16: =(F15/Operating_Model!F54)*365 ->  | G16: =(G15/Operating_Model!G54)*365 ->  | H16: =(H15/Operating_Model!H54)*365 ->  | I16: =IF(RSQ($D16:$H16,$D$3:$H$3)>0.5,((SLOPE($D16:$H16,$D$3:$H$3)+H16)*RSQ($D16:$H16,$D$3:$H$3)+(AVERAGE($D16:$H16)*(1-RSQ($D16:$H16,$D$3:$H$3)))),AVERAGE($D16:$H16)) ->  | J16: =IF(RSQ($D16:$H16,$D$3:$H$3)>0.5,((SLOPE($D16:$H16,$D$3:$H$3)+I16)*RSQ($D16:$H16,$D$3:$H$3)+(AVERAGE($D16:$H16)*(1-RSQ($D16:$H16,$D$3:$H$3)))),AVERAGE($D16:$H16)) ->  | O16: =IF(RSQ($D16:$H16,$D$3:$H$3)>0.5,((SLOPE($D16:$H16,$D$3:$H$3)+N16)*RSQ($D16:$H16,$D$3:$H$3)+(AVERAGE($D16:$H16)*(1-RSQ($D16:$H16,$D$3:$H$3)))),AVERAGE($D16:$H16)) -> 
B17: Other Liabilities excluding debts | I17: =I18*Revenue_Build!H36 ->  | J17: =J18*Revenue_Build!I36 ->  | K17: =K18*Revenue_Build!J36 ->  | L17: =L18*Revenue_Build!K36 ->  | M17: =M18*Revenue_Build!L36 ->  | N17: =N18*Revenue_Build!M36 ->  | O17: =O18*Revenue_Build!N36 ->  | P17: =P18*Revenue_Build!O36 ->  | Q17: =Q18*Revenue_Build!P36 ->  | R17: =R18*Revenue_Build!Q36 -> 
B18: % of Revenue | D18: =D17/Revenue_Build!C36 ->  | E18: =E17/Revenue_Build!D36 ->  | F18: =F17/Revenue_Build!E36 ->  | G18: =G17/Revenue_Build!F36 ->  | H18: =H17/Revenue_Build!G36 ->  | I18: =IF(RSQ($D18:$H18,$D$3:$H$3)>0.5,((SLOPE($D18:$H18,$D$3:$H$3)+H18)*RSQ($D18:$H18,$D$3:$H$3)+(AVERAGE($D18:$H18)*(1-RSQ($D18:$H18,$D$3:$H$3)))),AVERAGE($D18:$H18)) ->  | J18: =IF(RSQ($D18:$H18,$D$3:$H$3)>0.5,((SLOPE($D18:$H18,$D$3:$H$3)+I18)*RSQ($D18:$H18,$D$3:$H$3)+(AVERAGE($D18:$H18)*(1-RSQ($D18:$H18,$D$3:$H$3)))),AVERAGE($D18:$H18)) ->  | L18: =IF(RSQ($D18:$H18,$D$3:$H$3)>0.5,((SLOPE($D18:$H18,$D$3:$H$3)+K18)*RSQ($D18:$H18,$D$3:$H$3)+(AVERAGE($D18:$H18)*(1-RSQ($D18:$H18,$D$3:$H$3)))),AVERAGE($D18:$H18)) -> 
B20: LT Debt principal into Current Debt | H20: =Debt_Schedule!Z9 -> 0 | I20: =Debt_Schedule!AA9 -> 0 | J20: =Debt_Schedule!AB9 -> 0 | K20: =Debt_Schedule!AC9 -> 0 | L20: =Debt_Schedule!AD9 -> 0 | M20: =Debt_Schedule!AE9 -> 0 | N20: =Debt_Schedule!AF9 -> 0 | O20: =Debt_Schedule!AG9 -> 0 | P20: =Debt_Schedule!AH9 -> 0 | Q20: =Debt_Schedule!AI9 -> 0 | R20: =Debt_Schedule!AJ9 -> 0
B22: NWC | C22: =C8+C10+C12-C15-C17 -> 0 | D22: 0 | E22: 0 | F22: 0 | G22: 0 | H22: 0 | I22: =I8+I10+I12-I15-I17 ->  | N22: =N8+N10+N12-N15-N17 -> 
B23: ΔNWC | C23: - | D23: =D22-C22 -> 0 | E23: 0 | F23: 0 | G23: 0 | H23: 0 | J23: =J22-I22 ->  | N23: =N22-M22 ->  | O23: =O22-N22 ->  | P23: =P22-O22 ->  | Q23: =Q22-P22 ->  | R23: =R22-Q22 -> 

Sheet Scenario_Analysis--->

Sheet SC_Manager
D2: =DCF!B2 -> APPLE INC.
D3: Scenario Manager
D6: Scenario Chooser
D8: Master Check
G10: Case 1 | I10: Case 1 | J10: Case 2 | K10: Case 3 | L10: Case 4 | M10: Case 5 | N10: Case 6 | O10: Case 7 | P10: Case 8 | Q10: Case 9 | R10: Case 10
G11: =OFFSET(H11,0,MATCH(G10,I10:XFD10)) -> Base | I11: Base | J11: Bull | K11: Bear | L11: [Case 4] | M11: [Case 5] | N11: [Case 6] | O11: [Case 7] | P11: [Case 8] | Q11: [Case 9] | R11: [Case 10]
D13: 1. Company Details
E15: Company | G15: =IF(Hub!N4="No", Hub!R6, Hub!D6) -> APPLE INC.
E16: Ticker | G16: =IF(Hub!N4="No", Hub!R7, Hub!D7) -> AAPL
E17: Location | G17: =RIGHT(_FV(Hub!D4,"Headquarters"), 2) -> US
E18: Valuation Date | G18: =DCF!C9 -> 2024-05-19
D20: 2. CAGR Change Control
E22: CAGR positive for division | G22: =INDEX(I22:XFD22,0,MATCH($G$10,$I$10:$XFD$10)) -> 1 | I22: 1 | J22: 1.25 | K22: 0.6
E23: CAGR negative for division | G23: =INDEX(I23:XFD23,0,MATCH($G$10,$I$10:$XFD$10)) -> 1 | I23: 1 | J23: 0.6 | K23: 1.25
E27: Division revenue | G27: =INDEX(I27:XFD27,0,MATCH($G$10,$I$10:$XFD$10)) -> Base | I27: Base | J27: Bull | K27: Bear | L27: Base | M27: Base | N27: Base | O27: Base | P27: Base | Q27: Base | R27: Base
E31: Division revenue | G31: =INDEX(I31:XFD31,0,MATCH($G$10,$I$10:$XFD$10)) -> Base | I31: Base | J31: Bull | K31: Bear | L31: Base | M31: Base | N31: Base | O31: Base | P31: Base | Q31: Base | R31: Base
E35: Division revenue | G35: =INDEX(I35:XFD35,0,MATCH($G$10,$I$10:$XFD$10)) -> Base | I35: Base | J35: Bull | K35: Bear | L35: Base | M35: Base | N35: Base | O35: Base | P35: Base | Q35: Base | R35: Base
E39: Division revenue | G39: =INDEX(I39:XFD39,0,MATCH($G$10,$I$10:$XFD$10)) -> Base | I39: Base | J39: Bull | K39: Bear | L39: Base | M39: Base | N39: Base | O39: Base | P39: Base | Q39: Base | R39: Base
E43: Division revenue | G43: =INDEX(I43:XFD43,0,MATCH($G$10,$I$10:$XFD$10)) -> Base | I43: Base | J43: Bull | K43: Bear | L43: Base | M43: Base | N43: Base | O43: Base | P43: Base | Q43: Base | R43: Base
E47: Division revenue | G47: =INDEX(I47:XFD47,0,MATCH($G$10,$I$10:$XFD$10)) -> Base | I47: Base | J47: Bull | K47: Bear | L47: Base | M47: Base | N47: Base | O47: Base | P47: Base | Q47: Base | R47: Base
E51: Division revenue | G51: =INDEX(I51:XFD51,0,MATCH($G$10,$I$10:$XFD$10)) -> Base | I51: Base | J51: Bull | K51: Bear | L51: Base | M51: Base | N51: Base | O51: Base | P51: Base | Q51: Base | R51: Base
E55: Division revenue | G55: =INDEX(I55:XFD55,0,MATCH($G$10,$I$10:$XFD$10)) -> Base | I55: Base | J55: Bull | K55: Bear | L55: Base | M55: Base | N55: Base | O55: Base | P55: Base | Q55: Base | R55: Base
E59: Division revenue | G59: =INDEX(I59:XFD59,0,MATCH($G$10,$I$10:$XFD$10)) -> Base | I59: Base | J59: Bull | K59: Bear | L59: Base | M59: Base | N59: Base | O59: Base | P59: Base | Q59: Base | R59: Base
E63: Division revenue | G63: =INDEX(I63:XFD63,0,MATCH($G$10,$I$10:$XFD$10)) -> Base | I63: Base | J63: Bull | K63: Bear | L63: Base | M63: Base | N63: Base | O63: Base | P63: Base | Q63: Base | R63: Base

Sheet Time_Series
B2: =DCF!B2 -> APPLE INC.
B3: Time Series
B6: Operating Assumptions
B8: Year | F8: =YEAR(DCF!I16) -> 2024 | G8: =F8+1 -> 2025 | H8: 2026 | I8: 2027 | J8: 2028 | K8: =J8+1 -> 2029 | L8: =K8+1 -> 2030 | M8: =L8+1 -> 2031 | N8: =M8+1 -> 2032 | O8: =N8+1 -> 2033
B9: =Hub!D13 -> 0
C11: Chosen Scenario | D11: =SC_Manager!G27 -> Base | F11: =INDEX(F13:F15,MATCH($D11,$C13:$C15,0),0) ->  | G11: =INDEX(G13:G15,MATCH($D11,$C13:$C15,0),0) ->  | H11: =INDEX(H13:H15,MATCH($D11,$C13:$C15,0),0) ->  | I11: =INDEX(I13:I15,MATCH($D11,$C13:$C15,0),0) ->  | J11: =INDEX(J13:J15,MATCH($D11,$C13:$C15,0),0) ->  | K11: =INDEX(K13:K15,MATCH($D11,$C13:$C15,0),0) ->  | L11: =INDEX(L13:L15,MATCH($D11,$C13:$C15,0),0) ->  | M11: =INDEX(M13:M15,MATCH($D11,$C13:$C15,0),0) ->  | N11: =INDEX(N13:N15,MATCH($D11,$C13:$C15,0),0) ->  | O11: =INDEX(O13:O15,MATCH($D11,$C13:$C15,0),0) -> 
P12: CAGR | Q12: Override
B13: 1 | C13: Base | F13: =IF($Q13=0, Revenue_Build!$G$6*(1+$P13), Revenue_Build!$G$6*(1+$Q13)) ->  | G13: =IF($Q13=0, F13*(1+$P13), F13*(1+$Q13)) ->  | P13: =(Revenue_Build!G6/Revenue_Build!C6)^(1/5)-1 ->  | Q13: =Hub!D36 -> 0
B14: 2 | C14: Bull | F14: =IF($Q14=0, Revenue_Build!$G$6*(1+$P14), Revenue_Build!$G$6*(1+$Q14)) ->  | G14: =IF($Q14=0, F14*(1+$P14), F14*(1+$Q14)) ->  | P14: =IF(P13>0, P13*SC_Manager!$J$22, IF(P13<0, P13*SC_Manager!$J$23, 0)) ->  | Q14: =IF(Q13>0, Q13*SC_Manager!$J$22, IF(Q13<0, Q13*SC_Manager!$J$23, 0)) -> 0
B15: 3 | C15: Bear | F15: =IF($Q15=0, Revenue_Build!$G$6*(1+$P15), Revenue_Build!$G$6*(1+$Q15)) ->  | G15: =IF($Q15=0, F15*(1+$P15), F15*(1+$Q15)) ->  | P15: =IF(P13>0, P13*SC_Manager!$K$22, IF(P13<0, P13*SC_Manager!$K$23, 0)) ->  | Q15: =IF(Q13>0, Q13*SC_Manager!$K$22, IF(Q13<0, Q13*SC_Manager!$K$23, 0)) -> 0
B17: =Hub!D14 -> 0
C19: Chosen Scenario | D19: =SC_Manager!G31 -> Base | F19: =INDEX(F21:F23,MATCH($D19,$C21:$C23,0),0) ->  | G19: =INDEX(G21:G23,MATCH($D19,$C21:$C23,0),0) ->  | H19: =INDEX(H21:H23,MATCH($D19,$C21:$C23,0),0) ->  | I19: =INDEX(I21:I23,MATCH($D19,$C21:$C23,0),0) ->  | J19: =INDEX(J21:J23,MATCH($D19,$C21:$C23,0),0) ->  | K19: =INDEX(K21:K23,MATCH($D19,$C21:$C23,0),0) ->  | L19: =INDEX(L21:L23,MATCH($D19,$C21:$C23,0),0) ->  | M19: =INDEX(M21:M23,MATCH($D19,$C21:$C23,0),0) ->  | N19: =INDEX(N21:N23,MATCH($D19,$C21:$C23,0),0) ->  | O19: =INDEX(O21:O23,MATCH($D19,$C21:$C23,0),0) -> 
P20: CAGR | Q20: Override
B21: 1 | C21: Base | F21: =IF($Q21=0, Revenue_Build!$G$9*(1+$P21), Revenue_Build!$G$9*(1+$Q21)) ->  | G21: =IF($Q21=0, F21*(1+$P21), F21*(1+$Q21)) ->  | H21: =IF($Q21=0, G21*(1+$P21), G21*(1+$Q21)) ->  | P21: =(Revenue_Build!G9/Revenue_Build!C9)^(1/5)-1 ->  | Q21: =Hub!D37 -> 0
B22: 2 | C22: Bull | F22: =IF($Q22=0, Revenue_Build!$G$9*(1+$P22), Revenue_Build!$G$9*(1+$Q22)) ->  | G22: =IF($Q22=0, F22*(1+$P22), F22*(1+$Q22)) ->  | P22: =IF(P21>0, P21*SC_Manager!$J$22, IF(P21<0, P21*SC_Manager!$J$23, 0)) ->  | Q22: =IF(Q21>0, Q21*SC_Manager!$J$22, IF(Q21<0, Q21*SC_Manager!$J$23, 0)) -> 0
B23: 3 | C23: Bear | F23: =IF($Q23=0, Revenue_Build!$G$9*(1+$P23), Revenue_Build!$G$9*(1+$Q23)) ->  | G23: =IF($Q23=0, F23*(1+$P23), F23*(1+$Q23)) ->  | K23: =IF($Q23=0, J23*(1+$P23), J23*(1+$Q23)) ->  | P23: =IF(P21>0, P21*SC_Manager!$K$22, IF(P21<0, P21*SC_Manager!$K$23, 0)) ->  | Q23: =IF(Q21>0, Q21*SC_Manager!$K$22, IF(Q21<0, Q21*SC_Manager!$K$23, 0)) -> 0
B25: =Hub!D15 -> 0
C27: Chosen Scenario | D27: =SC_Manager!G35 -> Base | F27: =INDEX(F29:F31,MATCH($D27,$C29:$C31,0),0) ->  | G27: =INDEX(G29:G31,MATCH($D27,$C29:$C31,0),0) ->  | H27: =INDEX(H29:H31,MATCH($D27,$C29:$C31,0),0) ->  | I27: =INDEX(I29:I31,MATCH($D27,$C29:$C31,0),0) ->  | J27: =INDEX(J29:J31,MATCH($D27,$C29:$C31,0),0) ->  | K27: =INDEX(K29:K31,MATCH($D27,$C29:$C31,0),0) ->  | L27: =INDEX(L29:L31,MATCH($D27,$C29:$C31,0),0) ->  | M27: =INDEX(M29:M31,MATCH($D27,$C29:$C31,0),0) ->  | N27: =INDEX(N29:N31,MATCH($D27,$C29:$C31,0),0) ->  | O27: =INDEX(O29:O31,MATCH($D27,$C29:$C31,0),0) -> 
P28: CAGR | Q28: Override
B29: 1 | C29: Base | F29: =IF($Q29=0, Revenue_Build!$G$12*(1+$P29), Revenue_Build!$G$12*(1+$Q29)) ->  | G29: =IF($Q29=0, F29*(1+$P29), F29*(1+$Q29)) ->  | H29: =IF($Q29=0, G29*(1+$P29), G29*(1+$Q29)) ->  | P29: =(Revenue_Build!G12/Revenue_Build!C12)^(1/5)-1 ->  | Q29: =Hub!D38 -> 0
B30: 2 | C30: Bull | F30: =IF($Q30=0, Revenue_Build!$G$12*(1+$P30), Revenue_Build!$G$12*(1+$Q30)) ->  | G30: =IF($Q30=0, F30*(1+$P30), F30*(1+$Q30)) ->  | P30: =IF(P29>0, P29*SC_Manager!$J$22, IF(P29<0, P29*SC_Manager!$J$23, 0)) ->  | Q30: =IF(Q29>0, Q29*SC_Manager!$J$22, IF(Q29<0, Q29*SC_Manager!$J$23, 0)) -> 0
B31: 3 | C31: Bear | F31: =IF($Q31=0, Revenue_Build!$G$12*(1+$P31), Revenue_Build!$G$12*(1+$Q31)) ->  | G31: =IF($Q31=0, F31*(1+$P31), F31*(1+$Q31)) ->  | P31: =IF(P29>0, P29*SC_Manager!$K$22, IF(P29<0, P29*SC_Manager!$K$23, 0)) ->  | Q31: =IF(Q29>0, Q29*SC_Manager!$K$22, IF(Q29<0, Q29*SC_Manager!$K$23, 0)) -> 0
B33: =Hub!D16 -> 0
C35: Chosen Scenario | D35: =SC_Manager!G39 -> Base | F35: =INDEX(F37:F39,MATCH($D35,$C37:$C39,0),0) ->  | G35: =INDEX(G37:G39,MATCH($D35,$C37:$C39,0),0) ->  | H35: =INDEX(H37:H39,MATCH($D35,$C37:$C39,0),0) ->  | I35: =INDEX(I37:I39,MATCH($D35,$C37:$C39,0),0) ->  | J35: =INDEX(J37:J39,MATCH($D35,$C37:$C39,0),0) ->  | K35: =INDEX(K37:K39,MATCH($D35,$C37:$C39,0),0) ->  | L35: =INDEX(L37:L39,MATCH($D35,$C37:$C39,0),0) ->  | M35: =INDEX(M37:M39,MATCH($D35,$C37:$C39,0),0) ->  | N35: =INDEX(N37:N39,MATCH($D35,$C37:$C39,0),0) ->  | O35: =INDEX(O37:O39,MATCH($D35,$C37:$C39,0),0) -> 
P36: CAGR | Q36: Override
B37: 1 | C37: Base | F37: =IF($Q37=0, Revenue_Build!$G$15*(1+$P37), Revenue_Build!$G$15*(1+$Q37)) ->  | G37: =IF($Q37=0, F37*(1+$P37), F37*(1+$Q37)) ->  | H37: =IF($Q37=0, G37*(1+$P37), G37*(1+$Q37)) ->  | P37: =(Revenue_Build!G15/Revenue_Build!C15)^(1/5)-1 ->  | Q37: =Hub!D39 -> 0
B38: 2 | C38: Bull | F38: =IF($Q38=0, Revenue_Build!$G$15*(1+$P38), Revenue_Build!$G$15*(1+$Q38)) ->  | G38: =IF($Q38=0, F38*(1+$P38), F38*(1+$Q38)) ->  | L38: =IF($Q38=0, K38*(1+$P38), K38*(1+$Q38)) ->  | P38: =IF(P37>0, P37*SC_Manager!$J$22, IF(P37<0, P37*SC_Manager!$J$23, 0)) ->  | Q38: =IF(Q37>0, Q37*SC_Manager!$J$22, IF(Q37<0, Q37*SC_Manager!$J$23, 0)) -> 0
B39: 3 | C39: Bear | F39: =IF($Q39=0, Revenue_Build!$G$15*(1+$P39), Revenue_Build!$G$15*(1+$Q39)) ->  | G39: =IF($Q39=0, F39*(1+$P39), F39*(1+$Q39)) ->  | P39: =IF(P37>0, P37*SC_Manager!$K$22, IF(P37<0, P37*SC_Manager!$K$23, 0)) ->  | Q39: =IF(Q37>0, Q37*SC_Manager!$K$22, IF(Q37<0, Q37*SC_Manager!$K$23, 0)) -> 0
B41: =Hub!D17 -> 0
C43: Chosen Scenario | D43: =SC_Manager!G43 -> Base | F43: =INDEX(F45:F47,MATCH($D43,$C45:$C47,0),0) ->  | G43: =INDEX(G45:G47,MATCH($D43,$C45:$C47,0),0) ->  | H43: =INDEX(H45:H47,MATCH($D43,$C45:$C47,0),0) ->  | I43: =INDEX(I45:I47,MATCH($D43,$C45:$C47,0),0) ->  | J43: =INDEX(J45:J47,MATCH($D43,$C45:$C47,0),0) ->  | K43: =INDEX(K45:K47,MATCH($D43,$C45:$C47,0),0) ->  | L43: =INDEX(L45:L47,MATCH($D43,$C45:$C47,0),0) ->  | M43: =INDEX(M45:M47,MATCH($D43,$C45:$C47,0),0) ->  | N43: =INDEX(N45:N47,MATCH($D43,$C45:$C47,0),0) ->  | O43: =INDEX(O45:O47,MATCH($D43,$C45:$C47,0),0) -> 
P44: CAGR | Q44: Override
B45: 1 | C45: Base | F45: =IF($Q45=0, Revenue_Build!$G$18*(1+$P45), Revenue_Build!$G$18*(1+$Q45)) ->  | G45: =IF($Q45=0, F45*(1+$P45), F45*(1+$Q45)) ->  | H45: =IF($Q45=0, G45*(1+$P45), G45*(1+$Q45)) ->  | P45: =(Revenue_Build!G18/Revenue_Build!C18)^(1/5)-1 ->  | Q45: =Hub!D40 -> 0
B46: 2 | C46: Bull | F46: =IF($Q46=0, Revenue_Build!$G$18*(1+$P46), Revenue_Build!$G$18*(1+$Q46)) ->  | G46: =IF($Q46=0, F46*(1+$P46), F46*(1+$Q46)) ->  | P46: =IF(P45>0, P45*SC_Manager!$J$22, IF(P45<0, P45*SC_Manager!$J$23, 0)) ->  | Q46: =IF(Q45>0, Q45*SC_Manager!$J$22, IF(Q45<0, Q45*SC_Manager!$J$23, 0)) -> 0
B47: 3 | C47: Bear | F47: =IF($Q47=0, Revenue_Build!$G$18*(1+$P47), Revenue_Build!$G$18*(1+$Q47)) ->  | G47: =IF($Q47=0, F47*(1+$P47), F47*(1+$Q47)) ->  | P47: =IF(P45>0, P45*SC_Manager!$K$22, IF(P45<0, P45*SC_Manager!$K$23, 0)) ->  | Q47: =IF(Q45>0, Q45*SC_Manager!$K$22, IF(Q45<0, Q45*SC_Manager!$K$23, 0)) -> 0
B49: =Hub!H13 -> 0
C51: Chosen Scenario | D51: =SC_Manager!G47 -> Base | F51: =INDEX(F53:F55,MATCH($D51,$C53:$C55,0),0) ->  | G51: =INDEX(G53:G55,MATCH($D51,$C53:$C55,0),0) ->  | H51: =INDEX(H53:H55,MATCH($D51,$C53:$C55,0),0) ->  | I51: =INDEX(I53:I55,MATCH($D51,$C53:$C55,0),0) ->  | J51: =INDEX(J53:J55,MATCH($D51,$C53:$C55,0),0) ->  | K51: =INDEX(K53:K55,MATCH($D51,$C53:$C55,0),0) ->  | L51: =INDEX(L53:L55,MATCH($D51,$C53:$C55,0),0) ->  | M51: =INDEX(M53:M55,MATCH($D51,$C53:$C55,0),0) ->  | N51: =INDEX(N53:N55,MATCH($D51,$C53:$C55,0),0) ->  | O51: =INDEX(O53:O55,MATCH($D51,$C53:$C55,0),0) -> 
P52: CAGR | Q52: Override
B53: 1 | C53: Base | F53: =IF($Q53=0, Revenue_Build!$G$21*(1+$P53), Revenue_Build!$G$21*(1+$Q53)) ->  | G53: =IF($Q53=0, F53*(1+$P53), F53*(1+$Q53)) ->  | H53: =IF($Q53=0, G53*(1+$P53), G53*(1+$Q53)) ->  | P53: =(Revenue_Build!G21/Revenue_Build!C21)^(1/5)-1 ->  | Q53: =Hub!H36 -> 0
B54: 2 | C54: Bull | F54: =IF($Q54=0, Revenue_Build!$G$21*(1+$P54), Revenue_Build!$G$21*(1+$Q54)) ->  | G54: =IF($Q54=0, F54*(1+$P54), F54*(1+$Q54)) ->  | P54: =IF(P53>0, P53*SC_Manager!$J$22, IF(P53<0, P53*SC_Manager!$J$23, 0)) ->  | Q54: =IF(Q53>0, Q53*SC_Manager!$J$22, IF(Q53<0, Q53*SC_Manager!$J$23, 0)) -> 0
B55: 3 | C55: Bear | F55: =IF($Q55=0, Revenue_Build!$G$21*(1+$P55), Revenue_Build!$G$21*(1+$Q55)) ->  | G55: =IF($Q55=0, F55*(1+$P55), F55*(1+$Q55)) ->  | P55: =IF(P53>0, P53*SC_Manager!$K$22, IF(P53<0, P53*SC_Manager!$K$23, 0)) ->  | Q55: =IF(Q53>0, Q53*SC_Manager!$K$22, IF(Q53<0, Q53*SC_Manager!$K$23, 0)) -> 0
B57: =Hub!H14 -> 0
C59: Chosen Scenario | D59: =SC_Manager!G51 -> Base | F59: =INDEX(F61:F63,MATCH($D59,$C61:$C63,0),0) ->  | G59: =INDEX(G61:G63,MATCH($D59,$C61:$C63,0),0) ->  | H59: =INDEX(H61:H63,MATCH($D59,$C61:$C63,0),0) ->  | I59: =INDEX(I61:I63,MATCH($D59,$C61:$C63,0),0) ->  | J59: =INDEX(J61:J63,MATCH($D59,$C61:$C63,0),0) ->  | K59: =INDEX(K61:K63,MATCH($D59,$C61:$C63,0),0) ->  | L59: =INDEX(L61:L63,MATCH($D59,$C61:$C63,0),0) ->  | M59: =INDEX(M61:M63,MATCH($D59,$C61:$C63,0),0) ->  | N59: =INDEX(N61:N63,MATCH($D59,$C61:$C63,0),0) ->  | O59: =INDEX(O61:O63,MATCH($D59,$C61:$C63,0),0) -> 
P60: CAGR | Q60: Override
B61: 1 | C61: Base | F61: =IF($Q61=0, Revenue_Build!$G$24*(1+$P61), Revenue_Build!$G$24*(1+$Q61)) ->  | G61: =IF($Q61=0, F61*(1+$P61), F61*(1+$Q61)) ->  | H61: =IF($Q61=0, G61*(1+$P61), G61*(1+$Q61)) ->  | P61: =(Revenue_Build!G24/Revenue_Build!C24)^(1/5)-1 ->  | Q61: =Hub!H37 -> 0
B62: 2 | C62: Bull | F62: =IF($Q62=0, Revenue_Build!$G$24*(1+$P62), Revenue_Build!$G$24*(1+$Q62)) ->  | G62: =IF($Q62=0, F62*(1+$P62), F62*(1+$Q62)) ->  | P62: =IF(P61>0, P61*SC_Manager!$J$22, IF(P61<0, P61*SC_Manager!$J$23, 0)) ->  | Q62: =IF(Q61>0, Q61*SC_Manager!$J$22, IF(Q61<0, Q61*SC_Manager!$J$23, 0)) -> 0
B63: 3 | C63: Bear | F63: =IF($Q63=0, Revenue_Build!$G$24*(1+$P63), Revenue_Build!$G$24*(1+$Q63)) ->  | G63: =IF($Q63=0, F63*(1+$P63), F63*(1+$Q63)) ->  | P63: =IF(P61>0, P61*SC_Manager!$K$22, IF(P61<0, P61*SC_Manager!$K$23, 0)) ->  | Q63: =IF(Q61>0, Q61*SC_Manager!$K$22, IF(Q61<0, Q61*SC_Manager!$K$23, 0)) -> 0
B65: =Hub!H15 -> 0
C67: Chosen Scenario | D67: =SC_Manager!G55 -> Base | F67: =INDEX(F69:F71,MATCH($D67,$C69:$C71,0),0) ->  | G67: =INDEX(G69:G71,MATCH($D67,$C69:$C71,0),0) ->  | H67: =INDEX(H69:H71,MATCH($D67,$C69:$C71,0),0) ->  | I67: =INDEX(I69:I71,MATCH($D67,$C69:$C71,0),0) ->  | J67: =INDEX(J69:J71,MATCH($D67,$C69:$C71,0),0) ->  | K67: =INDEX(K69:K71,MATCH($D67,$C69:$C71,0),0) ->  | L67: =INDEX(L69:L71,MATCH($D67,$C69:$C71,0),0) ->  | M67: =INDEX(M69:M71,MATCH($D67,$C69:$C71,0),0) ->  | N67: =INDEX(N69:N71,MATCH($D67,$C69:$C71,0),0) ->  | O67: =INDEX(O69:O71,MATCH($D67,$C69:$C71,0),0) -> 
P68: CAGR | Q68: Override
B69: 1 | C69: Base | F69: =IF($Q69=0, Revenue_Build!$G$27*(1+$P69), Revenue_Build!$G$27*(1+$Q69)) ->  | G69: =IF($Q69=0, F69*(1+$P69), F69*(1+$Q69)) ->  | H69: =IF($Q69=0, G69*(1+$P69), G69*(1+$Q69)) ->  | P69: =(Revenue_Build!G27/Revenue_Build!C27)^(1/5)-1 ->  | Q69: =Hub!H38 -> 0
B70: 2 | C70: Bull | F70: =IF($Q70=0, Revenue_Build!$G$27*(1+$P70), Revenue_Build!$G$27*(1+$Q70)) ->  | G70: =IF($Q70=0, F70*(1+$P70), F70*(1+$Q70)) ->  | P70: =IF(P69>0, P69*SC_Manager!$J$22, IF(P69<0, P69*SC_Manager!$J$23, 0)) ->  | Q70: =IF(Q69>0, Q69*SC_Manager!$J$22, IF(Q69<0, Q69*SC_Manager!$J$23, 0)) -> 0
B71: 3 | C71: Bear | F71: =IF($Q71=0, Revenue_Build!$G$27*(1+$P71), Revenue_Build!$G$27*(1+$Q71)) ->  | G71: =IF($Q71=0, F71*(1+$P71), F71*(1+$Q71)) ->  | P71: =IF(P69>0, P69*SC_Manager!$K$22, IF(P69<0, P69*SC_Manager!$K$23, 0)) ->  | Q71: =IF(Q69>0, Q69*SC_Manager!$K$22, IF(Q69<0, Q69*SC_Manager!$K$23, 0)) -> 0
B73: =Hub!H16 -> 0
C75: Chosen Scenario | D75: =SC_Manager!G59 -> Base | F75: =INDEX(F77:F79,MATCH($D75,$C77:$C79,0),0) ->  | G75: =INDEX(G77:G79,MATCH($D75,$C77:$C79,0),0) ->  | H75: =INDEX(H77:H79,MATCH($D75,$C77:$C79,0),0) ->  | I75: =INDEX(I77:I79,MATCH($D75,$C77:$C79,0),0) ->  | J75: =INDEX(J77:J79,MATCH($D75,$C77:$C79,0),0) ->  | K75: =INDEX(K77:K79,MATCH($D75,$C77:$C79,0),0) ->  | L75: =INDEX(L77:L79,MATCH($D75,$C77:$C79,0),0) ->  | M75: =INDEX(M77:M79,MATCH($D75,$C77:$C79,0),0) ->  | N75: =INDEX(N77:N79,MATCH($D75,$C77:$C79,0),0) ->  | O75: =INDEX(O77:O79,MATCH($D75,$C77:$C79,0),0) -> 
P76: CAGR | Q76: Override
B77: 1 | C77: Base | F77: =IF($Q77=0, Revenue_Build!$G$30*(1+$P77), Revenue_Build!$G$30*(1+$Q77)) ->  | G77: =IF($Q77=0, F77*(1+$P77), F77*(1+$Q77)) ->  | H77: =IF($Q77=0, G77*(1+$P77), G77*(1+$Q77)) ->  | P77: =(Revenue_Build!G30/Revenue_Build!C30)^(1/5)-1 ->  | Q77: =Hub!H39 -> 0
B78: 2 | C78: Bull | F78: =IF($Q78=0, Revenue_Build!$G$30*(1+$P78), Revenue_Build!$G$30*(1+$Q78)) ->  | G78: =IF($Q78=0, F78*(1+$P78), F78*(1+$Q78)) ->  | P78: =IF(P77>0, P77*SC_Manager!$J$22, IF(P77<0, P77*SC_Manager!$J$23, 0)) ->  | Q78: =IF(Q77>0, Q77*SC_Manager!$J$22, IF(Q77<0, Q77*SC_Manager!$J$23, 0)) -> 0
B79: 3 | C79: Bear | F79: =IF($Q79=0, Revenue_Build!$G$30*(1+$P79), Revenue_Build!$G$30*(1+$Q79)) ->  | G79: =IF($Q79=0, F79*(1+$P79), F79*(1+$Q79)) ->  | P79: =IF(P77>0, P77*SC_Manager!$K$22, IF(P77<0, P77*SC_Manager!$K$23, 0)) ->  | Q79: =IF(Q77>0, Q77*SC_Manager!$K$22, IF(Q77<0, Q77*SC_Manager!$K$23, 0)) -> 0
B81: =Hub!H17 -> 0
C83: Chosen Scenario | D83: =SC_Manager!G63 -> Base | F83: =INDEX(F85:F87,MATCH($D83,$C85:$C87,0),0) ->  | G83: =INDEX(G85:G87,MATCH($D83,$C85:$C87,0),0) ->  | H83: =INDEX(H85:H87,MATCH($D83,$C85:$C87,0),0) ->  | I83: =INDEX(I85:I87,MATCH($D83,$C85:$C87,0),0) ->  | J83: =INDEX(J85:J87,MATCH($D83,$C85:$C87,0),0) ->  | K83: =INDEX(K85:K87,MATCH($D83,$C85:$C87,0),0) ->  | L83: =INDEX(L85:L87,MATCH($D83,$C85:$C87,0),0) ->  | M83: =INDEX(M85:M87,MATCH($D83,$C85:$C87,0),0) ->  | N83: =INDEX(N85:N87,MATCH($D83,$C85:$C87,0),0) ->  | O83: =INDEX(O85:O87,MATCH($D83,$C85:$C87,0),0) -> 
P84: CAGR | Q84: Override
B85: 1 | C85: Base | F85: =IF($Q85=0, Revenue_Build!$G$33*(1+$P85), Revenue_Build!$G$33*(1+$Q85)) ->  | G85: =IF($Q85=0, F85*(1+$P85), F85*(1+$Q85)) ->  | H85: =IF($Q85=0, G85*(1+$P85), G85*(1+$Q85)) ->  | M85: =IF($Q85=0, L85*(1+$P85), L85*(1+$Q85)) ->  | P85: =(Revenue_Build!G33/Revenue_Build!C33)^(1/5)-1 ->  | Q85: =Hub!H40 -> 0
B86: 2 | C86: Bull | F86: =IF($Q86=0, Revenue_Build!$G$33*(1+$P86), Revenue_Build!$G$33*(1+$Q86)) ->  | G86: =IF($Q86=0, F86*(1+$P86), F86*(1+$Q86)) ->  | P86: =IF(P85>0, P85*SC_Manager!$J$22, IF(P85<0, P85*SC_Manager!$J$23, 0)) ->  | Q86: =IF(Q85>0, Q85*SC_Manager!$J$22, IF(Q85<0, Q85*SC_Manager!$J$23, 0)) -> 0
B87: 3 | C87: Bear | F87: =IF($Q87=0, Revenue_Build!$G$33*(1+$P87), Revenue_Build!$G$33*(1+$Q87)) ->  | G87: =IF($Q87=0, F87*(1+$P87), F87*(1+$Q87)) ->  | M87: =IF($Q87=0, L87*(1+$P87), L87*(1+$Q87)) ->  | P87: =IF(P85>0, P85*SC_Manager!$K$22, IF(P85<0, P85*SC_Manager!$K$23, 0)) ->  | Q87: =IF(Q85>0, Q85*SC_Manager!$K$22, IF(Q85<0, Q85*SC_Manager!$K$23, 0)) -> 0

Sheet Buildups--->

Sheet Revenue_Build
B2: In Millions of $USD | C2: Actuals | H2: Forecast
B3: Revenue Segments | C3: =YEAR(C4) -> 2019 | D3: 2020 | E3: 2021 | F3: 2022 | G3: 2023 | H3: 2024 | I3: 2025 | J3: 2026 | K3: 2027 | L3: 2028 | M3: 2029 | N3: 2030 | O3: 2031 | P3: 2032 | Q3: 2033
C4: =EOMONTH(D4, -12) -> 2019-12-31 | D4: =EOMONTH(E4, -12) -> 2020-12-31 | E4: =EOMONTH(F4, -12) -> 2021-12-31 | F4: =EOMONTH(G4, -12) -> 2022-12-31 | G4: =DCF!C10 -> 2023-12-31 | H4: =EOMONTH(G4,12) -> 2024-12-31 | I4: 2025-12-31 | J4: 2026-12-31 | K4: 2027-12-31 | L4: 2028-12-31 | M4: 2029-12-31 | N4: 2030-12-31 | O4: 2031-12-31 | P4: 2032-12-31 | Q4: 2033-12-31
B6: =IF(ISBLANK(Hub!D13), "Division 1 Revenue", Hub!D13 & " Revenue") -> Division 1 Revenue | H6: =Time_Series!F11 ->  | I6: =Time_Series!G11 ->  | J6: =Time_Series!H11 ->  | K6: =Time_Series!I11 ->  | L6: =Time_Series!J11 ->  | M6: =Time_Series!K11 ->  | N6: =Time_Series!L11 ->  | O6: =Time_Series!M11 ->  | P6: =Time_Series!N11 ->  | Q6: =Time_Series!O11 -> 
B7: YoY Growth | C7: - | D7: =(D6-C6)/C6 -> 
B9: =IF(ISBLANK(Hub!D14), "Division 2 Revenue", Hub!D14 & " Revenue") -> Division 2 Revenue | H9: =Time_Series!F19 ->  | I9: =Time_Series!G19 ->  | J9: =Time_Series!H19 ->  | K9: =Time_Series!I19 ->  | L9: =Time_Series!J19 ->  | M9: =Time_Series!K19 ->  | N9: =Time_Series!L19 ->  | O9: =Time_Series!M19 ->  | P9: =Time_Series!N19 ->  | Q9: =Time_Series!O19 -> 
B10: YoY Growth | C10: - | D10: =(D9-C9)/C9 -> 
B12: =IF(ISBLANK(Hub!D15), "Division 3 Revenue", Hub!D15 & " Revenue") -> Division 3 Revenue | H12: =Time_Series!F27 ->  | I12: =Time_Series!G27 ->  | J12: =Time_Series!H27 ->  | K12: =Time_Series!I27 ->  | L12: =Time_Series!J27 ->  | M12: =Time_Series!K27 ->  | N12: =Time_Series!L27 ->  | O12: =Time_Series!M27 ->  | P12: =Time_Series!N27 ->  | Q12: =Time_Series!O27 -> 
B13: YoY Growth | C13: - | D13: =(D12-C12)/C12 -> 
B15: =IF(ISBLANK(Hub!D16), "Division 4 Revenue", Hub!D16 & " Revenue") -> Division 4 Revenue | H15: =Time_Series!F35 ->  | I15: =Time_Series!G35 ->  | J15: =Time_Series!H35 ->  | K15: =Time_Series!I35 ->  | L15: =Time_Series!J35 ->  | M15: =Time_Series!K35 ->  | N15: =Time_Series!L35 ->  | O15: =Time_Series!M35 ->  | P15: =Time_Series!N35 ->  | Q15: =Time_Series!O35 -> 
B16: YoY Growth | C16: - | D16: =(D15-C15)/C15 -> 
B18: =IF(ISBLANK(Hub!D17), "Division 5 Revenue", Hub!D17 & " Revenue") -> Division 5 Revenue | H18: =Time_Series!F43 ->  | I18: =Time_Series!G43 ->  | J18: =Time_Series!H43 ->  | K18: =Time_Series!I43 ->  | L18: =Time_Series!J43 ->  | M18: =Time_Series!K43 ->  | N18: =Time_Series!L43 ->  | O18: =Time_Series!M43 ->  | P18: =Time_Series!N43 ->  | Q18: =Time_Series!O43 -> 
B19: YoY Growth | C19: - | D19: =(D18-C18)/C18 -> 
B21: =IF(ISBLANK(Hub!H13), "Division 6 Revenue", Hub!H13 & " Revenue") -> Division 6 Revenue | H21: =Time_Series!F51 ->  | I21: =Time_Series!G51 ->  | J21: =Time_Series!H51 ->  | K21: =Time_Series!I51 ->  | L21: =Time_Series!J51 ->  | M21: =Time_Series!K51 ->  | N21: =Time_Series!L51 ->  | O21: =Time_Series!M51 ->  | P21: =Time_Series!N51 ->  | Q21: =Time_Series!O51 -> 
B22: YoY Growth | C22: - | D22: =(D21-C21)/C21 -> 
B24: =IF(ISBLANK(Hub!H14), "Division 7 Revenue", Hub!H14 & " Revenue") -> Division 7 Revenue | H24: =Time_Series!F59 ->  | I24: =Time_Series!G59 ->  | J24: =Time_Series!H59 ->  | K24: =Time_Series!I59 ->  | L24: =Time_Series!J59 ->  | M24: =Time_Series!K59 ->  | N24: =Time_Series!L59 ->  | O24: =Time_Series!M59 ->  | P24: =Time_Series!N59 ->  | Q24: =Time_Series!O59 -> 
B25: YoY Growth | C25: - | D25: =(D24-C24)/C24 -> 
B27: =IF(ISBLANK(Hub!H15), "Division 8 Revenue", Hub!H15 & " Revenue") -> Division 8 Revenue | H27: =Time_Series!F67 ->  | I27: =Time_Series!G67 ->  | J27: =Time_Series!H67 ->  | K27: =Time_Series!I67 ->  | L27: =Time_Series!J67 ->  | M27: =Time_Series!K67 ->  | N27: =Time_Series!L67 ->  | O27: =Time_Series!M67 ->  | P27: =Time_Series!N67 ->  | Q27: =Time_Series!O67 -> 
B28: YoY Growth | C28: - | D28: =(D27-C27)/C27 -> 
B30: =IF(ISBLANK(Hub!H16), "Division 9 Revenue", Hub!H16 & " Revenue") -> Division 9 Revenue | H30: =Time_Series!F75 ->  | I30: =Time_Series!G75 ->  | J30: =Time_Series!H75 ->  | K30: =Time_Series!I75 ->  | L30: =Time_Series!J75 ->  | M30: =Time_Series!K75 ->  | N30: =Time_Series!L75 ->  | O30: =Time_Series!M75 ->  | P30: =Time_Series!N75 ->  | Q30: =Time_Series!O75 -> 
B31: YoY Growth | C31: - | D31: =(D30-C30)/C30 -> 
B33: =IF(ISBLANK(Hub!H17), "Division 10 Revenue", Hub!H17 & " Revenue") -> Division 10 Revenue | H33: =Time_Series!F83 ->  | I33: =Time_Series!G83 ->  | J33: =Time_Series!H83 ->  | K33: =Time_Series!I83 ->  | L33: =Time_Series!J83 ->  | M33: =Time_Series!K83 ->  | N33: =Time_Series!L83 ->  | O33: =Time_Series!M83 ->  | P33: =Time_Series!N83 ->  | Q33: =Time_Series!O83 -> 
B34: YoY Growth | C34: - | D34: =(D33-C33)/C33 ->  | H34: =(H33-G33)/G33 -> 
B36: Total revenue | C36: =SUM(IF(MOD(ROW(C6:C34)-ROW(C6),3)=0, IFERROR(C6:C34, 0))) -> 0 | D36: =SUM(IF(MOD(ROW(D6:D34)-ROW(D6),3)=0, IFERROR(D6:D34, 0))) -> 0 | E36: =SUM(IF(MOD(ROW(E6:E34)-ROW(E6),3)=0, IFERROR(E6:E34, 0))) -> 0 | F36: =SUM(IF(MOD(ROW(F6:F34)-ROW(F6),3)=0, IFERROR(F6:F34, 0))) -> 0 | G36: =SUM(IF(MOD(ROW(G6:G34)-ROW(G6),3)=0, IFERROR(G6:G34, 0))) -> 0 | H36: =SUM(IF(MOD(ROW(H6:H34)-ROW(H6),3)=0, IFERROR(H6:H34, 0))) -> 0 | I36: =SUM(IF(MOD(ROW(I6:I34)-ROW(I6),3)=0, IFERROR(I6:I34, 0))) -> 0 | J36: =SUM(IF(MOD(ROW(J6:J34)-ROW(J6),3)=0, IFERROR(J6:J34, 0))) -> 0 | K36: =SUM(IF(MOD(ROW(K6:K34)-ROW(K6),3)=0, IFERROR(K6:K34, 0))) -> 0 | L36: =SUM(IF(MOD(ROW(L6:L34)-ROW(L6),3)=0, IFERROR(L6:L34, 0))) -> 0 | M36: =SUM(IF(MOD(ROW(M6:M34)-ROW(M6),3)=0, IFERROR(M6:M34, 0))) -> 0 | N36: =SUM(IF(MOD(ROW(N6:N34)-ROW(N6),3)=0, IFERROR(N6:N34, 0))) -> 0 | O36: =SUM(IF(MOD(ROW(O6:O34)-ROW(O6),3)=0, IFERROR(O6:O34, 0))) -> 0 | P36: =SUM(IF(MOD(ROW(P6:P34)-ROW(P6),3)=0, IFERROR(P6:P34, 0))) -> 0 | Q36: =SUM(IF(MOD(ROW(Q6:Q34)-ROW(Q6),3)=0, IFERROR(Q6:Q34, 0))) -> 0
B37: YoY Growth | C37: - | D37: =(D36-C36)/C36 ->  | H37: =(H36-G36)/G36 -> 

Sheet Historicals
B2: =DCF!B2 -> APPLE INC.
B3: Historicals
B4: All Figures in USD$ Millions, expect for per share data
B5: As % of Revenue
F7: Actuals | M7: Forecast
D8: =YEAR(D9) -> 2019 | E8: =YEAR(E9) -> 2020 | F8: 2021 | G8: 2022 | H8: 2023 | I8: =YEAR(I9) -> 2024 | J8: =YEAR(J9) -> 2025 | K8: 2026 | L8: 2027 | M8: 2028 | N8: 2029 | O8: 2030 | P8: 2031 | Q8: 2032 | R8: 2033
D9: =EOMONTH(E9,-12) -> 2019-12-31 | E9: 2020-12-31 | F9: 2021-12-31 | G9: =EOMONTH(H9,-12) -> 2022-12-31 | H9: =DCF!H16 -> 2023-12-31 | I9: =EOMONTH(H9,12) -> 2024-12-31 | J9: =EOMONTH(I9,12) -> 2025-12-31 | K9: 2026-12-31 | L9: 2027-12-31 | M9: 2028-12-31 | N9: 2029-12-31 | O9: 2030-12-31 | P9: 2031-12-31 | Q9: 2032-12-31 | R9: 2033-12-31
B11: Revenue
B13: =IF(ISBLANK(Hub!D13), "Division 1", Hub!D13) -> Division 1 | D13: =(Revenue_Build!C6/Revenue_Build!C$36) ->  | E13: =(Revenue_Build!D6/Revenue_Build!D$36) ->  | F13: =(Revenue_Build!E6/Revenue_Build!E$36) ->  | G13: =(Revenue_Build!F6/Revenue_Build!F$36) ->  | H13: =(Revenue_Build!G6/Revenue_Build!G$36) ->  | I13: =(Revenue_Build!H6/Revenue_Build!H$36) ->  | J13: =(Revenue_Build!I6/Revenue_Build!I$36) ->  | K13: =(Revenue_Build!J6/Revenue_Build!J$36) ->  | L13: =(Revenue_Build!K6/Revenue_Build!K$36) ->  | M13: =(Revenue_Build!L6/Revenue_Build!L$36) ->  | N13: =(Revenue_Build!M6/Revenue_Build!M$36) ->  | O13: =(Revenue_Build!N6/Revenue_Build!N$36) ->  | P13: =(Revenue_Build!O6/Revenue_Build!O$36) ->  | Q13: =(Revenue_Build!P6/Revenue_Build!P$36) ->  | R13: =(Revenue_Build!Q6/Revenue_Build!Q$36) -> 
B14: =IF(ISBLANK(Hub!D14), "Division 2", Hub!D14) -> Division 2 | D14: =(Revenue_Build!C9/Revenue_Build!C$36) ->  | E14: =(Revenue_Build!D9/Revenue_Build!D$36) ->  | F14: =(Revenue_Build!E9/Revenue_Build!E$36) ->  | G14: =(Revenue_Build!F9/Revenue_Build!F$36) ->  | H14: =(Revenue_Build!G9/Revenue_Build!G$36) ->  | I14: =(Revenue_Build!H9/Revenue_Build!H$36) ->  | J14: =(Revenue_Build!I9/Revenue_Build!I$36) ->  | K14: =(Revenue_Build!J9/Revenue_Build!J$36) ->  | L14: =(Revenue_Build!K9/Revenue_Build!K$36) ->  | M14: =(Revenue_Build!L9/Revenue_Build!L$36) ->  | N14: =(Revenue_Build!M9/Revenue_Build!M$36) ->  | O14: =(Revenue_Build!N9/Revenue_Build!N$36) ->  | P14: =(Revenue_Build!O9/Revenue_Build!O$36) ->  | Q14: =(Revenue_Build!P9/Revenue_Build!P$36) ->  | R14: =(Revenue_Build!Q9/Revenue_Build!Q$36) -> 
B15: =IF(ISBLANK(Hub!D15), "Division 3", Hub!D15) -> Division 3 | D15: =(Revenue_Build!C12/Revenue_Build!C$36) ->  | E15: =(Revenue_Build!D12/Revenue_Build!D$36) ->  | F15: =(Revenue_Build!E12/Revenue_Build!E$36) ->  | G15: =(Revenue_Build!F12/Revenue_Build!F$36) ->  | H15: =(Revenue_Build!G12/Revenue_Build!G$36) ->  | I15: =(Revenue_Build!H12/Revenue_Build!H$36) ->  | J15: =(Revenue_Build!I12/Revenue_Build!I$36) ->  | K15: =(Revenue_Build!J12/Revenue_Build!J$36) ->  | L15: =(Revenue_Build!K12/Revenue_Build!K$36) ->  | M15: =(Revenue_Build!L12/Revenue_Build!L$36) ->  | N15: =(Revenue_Build!M12/Revenue_Build!M$36) ->  | O15: =(Revenue_Build!N12/Revenue_Build!N$36) ->  | P15: =(Revenue_Build!O12/Revenue_Build!O$36) ->  | Q15: =(Revenue_Build!P12/Revenue_Build!P$36) ->  | R15: =(Revenue_Build!Q12/Revenue_Build!Q$36) -> 
B16: =IF(ISBLANK(Hub!D16), "Division 4", Hub!D16) -> Division 4 | D16: =(Revenue_Build!C15/Revenue_Build!C$36) ->  | E16: =(Revenue_Build!D15/Revenue_Build!D$36) ->  | F16: =(Revenue_Build!E15/Revenue_Build!E$36) ->  | G16: =(Revenue_Build!F15/Revenue_Build!F$36) ->  | H16: =(Revenue_Build!G15/Revenue_Build!G$36) ->  | I16: =(Revenue_Build!H15/Revenue_Build!H$36) ->  | J16: =(Revenue_Build!I15/Revenue_Build!I$36) ->  | K16: =(Revenue_Build!J15/Revenue_Build!J$36) ->  | L16: =(Revenue_Build!K15/Revenue_Build!K$36) ->  | M16: =(Revenue_Build!L15/Revenue_Build!L$36) ->  | N16: =(Revenue_Build!M15/Revenue_Build!M$36) ->  | O16: =(Revenue_Build!N15/Revenue_Build!N$36) ->  | P16: =(Revenue_Build!O15/Revenue_Build!O$36) ->  | Q16: =(Revenue_Build!P15/Revenue_Build!P$36) ->  | R16: =(Revenue_Build!Q15/Revenue_Build!Q$36) -> 
B17: =IF(ISBLANK(Hub!D17), "Division 5", Hub!D17) -> Division 5 | D17: =(Revenue_Build!C18/Revenue_Build!C$36) ->  | E17: =(Revenue_Build!D18/Revenue_Build!D$36) ->  | F17: =(Revenue_Build!E18/Revenue_Build!E$36) ->  | G17: =(Revenue_Build!F18/Revenue_Build!F$36) ->  | H17: =(Revenue_Build!G18/Revenue_Build!G$36) ->  | I17: =(Revenue_Build!H18/Revenue_Build!H$36) ->  | J17: =(Revenue_Build!I18/Revenue_Build!I$36) ->  | K17: =(Revenue_Build!J18/Revenue_Build!J$36) ->  | L17: =(Revenue_Build!K18/Revenue_Build!K$36) ->  | M17: =(Revenue_Build!L18/Revenue_Build!L$36) ->  | N17: =(Revenue_Build!M18/Revenue_Build!M$36) ->  | O17: =(Revenue_Build!N18/Revenue_Build!N$36) ->  | P17: =(Revenue_Build!O18/Revenue_Build!O$36) ->  | Q17: =(Revenue_Build!P18/Revenue_Build!P$36) ->  | R17: =(Revenue_Build!Q18/Revenue_Build!Q$36) -> 
B18: =IF(ISBLANK(Hub!H13), "Division 6", Hub!H13) -> Division 6 | D18: =(Revenue_Build!C21/Revenue_Build!C$36) ->  | E18: =(Revenue_Build!D21/Revenue_Build!D$36) ->  | F18: =(Revenue_Build!E21/Revenue_Build!E$36) ->  | G18: =(Revenue_Build!F21/Revenue_Build!F$36) ->  | H18: =(Revenue_Build!G21/Revenue_Build!G$36) ->  | I18: =(Revenue_Build!H21/Revenue_Build!H$36) ->  | J18: =(Revenue_Build!I21/Revenue_Build!I$36) ->  | K18: =(Revenue_Build!J21/Revenue_Build!J$36) ->  | L18: =(Revenue_Build!K21/Revenue_Build!K$36) ->  | M18: =(Revenue_Build!L21/Revenue_Build!L$36) ->  | N18: =(Revenue_Build!M21/Revenue_Build!M$36) ->  | O18: =(Revenue_Build!N21/Revenue_Build!N$36) ->  | P18: =(Revenue_Build!O21/Revenue_Build!O$36) ->  | Q18: =(Revenue_Build!P21/Revenue_Build!P$36) ->  | R18: =(Revenue_Build!Q21/Revenue_Build!Q$36) -> 
B19: =IF(ISBLANK(Hub!H14), "Division 7", Hub!H14) -> Division 7 | D19: =(Revenue_Build!C24/Revenue_Build!C$36) ->  | E19: =(Revenue_Build!D24/Revenue_Build!D$36) ->  | F19: =(Revenue_Build!E24/Revenue_Build!E$36) ->  | G19: =(Revenue_Build!F24/Revenue_Build!F$36) ->  | H19: =(Revenue_Build!G24/Revenue_Build!G$36) ->  | I19: =(Revenue_Build!H24/Revenue_Build!H$36) ->  | J19: =(Revenue_Build!I24/Revenue_Build!I$36) ->  | K19: =(Revenue_Build!J24/Revenue_Build!J$36) ->  | L19: =(Revenue_Build!K24/Revenue_Build!K$36) ->  | M19: =(Revenue_Build!L24/Revenue_Build!L$36) ->  | N19: =(Revenue_Build!M24/Revenue_Build!M$36) ->  | O19: =(Revenue_Build!N24/Revenue_Build!N$36) ->  | P19: =(Revenue_Build!O24/Revenue_Build!O$36) ->  | Q19: =(Revenue_Build!P24/Revenue_Build!P$36) ->  | R19: =(Revenue_Build!Q24/Revenue_Build!Q$36) -> 
B20: =IF(ISBLANK(Hub!H15), "Division 8", Hub!H15) -> Division 8 | D20: =(Revenue_Build!C27/Revenue_Build!C$36) ->  | E20: =(Revenue_Build!D27/Revenue_Build!D$36) ->  | F20: =(Revenue_Build!E27/Revenue_Build!E$36) ->  | G20: =(Revenue_Build!F27/Revenue_Build!F$36) ->  | H20: =(Revenue_Build!G27/Revenue_Build!G$36) ->  | I20: =(Revenue_Build!H27/Revenue_Build!H$36) ->  | J20: =(Revenue_Build!I27/Revenue_Build!I$36) ->  | K20: =(Revenue_Build!J27/Revenue_Build!J$36) ->  | L20: =(Revenue_Build!K27/Revenue_Build!K$36) ->  | M20: =(Revenue_Build!L27/Revenue_Build!L$36) ->  | N20: =(Revenue_Build!M27/Revenue_Build!M$36) ->  | O20: =(Revenue_Build!N27/Revenue_Build!N$36) ->  | P20: =(Revenue_Build!O27/Revenue_Build!O$36) ->  | Q20: =(Revenue_Build!P27/Revenue_Build!P$36) ->  | R20: =(Revenue_Build!Q27/Revenue_Build!Q$36) -> 
B21: =IF(ISBLANK(Hub!H16), "Division 9", Hub!H16) -> Division 9 | D21: =(Revenue_Build!C30/Revenue_Build!C$36) ->  | E21: =(Revenue_Build!D30/Revenue_Build!D$36) ->  | F21: =(Revenue_Build!E30/Revenue_Build!E$36) ->  | G21: =(Revenue_Build!F30/Revenue_Build!F$36) ->  | H21: =(Revenue_Build!G30/Revenue_Build!G$36) ->  | I21: =(Revenue_Build!H30/Revenue_Build!H$36) ->  | J21: =(Revenue_Build!I30/Revenue_Build!I$36) ->  | K21: =(Revenue_Build!J30/Revenue_Build!J$36) ->  | L21: =(Revenue_Build!K30/Revenue_Build!K$36) ->  | M21: =(Revenue_Build!L30/Revenue_Build!L$36) ->  | N21: =(Revenue_Build!M30/Revenue_Build!M$36) ->  | O21: =(Revenue_Build!N30/Revenue_Build!N$36) ->  | P21: =(Revenue_Build!O30/Revenue_Build!O$36) ->  | Q21: =(Revenue_Build!P30/Revenue_Build!P$36) ->  | R21: =(Revenue_Build!Q30/Revenue_Build!Q$36) -> 
B22: =IF(ISBLANK(Hub!H17), "Division 10", Hub!H17) -> Division 10 | D22: =(Revenue_Build!C33/Revenue_Build!C$36) ->  | E22: =(Revenue_Build!D33/Revenue_Build!D$36) ->  | F22: =(Revenue_Build!E33/Revenue_Build!E$36) ->  | G22: =(Revenue_Build!F33/Revenue_Build!F$36) ->  | H22: =(Revenue_Build!G33/Revenue_Build!G$36) ->  | I22: =(Revenue_Build!H33/Revenue_Build!H$36) ->  | J22: =(Revenue_Build!I33/Revenue_Build!I$36) ->  | K22: =(Revenue_Build!J33/Revenue_Build!J$36) ->  | L22: =(Revenue_Build!K33/Revenue_Build!K$36) ->  | M22: =(Revenue_Build!L33/Revenue_Build!L$36) ->  | N22: =(Revenue_Build!M33/Revenue_Build!M$36) ->  | O22: =(Revenue_Build!N33/Revenue_Build!N$36) ->  | P22: =(Revenue_Build!O33/Revenue_Build!O$36) ->  | Q22: =(Revenue_Build!P33/Revenue_Build!P$36) ->  | R22: =(Revenue_Build!Q33/Revenue_Build!Q$36) -> 
B24: Revenue | D24: =Revenue_Build!C36 -> 0 | E24: =Revenue_Build!D36 -> 0 | F24: =Revenue_Build!E36 -> 0 | G24: =Revenue_Build!F36 -> 0 | H24: =Revenue_Build!G36 -> 0 | I24: =Revenue_Build!H36 -> 0 | J24: =Revenue_Build!I36 -> 0 | K24: =Revenue_Build!J36 -> 0 | L24: =Revenue_Build!K36 -> 0 | M24: =Revenue_Build!L36 -> 0 | N24: =Revenue_Build!M36 -> 0 | O24: =Revenue_Build!N36 -> 0 | P24: =Revenue_Build!O36 -> 0 | Q24: =Revenue_Build!P36 -> 0 | R24: =Revenue_Build!Q36 -> 0
B27: COGS
B29: Cost of Goods Sold | D29: =Operating_Model!D48/Operating_Model!D42 ->  | E29: =Operating_Model!E48/Operating_Model!E42 ->  | F29: =Operating_Model!F48/Operating_Model!F42 ->  | G29: =Operating_Model!G48/Operating_Model!G42 ->  | H29: =Operating_Model!H48/Operating_Model!H42 ->  | I29: =IF(RSQ($D29:$H29,$D$8:$H$8)>0.5,((SLOPE($D29:$H29,$D$8:$H$8)+H29)*RSQ($D29:$H29,$D$8:$H$8)+(AVERAGE($D29:$H29)*(1-RSQ($D29:$H29,$D$8:$H$8)))),AVERAGE($D29:$H29)) ->  | J29: =IF(RSQ($D29:$H29,$D$8:$H$8)>0.5,((SLOPE($D29:$H29,$D$8:$H$8)+I29)*RSQ($D29:$H29,$D$8:$H$8)+(AVERAGE($D29:$H29)*(1-RSQ($D29:$H29,$D$8:$H$8)))),AVERAGE($D29:$H29)) -> 
B30: Cost of Services Sold | D30: =Operating_Model!D51/Operating_Model!D42 ->  | E30: =Operating_Model!E51/Operating_Model!E42 ->  | F30: =Operating_Model!F51/Operating_Model!F42 ->  | G30: =Operating_Model!G51/Operating_Model!G42 ->  | H30: =Operating_Model!H51/Operating_Model!H42 ->  | I30: =IF(RSQ($D30:$H30,$D$8:$H$8)>0.5,((SLOPE($D30:$H30,$D$8:$H$8)+H30)*RSQ($D30:$H30,$D$8:$H$8)+(AVERAGE($D30:$H30)*(1-RSQ($D30:$H30,$D$8:$H$8)))),AVERAGE($D30:$H30)) ->  | M30: =IF(RSQ($D30:$H30,$D$8:$H$8)>0.5,((SLOPE($D30:$H30,$D$8:$H$8)+L30)*RSQ($D30:$H30,$D$8:$H$8)+(AVERAGE($D30:$H30)*(1-RSQ($D30:$H30,$D$8:$H$8)))),AVERAGE($D30:$H30)) -> 
B32: COGS | D32: =SUM(D29:D30)*D24 -> 
B35: Fixed Expenses
B37: SG&A | D37: =Operating_Model!D59/Operating_Model!D$42 ->  | E37: =Operating_Model!E59/Operating_Model!E$42 ->  | F37: =Operating_Model!F59/Operating_Model!F$42 ->  | G37: =Operating_Model!G59/Operating_Model!G$42 ->  | H37: =Operating_Model!H59/Operating_Model!H$42 ->  | I37: =Operating_Model!I59/Operating_Model!I$42 ->  | J37: =Operating_Model!J59/Operating_Model!J$42 ->  | K37: =Operating_Model!K59/Operating_Model!K$42 ->  | L37: =Operating_Model!L59/Operating_Model!L$42 ->  | M37: =Operating_Model!M59/Operating_Model!M$42 ->  | N37: =Operating_Model!N59/Operating_Model!N$42 ->  | O37: =Operating_Model!O59/Operating_Model!O$42 ->  | P37: =Operating_Model!P59/Operating_Model!P$42 ->  | Q37: =Operating_Model!Q59/Operating_Model!Q$42 ->  | R37: =Operating_Model!R59/Operating_Model!R$42 -> 
B38: Employee Benefits | D38: =Operating_Model!D62/Operating_Model!D$42 ->  | E38: =Operating_Model!E62/Operating_Model!E$42 ->  | F38: =Operating_Model!F62/Operating_Model!F$42 ->  | G38: =Operating_Model!G62/Operating_Model!G$42 ->  | H38: =Operating_Model!H62/Operating_Model!H$42 ->  | I38: =Operating_Model!I62/Operating_Model!I$42 ->  | J38: =Operating_Model!J62/Operating_Model!J$42 ->  | K38: =Operating_Model!K62/Operating_Model!K$42 ->  | L38: =Operating_Model!L62/Operating_Model!L$42 ->  | M38: =Operating_Model!M62/Operating_Model!M$42 ->  | N38: =Operating_Model!N62/Operating_Model!N$42 ->  | O38: =Operating_Model!O62/Operating_Model!O$42 ->  | P38: =Operating_Model!P62/Operating_Model!P$42 ->  | Q38: =Operating_Model!Q62/Operating_Model!Q$42 ->  | R38: =Operating_Model!R62/Operating_Model!R$42 -> 
B39: Other Fixed Expenses | D39: =Operating_Model!D65/Operating_Model!D$42 ->  | E39: =Operating_Model!E65/Operating_Model!E$42 ->  | F39: =Operating_Model!F65/Operating_Model!F$42 ->  | G39: =Operating_Model!G65/Operating_Model!G$42 ->  | H39: =Operating_Model!H65/Operating_Model!H$42 ->  | I39: =Operating_Model!I65/Operating_Model!I$42 ->  | J39: =Operating_Model!J65/Operating_Model!J$42 ->  | K39: =Operating_Model!K65/Operating_Model!K$42 ->  | L39: =Operating_Model!L65/Operating_Model!L$42 ->  | M39: =Operating_Model!M65/Operating_Model!M$42 ->  | N39: =Operating_Model!N65/Operating_Model!N$42 ->  | O39: =Operating_Model!O65/Operating_Model!O$42 ->  | P39: =Operating_Model!P65/Operating_Model!P$42 ->  | Q39: =Operating_Model!Q65/Operating_Model!Q$42 ->  | R39: =Operating_Model!R65/Operating_Model!R$42 -> 
B41: Fixed Expenses | D41: =SUM(D37:D39)*D24 -> 

Sheet Debt_Schedule
C2: Year Due | D2: Yearly Coupon Rate | E2: Estimated Coupon Rate? | F2: Principal | H2: Market Value | L2: Year Due | M2: Interest Rate | N2: Estimated Interest Rate? | O2: Amount left | Q2: Market Value | W2: Actuals | AB2: Forecast | AL2: IR | AM2: Amount | AN2: Years
T3: =YEAR(T4) -> 2018 | U3: =YEAR(U4) -> 2019 | V3: =YEAR(V4) -> 2020 | W3: 2021 | X3: 2022 | Y3: =YEAR(Y4) -> 2023 | Z3: =YEAR(Z4) -> 2024 | AA3: =YEAR(AA4) -> 2025 | AB3: 2026 | AC3: 2027 | AD3: 2028 | AE3: 2029 | AF3: 2030 | AG3: 2031 | AH3: 2032 | AI3: 2033 | AK3: Cash From Debt
B4: Bond 1 | H4: =-PV(DCF!$C$12, C4-YEAR(DCF!$C$10), F4*D4, F4, 0) -> 0 | K4: Loan 1 | Q4: =-PV(DCF!$C$12, L4-YEAR(DCF!$C$10), O4*M4, O4, 0) -> 0 | T4: =EOMONTH(U4,-12) -> 2018-12-31 | U4: =EOMONTH(V4,-12) -> 2019-12-31 | V4: =EOMONTH(W4,-12) -> 2020-12-31 | W4: =EOMONTH(X4,-12) -> 2021-12-31 | X4: =EOMONTH(Y4,-12) -> 2022-12-31 | Y4: =DCF!H16 -> 2023-12-31 | Z4: =EOMONTH(Y4,12) -> 2024-12-31 | AA4: =EOMONTH(Z4,12) -> 2025-12-31 | AB4: =EOMONTH(AA4,12) -> 2026-12-31 | AC4: =EOMONTH(AB4,12) -> 2027-12-31 | AD4: =EOMONTH(AC4,12) -> 2028-12-31 | AE4: =EOMONTH(AD4,12) -> 2029-12-31 | AF4: =EOMONTH(AE4,12) -> 2030-12-31 | AG4: =EOMONTH(AF4,12) -> 2031-12-31 | AH4: =EOMONTH(AG4,12) -> 2032-12-31 | AI4: =EOMONTH(AH4,12) -> 2033-12-31
B5: Bond 2 | H5: =-PV(DCF!$C$12, C5-YEAR(DCF!$C$10), F5*D5, F5, 0) -> 0 | K5: Loan 2 | Q5: =-PV(DCF!$C$12, L5-YEAR(DCF!$C$10), O5*M5, O5, 0) -> 0 | S5: Main Debt Schedule | AK5: =Z3 -> 2024 | AL5: =IF(COUNTBLANK(M4:M23)=20, IF(COUNTBLANK(D4:D23)=20, "N/A", SUMPRODUCT(D4:D23*F4:F23)/SUM(F4:F23)), SUMPRODUCT(M4:M23*O4:O23)/SUM(O4:O23)) -> N/A | AM5: =Z11 ->  | AN5: =IF(COUNTBLANK(L4:L23)=20, IF(COUNTBLANK(C4:C23)=20, "N/A", SUMPRODUCT(C4:C23*F4:F23)/SUM(F4:F23)), SUMPRODUCT(L4:L23*O4:O23)/SUM(O4:O23))-YEAR(Z4) -> 
B6: Bond 3 | H6: =-PV(DCF!$C$12, C6-YEAR(DCF!$C$10), F6*D6, F6, 0) -> 0 | K6: Loan 3 | Q6: =-PV(DCF!$C$12, L6-YEAR(DCF!$C$10), O6*M6, O6, 0) -> 0 | AK6: =AA3 -> 2025 | AL6: =AL5 -> N/A | AM6: =AA11 ->  | AN6: =AN5 -> 
B7: Bond 4 | H7: =-PV(DCF!$C$12, C7-YEAR(DCF!$C$10), F7*D7, F7, 0) -> 0 | K7: Loan 4 | Q7: =-PV(DCF!$C$12, L7-YEAR(DCF!$C$10), O7*M7, O7, 0) -> 0 | S7: Interest | U7: =Operating_Model!D91 -> 0 | V7: =Operating_Model!E91 -> 0 | W7: =Operating_Model!F91 -> 0 | X7: =Operating_Model!G91 -> 0 | Y7: =Operating_Model!H91 -> 0 | Z7: =(SUMPRODUCT(($C4:$C23>=Z3)*($D4:$D23*$F4:$F23)))+(SUM(IF($L4:$L23>=Z3, -IPMT($M4:$M23, 1, $L4:$L23-$Y3, $O4:$O23), 0)))+(SUM(IF($AK5:$AK14<Z3,IFERROR(-IPMT($AL5:$AL14,Z3-$AK5:$AK14,$AN5:$AN14,$AM5:$AM14), 0),0))) -> 0 | AA7: =(SUMPRODUCT(($C4:$C23>=AA3)*($D4:$D23*$F4:$F23)))+(SUM(IF($L4:$L23>=AA3, -IPMT($M4:$M23, 2, $L4:$L23-$Y3, $O4:$O23), 0)))+(SUM(IF($AK5:$AK14<AA3,IFERROR(-IPMT($AL5:$AL14,AA3-$AK5:$AK14,$AN5:$AN14,$AM5:$AM14), 0),0))) -> 0 | AB7: =(SUMPRODUCT(($C4:$C23>=AB3)*($D4:$D23*$F4:$F23)))+(SUM(IF($L4:$L23>=AB3, -IPMT($M4:$M23, 3, $L4:$L23-$Y3, $O4:$O23), 0)))+(SUM(IF($AK5:$AK14<AB3,IFERROR(-IPMT($AL5:$AL14,AB3-$AK5:$AK14,$AN5:$AN14,$AM5:$AM14), 0),0))) -> 0 | AC7: =(SUMPRODUCT(($C4:$C23>=AC3)*($D4:$D23*$F4:$F23)))+(SUM(IF($L4:$L23>=AC3, -IPMT($M4:$M23, 4, $L4:$L23-$Y3, $O4:$O23), 0)))+(SUM(IF($AK5:$AK14<AC3,IFERROR(-IPMT($AL5:$AL14,AC3-$AK5:$AK14,$AN5:$AN14,$AM5:$AM14), 0),0))) -> 0 | AD7: =(SUMPRODUCT(($C4:$C23>=AD3)*($D4:$D23*$F4:$F23)))+(SUM(IF($L4:$L23>=AD3, -IPMT($M4:$M23, 5, $L4:$L23-$Y3, $O4:$O23), 0)))+(SUM(IF($AK5:$AK14<AD3,IFERROR(-IPMT($AL5:$AL14,AD3-$AK5:$AK14,$AN5:$AN14,$AM5:$AM14), 0),0))) -> 0 | AE7: =(SUMPRODUCT(($C4:$C23>=AE3)*($D4:$D23*$F4:$F23)))+(SUM(IF($L4:$L23>=AE3, -IPMT($M4:$M23, 6, $L4:$L23-$Y3, $O4:$O23), 0)))+(SUM(IF($AK5:$AK14<AE3,IFERROR(-IPMT($AL5:$AL14,AE3-$AK5:$AK14,$AN5:$AN14,$AM5:$AM14), 0),0))) -> 0 | AF7: =(SUMPRODUCT(($C4:$C23>=AF3)*($D4:$D23*$F4:$F23)))+(SUM(IF($L4:$L23>=AF3, -IPMT($M4:$M23, 7, $L4:$L23-$Y3, $O4:$O23), 0)))+(SUM(IF($AK5:$AK14<AF3,IFERROR(-IPMT($AL5:$AL14,AF3-$AK5:$AK14,$AN5:$AN14,$AM5:$AM14), 0),0))) -> 0 | AG7: =(SUMPRODUCT(($C4:$C23>=AG3)*($D4:$D23*$F4:$F23)))+(SUM(IF($L4:$L23>=AG3, -IPMT($M4:$M23, 8, $L4:$L23-$Y3, $O4:$O23), 0)))+(SUM(IF($AK5:$AK14<AG3,IFERROR(-IPMT($AL5:$AL14,AG3-$AK5:$AK14,$AN5:$AN14,$AM5:$AM14), 0),0))) -> 0 | AH7: =(SUMPRODUCT(($C4:$C23>=AH3)*($D4:$D23*$F4:$F23)))+(SUM(IF($L4:$L23>=AH3, -IPMT($M4:$M23, 9, $L4:$L23-$Y3, $O4:$O23), 0)))+(SUM(IF($AK5:$AK14<AH3,IFERROR(-IPMT($AL5:$AL14,AH3-$AK5:$AK14,$AN5:$AN14,$AM5:$AM14), 0),0))) -> 0 | AI7: =(SUMPRODUCT(($C4:$C23>=AI3)*($D4:$D23*$F4:$F23)))+(SUM(IF($L4:$L23>=AI3, -IPMT($M4:$M23, 10, $L4:$L23-$Y3, $O4:$O23), 0)))+(SUM(IF($AK5:$AK14<AI3,IFERROR(-IPMT($AL5:$AL14,AI3-$AK5:$AK14,$AN5:$AN14,$AM5:$AM14), 0),0))) -> 0 | AK7: =AB3 -> 2026 | AL7: =AL6 -> N/A | AM7: =AB11 ->  | AN7: =AN6 -> 
B8: Bond 5 | H8: =-PV(DCF!$C$12, C8-YEAR(DCF!$C$10), F8*D8, F8, 0) -> 0 | K8: Loan 5 | Q8: =-PV(DCF!$C$12, L8-YEAR(DCF!$C$10), O8*M8, O8, 0) -> 0 | AA8: For both, add if statements to see if calculators disabled or enabled | AK8: =AB3 -> 2026 | AL8: N/A | AM8: =AC11 -> 
B9: Bond 6 | H9: =-PV(DCF!$C$12, C9-YEAR(DCF!$C$10), F9*D9, F9, 0) -> 0 | K9: Loan 6 | Q9: =-PV(DCF!$C$12, L9-YEAR(DCF!$C$10), O9*M9, O9, 0) -> 0 | S9: Repayments of Debts | Z9: =(SUMIFS($F4:$F23, $C4:$C23, Z3))+(SUM(IF($L4:$L23>=Z3, -PPMT($M4:$M23, 1, $L4:$L23-$Y3, $O4:$O23), 0)))+(SUM(IF($AK5:$AK14<Z3,IFERROR(-PPMT($AL5:$AL14,Z3-$AK5:$AK14,$AN5:$AN14,$AM5:$AM14), 0),0))) -> 0 | AA9: =(SUMIFS($F4:$F23, $C4:$C23, AA3))+(SUM(IF($L4:$L23>=AA3, -PPMT($M4:$M23, 2, $L4:$L23-$Y3, $O4:$O23), 0)))+(SUM(IF($AK5:$AK14<AA3,IFERROR(-PPMT($AL5:$AL14,AA3-$AK5:$AK14,$AN5:$AN14,$AM5:$AM14), 0),0))) -> 0 | AB9: =(SUMIFS($F4:$F23, $C4:$C23, AB3))+(SUM(IF($L4:$L23>=AB3, -PPMT($M4:$M23, 3, $L4:$L23-$Y3, $O4:$O23), 0)))+(SUM(IF($AK5:$AK14<AB3,IFERROR(-PPMT($AL5:$AL14,AB3-$AK5:$AK14,$AN5:$AN14,$AM5:$AM14), 0),0))) -> 0 | AC9: =(SUMIFS($F4:$F23, $C4:$C23, AC3))+(SUM(IF($L4:$L23>=AC3, -PPMT($M4:$M23, 4, $L4:$L23-$Y3, $O4:$O23), 0)))+(SUM(IF($AK5:$AK14<AC3,IFERROR(-PPMT($AL5:$AL14,AC3-$AK5:$AK14,$AN5:$AN14,$AM5:$AM14), 0),0))) -> 0 | AD9: =(SUMIFS($F4:$F23, $C4:$C23, AD3))+(SUM(IF($L4:$L23>=AD3, -PPMT($M4:$M23, 5, $L4:$L23-$Y3, $O4:$O23), 0)))+(SUM(IF($AK5:$AK14<AD3,IFERROR(-PPMT($AL5:$AL14,AD3-$AK5:$AK14,$AN5:$AN14,$AM5:$AM14), 0),0))) -> 0 | AE9: =(SUMIFS($F4:$F23, $C4:$C23, AE3))+(SUM(IF($L4:$L23>=AE3, -PPMT($M4:$M23, 6, $L4:$L23-$Y3, $O4:$O23), 0)))+(SUM(IF($AK5:$AK14<AE3,IFERROR(-PPMT($AL5:$AL14,AE3-$AK5:$AK14,$AN5:$AN14,$AM5:$AM14), 0),0))) -> 0 | AF9: =(SUMIFS($F4:$F23, $C4:$C23, AF3))+(SUM(IF($L4:$L23>=AF3, -PPMT($M4:$M23, 7, $L4:$L23-$Y3, $O4:$O23), 0)))+(SUM(IF($AK5:$AK14<AF3,IFERROR(-PPMT($AL5:$AL14,AF3-$AK5:$AK14,$AN5:$AN14,$AM5:$AM14), 0),0))) -> 0 | AG9: =(SUMIFS($F4:$F23, $C4:$C23, AG3))+(SUM(IF($L4:$L23>=AG3, -PPMT($M4:$M23, 8, $L4:$L23-$Y3, $O4:$O23), 0)))+(SUM(IF($AK5:$AK14<AG3,IFERROR(-PPMT($AL5:$AL14,AG3-$AK5:$AK14,$AN5:$AN14,$AM5:$AM14), 0),0))) -> 0 | AH9: =(SUMIFS($F4:$F23, $C4:$C23, AH3))+(SUM(IF($L4:$L23>=AH3, -PPMT($M4:$M23, 9, $L4:$L23-$Y3, $O4:$O23), 0)))+(SUM(IF($AK5:$AK14<AH3,IFERROR(-PPMT($AL5:$AL14,AH3-$AK5:$AK14,$AN5:$AN14,$AM5:$AM14), 0),0))) -> 0 | AI9: =(SUMIFS($F4:$F23, $C4:$C23, AI3))+(SUM(IF($L4:$L23>=AI3, -PPMT($M4:$M23, 10, $L4:$L23-$Y3, $O4:$O23), 0)))+(SUM(IF($AK5:$AK14<AI3,IFERROR(-PPMT($AL5:$AL14,AI3-$AK5:$AK14,$AN5:$AN14,$AM5:$AM14), 0),0))) -> 0 | AK9: =AD3 -> 2028 | AL9: =AL8 -> N/A | AM9: =AD11 ->  | AN9: =AN8 -> 
B10: Bond 7 | H10: =-PV(DCF!$C$12, C10-YEAR(DCF!$C$10), F10*D10, F10, 0) -> 0 | K10: Loan 7 | Q10: =-PV(DCF!$C$12, L10-YEAR(DCF!$C$10), O10*M10, O10, 0) -> 0 | AK10: =AE3 -> 2029 | AL10: =AL9 -> N/A | AM10: =AE11 ->  | AN10: =AN9 -> 
B11: Bond 8 | H11: =-PV(DCF!$C$12, C11-YEAR(DCF!$C$10), F11*D11, F11, 0) -> 0 | K11: Loan 8 | Q11: =-PV(DCF!$C$12, L11-YEAR(DCF!$C$10), O11*M11, O11, 0) -> 0 | S11: Cash from Debt | Z11: =AVERAGE(U11:Y11) ->  | AA11: =Z11 ->  | AB11: =AA11 ->  | AE11: =AD11 ->  | AF11: =AE11 ->  | AG11: =AF11 ->  | AH11: =AG11 ->  | AI11: =AH11 ->  | AK11: =AF3 -> 2030 | AL11: N/A | AM11: =AF11 -> 
B12: Bond 9 | H12: =-PV(DCF!$C$12, C12-YEAR(DCF!$C$10), F12*D12, F12, 0) -> 0 | K12: Loan 9 | Q12: =-PV(DCF!$C$12, L12-YEAR(DCF!$C$10), O12*M12, O12, 0) -> 0 | AK12: =AG3 -> 2031 | AL12: N/A | AM12: =AG11 -> 
B13: Bond 10 | H13: =-PV(DCF!$C$12, C13-YEAR(DCF!$C$10), F13*D13, F13, 0) -> 0 | K13: Loan 10 | Q13: =-PV(DCF!$C$12, L13-YEAR(DCF!$C$10), O13*M13, O13, 0) -> 0 | S13: Total Debts | U13: =T13-U9+U11 -> 0 | V13: =U13-V9+V11 -> 0 | W13: 0 | X13: 0 | Y13: =F25+O25 -> 0 | Z13: =Y13-Z9+Z11 ->  | AA13: =Z13-AA9+AA11 ->  | AE13: =AD13-AE9+AE11 ->  | AF13: =AE13-AF9+AF11 ->  | AG13: =AF13-AG9+AG11 ->  | AH13: =AG13-AH9+AH11 ->  | AI13: =AH13-AI9+AI11 ->  | AK13: =AH3 -> 2032 | AL13: N/A | AM13: =AH11 -> 
B14: Bond 11 | H14: =-PV(DCF!$C$12, C14-YEAR(DCF!$C$10), F14*D14, F14, 0) -> 0 | K14: Loan 11 | Q14: =-PV(DCF!$C$12, L14-YEAR(DCF!$C$10), O14*M14, O14, 0) -> 0 | AK14: =AI3 -> 2033 | AL14: N/A | AM14: =AI11 -> 
B15: Bond 12 | H15: =-PV(DCF!$C$12, C15-YEAR(DCF!$C$10), F15*D15, F15, 0) -> 0 | K15: Loan 12 | Q15: =-PV(DCF!$C$12, L15-YEAR(DCF!$C$10), O15*M15, O15, 0) -> 0 | Y15: =IF(Y13=X13-Y9+Y11, "Balanced", "Unbalanced") -> Balanced | AA15: Debt taken here estimated to only be bank loans (no bonds issued)
B16: Bond 13 | H16: =-PV(DCF!$C$12, C16-YEAR(DCF!$C$10), F16*D16, F16, 0) -> 0 | K16: Loan 13 | Q16: =-PV(DCF!$C$12, L16-YEAR(DCF!$C$10), O16*M16, O16, 0) -> 0
B17: Bond 14 | H17: =-PV(DCF!$C$12, C17-YEAR(DCF!$C$10), F17*D17, F17, 0) -> 0 | K17: Loan 14 | Q17: =-PV(DCF!$C$12, L17-YEAR(DCF!$C$10), O17*M17, O17, 0) -> 0
B18: Bond 15 | H18: =-PV(DCF!$C$12, C18-YEAR(DCF!$C$10), F18*D18, F18, 0) -> 0 | K18: Loan 15 | Q18: =-PV(DCF!$C$12, L18-YEAR(DCF!$C$10), O18*M18, O18, 0) -> 0
B19: Bond 16 | H19: =-PV(DCF!$C$12, C19-YEAR(DCF!$C$10), F19*D19, F19, 0) -> 0 | K19: Loan 16 | Q19: =-PV(DCF!$C$12, L19-YEAR(DCF!$C$10), O19*M19, O19, 0) -> 0
B20: Bond 17 | H20: =-PV(DCF!$C$12, C20-YEAR(DCF!$C$10), F20*D20, F20, 0) -> 0 | K20: Loan 17 | Q20: =-PV(DCF!$C$12, L20-YEAR(DCF!$C$10), O20*M20, O20, 0) -> 0
B21: Bond 18 | H21: =-PV(DCF!$C$12, C21-YEAR(DCF!$C$10), F21*D21, F21, 0) -> 0 | K21: Loan 18 | Q21: =-PV(DCF!$C$12, L21-YEAR(DCF!$C$10), O21*M21, O21, 0) -> 0
B22: Bond 19 | H22: =-PV(DCF!$C$12, C22-YEAR(DCF!$C$10), F22*D22, F22, 0) -> 0 | K22: Loan 19 | Q22: =-PV(DCF!$C$12, L22-YEAR(DCF!$C$10), O22*M22, O22, 0) -> 0
B23: Bond 20 | H23: =-PV(DCF!$C$12, C23-YEAR(DCF!$C$10), F23*D23, F23, 0) -> 0 | K23: Loan 20 | Q23: =-PV(DCF!$C$12, L23-YEAR(DCF!$C$10), O23*M23, O23, 0) -> 0
B25: Total Debts | D25: =SUMPRODUCT(D4:D23,F4:F23)/SUM(F4:F23) ->  | F25: =SUM(F4:F23) -> 0 | H25: =SUM(H4:H23) -> 0 | K25: Total Loans | O25: =SUM(O4:O23) -> 0 | Q25: =SUM(Q4:Q23) -> 0
D27: =IF(Hub!D87="Yes","Bond Market Value Calculator Disabled",IF(AND(Hub!H28="Yes",Hub!D30="Yes"),"Bond Market Value Calculator Enabled","Bond Market Value Calculator Disabled")) -> Bond Market Value Calculator Disabled | N27: =IF(Hub!D87="Yes", "Bank Loan Calculator Disabled", IF(AND(Hub!H28="Yes", Hub!H30="Yes"), "Bank Loan Calculator Enabled", "Bank Loan Calculator Disabled")) -> Bank Loan Calculator Disabled
X28: =IF(AND(D27="Bond Market Value Calculator Disabled", N27="Bank Loan Calculator Disabled"), "Backup Schedule Enabled", "Backup Schedule Disabled") -> Backup Schedule Enabled
W30: Actuals | AB30: Forecast
T31: =YEAR(T32) -> 2018 | U31: =YEAR(U32) -> 2019 | V31: =YEAR(V32) -> 2020 | W31: 2021 | X31: 2022 | Y31: 2023 | Z31: =YEAR(Z32) -> 2024 | AA31: =YEAR(AA32) -> 2025 | AB31: 2026 | AC31: 2027 | AD31: 2028 | AE31: 2029 | AF31: 2030 | AG31: 2031 | AH31: 2032 | AI31: 2033
T32: =EOMONTH(U32,-12) -> 2018-12-31 | U32: 2019-12-31 | V32: 2020-12-31 | W32: 2021-12-31 | X32: =EOMONTH(Y32,-12) -> 2022-12-31 | Y32: =DCF!H16 -> 2023-12-31 | Z32: =EOMONTH(Y32,12) -> 2024-12-31 | AA32: =EOMONTH(Z32,12) -> 2025-12-31 | AB32: 2026-12-31 | AC32: 2027-12-31 | AD32: 2028-12-31 | AE32: =EOMONTH(AD32,12) -> 2029-12-31 | AF32: =EOMONTH(AE32,12) -> 2030-12-31 | AG32: =EOMONTH(AF32,12) -> 2031-12-31 | AH32: =EOMONTH(AG32,12) -> 2032-12-31 | AI32: =EOMONTH(AH32,12) -> 2033-12-31
S33: Debt Schedule Backup
S35: Interest | U35: =Operating_Model!D91 -> 0 | V35: =Operating_Model!E91 -> 0 | W35: =Operating_Model!F91 -> 0 | X35: =Operating_Model!G91 -> 0 | Y35: =Operating_Model!H91 -> 0 | Z35: =Y41*Z43 ->  | AA35: =Z41*AA43 ->  | AE35: =AD41*AE43 ->  | AF35: =AE41*AF43 ->  | AG35: =AF41*AG43 ->  | AH35: =AG41*AH43 ->  | AI35: =AH41*AI43 -> 
S37: Repayments of Debts | U37: =U9 -> 0 | V37: =V9 -> 0 | W37: 0 | X37: 0 | Y37: 0 | Z37: =AVERAGE(U37:Y37) -> 0 | AA37: =Z37 -> 0 | AB37: =AA37 -> 0 | AC37: 0 | AD37: 0 | AE37: =AD37 -> 0 | AF37: =AE37 -> 0 | AG37: =AF37 -> 0 | AH37: =AG37 -> 0 | AI37: =AH37 -> 0
S39: Cash from Debt | U39: =U11 -> 0 | V39: =V11 -> 0 | W39: 0 | X39: 0 | Y39: 0 | Z39: =AVERAGE(U39:Y39) -> 0 | AA39: =Z39 -> 0 | AB39: =AA39 -> 0 | AC39: 0 | AD39: 0 | AE39: =AD39 -> 0 | AF39: =AE39 -> 0 | AG39: =AF39 -> 0 | AH39: =AG39 -> 0 | AI39: =AH39 -> 0
S41: Total Debts | T41: =T13 -> 0 | U41: =T41-U37+U39 -> 0 | V41: =U41-V37+V39 -> 0 | W41: 0 | X41: 0 | Y41: =X41-Y37+Y39 -> 0 | Z41: 0 | AA41: 0 | AB41: 0 | AC41: 0 | AD41: 0 | AE41: =AD41-AE37+AE39 -> 0 | AF41: =AE41-AF37+AF39 -> 0 | AG41: =AF41-AG37+AG39 -> 0 | AH41: =AG41-AH37+AH39 -> 0 | AI41: =AH41-AI37+AI39 -> 0
S43: Interest Rate | T43: - | U43: =U35/T41 ->  | V43: =V35/U41 ->  | Z43: =AVERAGE(U43:Y43) ->  | AA43: =Z43 ->  | AB43: =AA43 ->  | AE43: =AD43 ->  | AF43: =AE43 ->  | AG43: =AF43 ->  | AH43: =AG43 ->  | AI43: =AH43 -> 
